Body,Invoice Date,Supplier Name,Proclass Category,Service Area,Cost Centre Name,Invoiced
Rochdale BC,11/02/2014,220 SOFT LIMITED,Education,CUSTOMERS & CORPORATE SERVICES,BIBS UNIT,650.00
Rochdale BC,11/02/2014,A & W DAWSON,Unclassifiable,ECONOMY AND ENVIRONMENT,EDUCATION HOME TO SCHOOL,788.20
Rochdale BC,11/02/2014,A & W DAWSON,Unclassifiable,ECONOMY AND ENVIRONMENT,EDUCATION HOME TO SCHOOL,500.00
Rochdale BC,13/02/2014,A & W DAWSON,Unclassifiable,ECONOMY AND ENVIRONMENT,EDUCATION HOME TO SCHOOL,"1,057.60"
Rochdale BC,13/02/2014,A & W DAWSON,Unclassifiable,ECONOMY AND ENVIRONMENT,EDUCATION HOME TO SCHOOL,500.00
Rochdale BC,19/02/2014,A & W DAWSON,Unclassifiable,ECONOMY AND ENVIRONMENT,EDUCATION HOME TO SCHOOL,930.00
Rochdale BC,19/02/2014,A & W DAWSON,Unclassifiable,ECONOMY AND ENVIRONMENT,EDUCATION HOME TO SCHOOL,500.00
Rochdale BC,19/02/2014,A E YATES LTD,"Works - Construction, Repair & Maintenance",PROPERTY AND HIGHWAYS,Rechargeable drainage investigations,"13,971.48"
Rochdale BC,18/02/2014,A J COCKER ASSOCIATES LIMITED,Consultancy,ECONOMY AND ENVIRONMENT,EMPTY PROPERTY GRANT,750.00
Rochdale BC,06/02/2014,A W COLEMAN,Unclassifiable,ECONOMY AND ENVIRONMENT,EDUCATION HOME TO SCHOOL,"7,185.40"
Rochdale BC,17/02/2014,ACIES GROUP LLP,Consultancy,EARLY HELP AND SCHOOLS,SEN SUPPORT MAINSTREAM  LEA,679.25
Rochdale BC,12/02/2014,ACIES GROUP LLP,Consultancy,ECONOMY AND ENVIRONMENT,WHEATSHEAF ENTRANCE WORK,"4,000.00"
Rochdale BC,14/02/2014,ACIES GROUP LLP,Consultancy,ECONOMY AND ENVIRONMENT,WHEATSHEAF ENTRANCE WORK,"4,000.00"
Rochdale BC,28/02/2014,ACIES GROUP LLP,Consultancy,ECONOMY AND ENVIRONMENT,WHEATSHEAF ENTRANCE WORK,"4,000.00"
Rochdale BC,24/02/2014,ACTRAV ASSOCIATES,Unclassifiable,EARLY HELP AND SCHOOLS,ST ANDREW'S CE - PLACE PLANNING,"4,050.00"
Rochdale BC,13/02/2014,ADAPT BUILDING SERVICES LTD,"Works - Construction, Repair & Maintenance",PHYSICAL DIS & OLDER PEOPLE,DISABLED FACILITIES GRANT,"4,010.00"
Rochdale BC,17/02/2014,ADAPT BUILDING SERVICES LTD,"Works - Construction, Repair & Maintenance",EARLY HELP AND SCHOOLS,DOWLING STREET OCC THERAPY,725.00
Rochdale BC,11/02/2014,ADOPTION MATTERS,Human Resources,CHILDREN�S SOCIAL CARE,INDEPENDENT FOSTER CARE,"3,750.00"
Rochdale BC,11/02/2014,ADOPTION MATTERS,Human Resources,CHILDREN�S SOCIAL CARE,INTER AGENCY ADOPTION,750.00
Rochdale BC,12/02/2014,ADVANCED CHILD CARE ASSESSMENTS LIMITED,Legal Services,CHILDREN�S SOCIAL CARE,CSC PUBLIC LAW PROCEEDINGS EXTERNAL FEES,600.52
Rochdale BC,20/02/2014,AGA BIOENGINEERING SYSTEMS LTD,"Works - Construction, Repair & Maintenance",ECONOMY AND ENVIRONMENT,COUNTRYSIDE OPERATIONS,"5,234.00"
Rochdale BC,25/02/2014,AGROVISTA UK LTD,Horticultural,ECONOMY AND ENVIRONMENT,STREETS ROCHDALE GENERAL,958.00
Rochdale BC,18/02/2014,ALAN GARDNER ASSOCIATES,Consultancy,ECONOMY AND ENVIRONMENT,TONGE HALL FIRE DAMAGE - ENG HERITAGE,"1,429.80"
Rochdale BC,27/02/2014,ALCO MINI TRAVEL,Public Transport,ECONOMY AND ENVIRONMENT,EDUCATION HOME TO SCHOOL,"1,434.00"
Rochdale BC,14/02/2014,ALIGNED ASSETS LIMITED,Information Communication Technology,CUSTOMERS & CORPORATE SERVICES,BUSINESS INTELLIGENCE SYSTEMS,"1,499.50"
Rochdale BC,14/02/2014,ALIGNED ASSETS LIMITED,Information Communication Technology,CUSTOMERS & CORPORATE SERVICES,BUSINESS INTELLIGENCE SYSTEMS,"1,749.50"
Rochdale BC,11/02/2014,ALKRINGTON PRE SCHOOL,Financial Services,EARLY HELP AND SCHOOLS,MTCE OF INCLUSIVE CHILDCARE PLACES,660.00
Rochdale BC,01/02/2014,ALLIANCE CARE AND EDUCATION,Social Community Care Supplies & Services,CHILDREN�S SOCIAL CARE,EXTERNAL RESIDENTIAL PLACEMENTS,"13,285.71"
Rochdale BC,25/02/2014,ALLIANCE DISPOSABLES LIMITED,Catering,ECONOMY AND ENVIRONMENT,NO 1 RIVERSIDE CLEANING,555.94
Rochdale BC,11/02/2014,ALLIED HEALTHCARE GROUP LIMITED,Healthcare,LEARNING DIS & MENTAL HEALTH,LD FORUM - PERSONAL BUDGETS,"1,067.35"
Rochdale BC,27/02/2014,ALLIED HEALTHCARE GROUP LIMITED,Healthcare,LEARNING DIS & MENTAL HEALTH,LD FORUM - PERSONAL BUDGETS,"1,092.60"
Rochdale BC,11/02/2014,ALLIED HEALTHCARE GROUP LIMITED,Healthcare,PHYSICAL DIS & OLDER PEOPLE,NHS DELAYED TRANSFER,"1,809.00"
Rochdale BC,24/02/2014,ALLIED HEALTHCARE GROUP LIMITED,Healthcare,PHYSICAL DIS & OLDER PEOPLE,NHS DELAYED TRANSFER,"1,809.00"
Rochdale BC,27/02/2014,ALLIED HEALTHCARE GROUP LIMITED,Healthcare,PHYSICAL DIS & OLDER PEOPLE,NHS DELAYED TRANSFER,"1,658.25"
Rochdale BC,07/02/2014,ALLIED HEALTHCARE GROUP LIMITED,Healthcare,PHYSICAL DIS & OLDER PEOPLE,OLDER PEOPLES AGENCY PROVISION,"11,172.51"
Rochdale BC,14/02/2014,ALLIED HEALTHCARE GROUP LIMITED,Healthcare,PHYSICAL DIS & OLDER PEOPLE,OLDER PEOPLES AGENCY PROVISION,"11,361.71"
Rochdale BC,27/02/2014,ALLIED HEALTHCARE GROUP LIMITED,Healthcare,PHYSICAL DIS & OLDER PEOPLE,OLDER PEOPLES AGENCY PROVISION,"12,459.13"
Rochdale BC,11/02/2014,ALMIN TRAVEL,Human Resources,ECONOMY AND ENVIRONMENT,EDUCATION HOME TO SCHOOL,"1,920.00"
Rochdale BC,17/02/2014,AMHPA,Healthcare,PHYSICAL DIS & OLDER PEOPLE,TRAINING COMMISSIONING,800.00
Rochdale BC,25/02/2014,AMTOLL LIMITED,Cleaning & Janitorial,ECONOMY AND ENVIRONMENT,NO 1 RIVERSIDE CLEANING,996.76
Rochdale BC,06/02/2014,ANDREW PETTERSON,Unclassifiable,ECONOMY AND ENVIRONMENT,TRADING STANDARDS GENERAL,"1,062.00"
Rochdale BC,24/02/2014,ANDREW PETTERSON,Unclassifiable,ECONOMY AND ENVIRONMENT,TRADING STANDARDS GENERAL,"2,220.00"
Rochdale BC,05/02/2014,ANDY HARROP,Unclassifiable,ECONOMY AND ENVIRONMENT,EDUCATION HOME TO SCHOOL,"2,880.00"
Rochdale BC,21/02/2014,ANGLIA SIGN CASTING COMPANY LIMITED,Building Construction Materials,ECONOMY AND ENVIRONMENT,CEMETERIES GENERAL,587.75
Rochdale BC,12/02/2014,ANIMAL WARDENS LIMITED,Environmental Services,ECONOMY AND ENVIRONMENT,DOG WARDEN,"1,273.60"
Rochdale BC,12/02/2014,ANIMAL WARDENS LIMITED,Environmental Services,ECONOMY AND ENVIRONMENT,DOG WARDEN,676.60
Rochdale BC,07/02/2014,ANTHONY COLLINS SOLICITORS LLP,"Works - Construction, Repair & Maintenance",ECONOMY AND ENVIRONMENT,HOMELESS TRANSFER COSTS,573.50
Rochdale BC,21/02/2014,ARC4,Human Resources,ECONOMY AND ENVIRONMENT,CORE DEVT STRATEGY DPD,"2,273.75"
Rochdale BC,28/02/2014,ARCHITECTURAL HISTORY PRACTICE,Financial Services,ECONOMY AND ENVIRONMENT,TOWN CENTRE EAST FEASIBILITY 51K 07/08,"6,875.00"
Rochdale BC,01/02/2014,ARCO GROUP LIMITED,Clothing,ECONOMY AND ENVIRONMENT,COUNTRYSIDE OPERATIONS,561.82
Rochdale BC,24/02/2014,ARCO GROUP LIMITED,Clothing,ECONOMY AND ENVIRONMENT,DOMESTIC WASTE,"1,417.42"
Rochdale BC,25/02/2014,ARCO GROUP LIMITED,Clothing,ECONOMY AND ENVIRONMENT,STREETS ROCHDALE GENERAL,931.65
Rochdale BC,27/02/2014,ARROW BUSINESS COMMUNICATIONS LTD,Information Communication Technology,CUSTOMERS & CORPORATE SERVICES,EMERGENCY PLANNING,504.00
Rochdale BC,27/02/2014,ASHWORTH STREET SURGERY,Healthcare,PUBLIC HEALTH,SEXUAL HEALTH SERVICES,"2,908.94"
Rochdale BC,05/02/2014,ASIAN LEADER,Facilities & Management Services,ECONOMY AND ENVIRONMENT,RETROFIT,900.00
Rochdale BC,13/02/2014,ASSOCIATION  PUBLIC SERVICE EXCELLENCE,Financial Services,ECONOMY AND ENVIRONMENT,WIND ENERGY PROJECT - PILOT PHASE,685.76
Rochdale BC,27/02/2014,ASTRA ALARMS,Facilities & Management Services,ECONOMY AND ENVIRONMENT,DEPOT GREEN LANE GENERAL,716.00
Rochdale BC,10/02/2014,ASTRA ALARMS,Facilities & Management Services,ECONOMY AND ENVIRONMENT,NEW CEMETERY (ROCHDALE),"1,300.00"
Rochdale BC,27/02/2014,ASTRA ALARMS,Facilities & Management Services,ECONOMY AND ENVIRONMENT,PARKS HEYWOOD,"1,310.00"
Rochdale BC,07/02/2014,AVENTIS SOLUTIONS LIMITED,Consultancy,EARLY HELP AND SCHOOLS,ADVISORY SERVICE  GENERAL,"1,750.00"
Rochdale BC,11/02/2014,AVENTIS SOLUTIONS LIMITED,Consultancy,EARLY HELP AND SCHOOLS,ADVISORY SERVICE  GENERAL,"1,500.00"
Rochdale BC,17/02/2014,AVENTIS SOLUTIONS LIMITED,Consultancy,EARLY HELP AND SCHOOLS,ADVISORY SERVICE  GENERAL,"3,500.00"
Rochdale BC,17/02/2014,AVENTIS SOLUTIONS LIMITED,Consultancy,EARLY HELP AND SCHOOLS,ADVISORY SERVICE  GENERAL,"3,000.00"
Rochdale BC,17/02/2014,AVENTIS SOLUTIONS LIMITED,Consultancy,CHILDREN�S SOCIAL CARE,MANAGEMENT STRUCTURE,"1,040.00"
Rochdale BC,17/02/2014,AVENTIS SOLUTIONS LIMITED,Consultancy,CHILDREN�S SOCIAL CARE,MANAGEMENT STRUCTURE,624.00
Rochdale BC,17/02/2014,AVENTIS SOLUTIONS LIMITED,Consultancy,CHILDREN�S SOCIAL CARE,MANAGEMENT STRUCTURE,832.00
Rochdale BC,17/02/2014,AVENTIS SOLUTIONS LIMITED,Consultancy,CHILDREN�S SOCIAL CARE,MANAGEMENT STRUCTURE,"1,664.00"
Rochdale BC,17/02/2014,AVENTIS SOLUTIONS LIMITED,Consultancy,CHILDREN�S SOCIAL CARE,MANAGEMENT STRUCTURE,"1,040.00"
Rochdale BC,17/02/2014,AVENTIS SOLUTIONS LIMITED,Consultancy,CHILDREN�S SOCIAL CARE,MANAGEMENT STRUCTURE,624.00
Rochdale BC,17/02/2014,AVENTIS SOLUTIONS LIMITED,Consultancy,CHILDREN�S SOCIAL CARE,MANAGEMENT STRUCTURE,"1,664.00"
Rochdale BC,27/02/2014,AVENTIS SOLUTIONS LIMITED,Consultancy,CHILDREN�S SOCIAL CARE,MANAGEMENT STRUCTURE,832.00
Rochdale BC,27/02/2014,AVK SEG UK LTD,Consultancy,ECONOMY AND ENVIRONMENT,1 RIVERSIDE,"1,315.00"
Rochdale BC,28/02/2014,AVK SEG UK LTD,Consultancy,ECONOMY AND ENVIRONMENT,1 RIVERSIDE,"2,568.00"
Rochdale BC,11/02/2014,AXIOM EDUCATION (ROCHDALE) LIMITED,Education,EARLY HELP AND SCHOOLS,PFI CONTRACT GENERAL,"2,217.56"
Rochdale BC,11/02/2014,AXIOM EDUCATION (ROCHDALE) LIMITED,Education,EARLY HELP AND SCHOOLS,PFI CONTRACT GENERAL,"663,275.33"
Rochdale BC,11/02/2014,AXIOM EDUCATION (ROCHDALE) LIMITED,Education,EARLY HELP AND SCHOOLS,PFI CONTRACT GENERAL,"23,250.00"
Rochdale BC,17/02/2014,AXIOM EDUCATION (ROCHDALE) LIMITED,Education,EARLY HELP AND SCHOOLS,PFI VARIATIONS,"29,516.02"
Rochdale BC,17/02/2014,AXIOM EDUCATION (ROCHDALE) LIMITED,Education,EARLY HELP AND SCHOOLS,PFI VARIATIONS,580.14
Rochdale BC,27/02/2014,BACK CARE SOLUTIONS LIMITED,Financial Services,PROPERTY AND HIGHWAYS,BUSINESS SUPPORT TEAM,521.00
Rochdale BC,01/02/2014,BALMER`S GARDEN MACHINERY CENTRE,Horticultural,ECONOMY AND ENVIRONMENT,GROUNDS MTCE EQUIPMENT,"21,750.00"
Rochdale BC,11/02/2014,BAMFORD PLAYGROUP,Financial Services,EARLY HELP AND SCHOOLS,MTCE OF INCLUSIVE CHILDCARE PLACES,605.00
Rochdale BC,11/02/2014,BANGLADESH ASSOCIATION AND COMMUNITY PROJECT,Social Community Care Supplies & Services,CUSTOMERS & CORPORATE SERVICES,BANGLADESH COMMUNITY PROJ,"8,375.00"
Rochdale BC,01/02/2014,BARNARDOS NORTH WEST,Financial Services,EARLY HELP AND SCHOOLS,SHORT BREAKS REVENUE,"5,783.75"
Rochdale BC,01/02/2014,BARNARDOS NORTH WEST,Financial Services,EARLY HELP AND SCHOOLS,SHORT BREAKS REVENUE,"2,786.25"
Rochdale BC,01/02/2014,BARNARDOS NORTH WEST,Financial Services,EARLY HELP AND SCHOOLS,SHORT BREAKS REVENUE,"1,738.67"
Rochdale BC,11/02/2014,BELMONT SCHOOL LIMITED,Financial Services,EARLY HELP AND SCHOOLS,IND SCHOOLS  RESIDENTIAL,"8,262.02"
Rochdale BC,19/02/2014,BELMONT SCHOOL LIMITED,Financial Services,EARLY HELP AND SCHOOLS,IND SCHOOLS  RESIDENTIAL,"10,347.68"
Rochdale BC,19/02/2014,BELMONT SCHOOL LIMITED,Financial Services,EARLY HELP AND SCHOOLS,IND SCHOOLS  RESIDENTIAL,"9,810.12"
Rochdale BC,11/02/2014,BERTRAM TRADING LIMITED,Education,CUSTOMERS & CORPORATE SERVICES,BIBS UNIT,954.46
Rochdale BC,11/02/2014,BERTRAM TRADING LIMITED,Education,CUSTOMERS & CORPORATE SERVICES,BIBS UNIT,877.06
Rochdale BC,11/02/2014,BERTRAM TRADING LIMITED,Education,CUSTOMERS & CORPORATE SERVICES,BIBS UNIT,"1,067.95"
Rochdale BC,11/02/2014,BERTRAM TRADING LIMITED,Education,CUSTOMERS & CORPORATE SERVICES,BIBS UNIT,"1,395.00"
Rochdale BC,11/02/2014,BERTRAM TRADING LIMITED,Education,CUSTOMERS & CORPORATE SERVICES,BIBS UNIT,650.35
Rochdale BC,18/02/2014,BERTRAM TRADING LIMITED,Education,CUSTOMERS & CORPORATE SERVICES,BIBS UNIT,654.96
Rochdale BC,18/02/2014,BERTRAM TRADING LIMITED,Education,CUSTOMERS & CORPORATE SERVICES,BIBS UNIT,841.05
Rochdale BC,24/02/2014,BERTRAM TRADING LIMITED,Education,CUSTOMERS & CORPORATE SERVICES,BIBS UNIT,607.58
Rochdale BC,24/02/2014,BERTRAM TRADING LIMITED,Education,CUSTOMERS & CORPORATE SERVICES,BIBS UNIT,668.26
Rochdale BC,24/02/2014,BERTRAM TRADING LIMITED,Education,CUSTOMERS & CORPORATE SERVICES,BIBS UNIT,905.21
Rochdale BC,28/02/2014,BERTRAM TRADING LIMITED,Education,CUSTOMERS & CORPORATE SERVICES,BIBS UNIT,"1,271.57"
Rochdale BC,28/02/2014,BERTRAM TRADING LIMITED,Education,CUSTOMERS & CORPORATE SERVICES,BIBS UNIT,660.27
Rochdale BC,28/02/2014,BERTRAM TRADING LIMITED,Education,CUSTOMERS & CORPORATE SERVICES,BIBS UNIT,"1,316.42"
Rochdale BC,28/02/2014,BERTRAM TRADING LIMITED,Education,CUSTOMERS & CORPORATE SERVICES,BIBS UNIT,856.12
Rochdale BC,28/02/2014,BERTRAM TRADING LIMITED,Education,CUSTOMERS & CORPORATE SERVICES,BIBS UNIT,"1,482.94"
Rochdale BC,28/02/2014,BERTRAM TRADING LIMITED,Education,CUSTOMERS & CORPORATE SERVICES,BIBS UNIT,791.38
Rochdale BC,28/02/2014,BERTRAM TRADING LIMITED,Education,CUSTOMERS & CORPORATE SERVICES,BIBS UNIT,"1,309.22"
Rochdale BC,28/02/2014,BERTRAM TRADING LIMITED,Education,CUSTOMERS & CORPORATE SERVICES,BIBS UNIT,739.29
Rochdale BC,28/02/2014,BERTRAM TRADING LIMITED,Education,CUSTOMERS & CORPORATE SERVICES,BIBS UNIT,750.33
Rochdale BC,28/02/2014,BERTRAM TRADING LIMITED,Education,CUSTOMERS & CORPORATE SERVICES,BIBS UNIT,"1,526.84"
Rochdale BC,28/02/2014,BERTRAM TRADING LIMITED,Education,CUSTOMERS & CORPORATE SERVICES,BIBS UNIT,577.43
Rochdale BC,28/02/2014,BERTRAM TRADING LIMITED,Education,CUSTOMERS & CORPORATE SERVICES,BIBS UNIT,"1,437.87"
Rochdale BC,28/02/2014,BERTRAM TRADING LIMITED,Education,CUSTOMERS & CORPORATE SERVICES,BIBS UNIT,854.59
Rochdale BC,28/02/2014,BERTRAM TRADING LIMITED,Education,CUSTOMERS & CORPORATE SERVICES,BIBS UNIT,"1,144.71"
Rochdale BC,28/02/2014,BERTRAM TRADING LIMITED,Education,CUSTOMERS & CORPORATE SERVICES,BIBS UNIT,"1,357.59"
Rochdale BC,28/02/2014,BERTRAM TRADING LIMITED,Education,CUSTOMERS & CORPORATE SERVICES,BIBS UNIT,"1,013.14"
Rochdale BC,05/02/2014,BETHELL CONSTRUCTION LTD,"Works - Construction, Repair & Maintenance",PROPERTY AND HIGHWAYS,ALKRINGTON POND - REMEDIAL WORKS 350,"18,782.02"
Rochdale BC,10/02/2014,BETTER CHOICES LTD,Social Community Care Supplies & Services,EARLY HELP AND SCHOOLS,14-19 TEAM 11/12,"3,655.00"
Rochdale BC,25/02/2014,BEVAN BRITTAN LLP,Consultancy,EARLY HELP AND SCHOOLS,BSF DEVELOPMENT (MOD0809),"2,984.40"
Rochdale BC,10/02/2014,BGS LTD,"Works - Construction, Repair & Maintenance",PROPERTY AND HIGHWAYS,CLIENT SIDE PROPERTIES,"2,098.00"
Rochdale BC,24/02/2014,BLACKBURN WITH DARWEN BC,Social Community Care Supplies & Services,CHILDREN�S SOCIAL CARE,EXTERNAL RESIDENTIAL PLACEMENTS,"9,100.00"
Rochdale BC,14/02/2014,BLUE & RED LTD,Information Communication Technology,CUSTOMERS & CORPORATE SERVICES,THIRD PARTY CONTRACTS,909.70
Rochdale BC,28/02/2014,BLUE & RED LTD,Information Communication Technology,CUSTOMERS & CORPORATE SERVICES,THIRD PARTY CONTRACTS,501.62
Rochdale BC,01/02/2014,BODEN & DAVIES LTD,Building Construction Materials,ECONOMY AND ENVIRONMENT,BOWLEE AND GARDEN MAILSHOP,"1,572.00"
Rochdale BC,26/02/2014,BODEN & DAVIES LTD,Building Construction Materials,ECONOMY AND ENVIRONMENT,BOWLEE AND GARDEN MAILSHOP,786.00
Rochdale BC,26/02/2014,BODEN & DAVIES LTD,Building Construction Materials,ECONOMY AND ENVIRONMENT,BOWLEE AND GARDEN MAILSHOP,786.00
Rochdale BC,13/02/2014,BOLTON M B C,Social Community Care Supplies & Services,EARLY HELP AND SCHOOLS,SCHOOLS BUSINESS UNIT,"7,688.00"
Rochdale BC,11/02/2014,BOLTON M B C,Social Community Care Supplies & Services,CHILDREN�S SOCIAL CARE,YOT MANAGEMENT,"2,500.00"
Rochdale BC,27/02/2014,BOOTS OPTICIANS,Healthcare,PUBLIC HEALTH,SEXUAL HEALTH SERVICES,567.22
Rochdale BC,05/02/2014,BRAKE BROS FOOD SERVICE LTD,Catering,ECONOMY AND ENVIRONMENT,ROCHDALE TOWN HALL CROFTERS,834.33
Rochdale BC,18/02/2014,BRAKE BROS FOOD SERVICE LTD,Catering,PHYSICAL DIS & OLDER PEOPLE,SPRINGHILL EMI UNIT,538.98
Rochdale BC,05/02/2014,BRAKE BROS FOOD SERVICE LTD,Catering,PHYSICAL DIS & OLDER PEOPLE,TUDOR COURT REHAB UNIT,503.33
Rochdale BC,27/02/2014,BRAMBLETON LIMITED,Social Community Care Supplies & Services,LEARNING DIS & MENTAL HEALTH,LD FORUM - PERSONAL BUDGETS,599.04
Rochdale BC,07/02/2014,BRAMBLETON LIMITED,Social Community Care Supplies & Services,PHYSICAL DIS & OLDER PEOPLE,OLDER PEOPLES AGENCY PROVISION,"9,391.59"
Rochdale BC,14/02/2014,BRAMBLETON LIMITED,Social Community Care Supplies & Services,PHYSICAL DIS & OLDER PEOPLE,OLDER PEOPLES AGENCY PROVISION,"9,627.88"
Rochdale BC,27/02/2014,BRAMBLETON LIMITED,Social Community Care Supplies & Services,PHYSICAL DIS & OLDER PEOPLE,OLDER PEOPLES AGENCY PROVISION,"9,832.91"
Rochdale BC,19/02/2014,BRENNAN PAVING COMPANY LIMITED,"Works - Construction, Repair & Maintenance",PROPERTY AND HIGHWAYS,HEYWOOD STRUCTURAL PATCHING DFT,"21,265.15"
Rochdale BC,19/02/2014,BRENNAN PAVING COMPANY LIMITED,"Works - Construction, Repair & Maintenance",PROPERTY AND HIGHWAYS,HEYWOOD STRUCTURAL PATCHING DFT,"25,630.93"
Rochdale BC,05/02/2014,BRENNAN PAVING COMPANY LIMITED,"Works - Construction, Repair & Maintenance",PROPERTY AND HIGHWAYS,MIDDLETON STRUCTURAL PATCHING CAP,"7,123.45"
Rochdale BC,05/02/2014,BRENNAN PAVING COMPANY LIMITED,"Works - Construction, Repair & Maintenance",PROPERTY AND HIGHWAYS,PENNINES STRUCTURAL PATCHING DFT,"6,168.41"
Rochdale BC,26/02/2014,BRENNAN PAVING COMPANY LIMITED,"Works - Construction, Repair & Maintenance",PROPERTY AND HIGHWAYS,PENNINES STRUCTURAL PATCHING DFT,"1,998.22"
Rochdale BC,19/02/2014,BRENNAN PAVING COMPANY LIMITED,"Works - Construction, Repair & Maintenance",PROPERTY AND HIGHWAYS,ROCHDALE STRUCTURAL PATCHING HIP,"108,736.16"
Rochdale BC,11/02/2014,BRENTWOOD,Social Community Care Supplies & Services,ECONOMY AND ENVIRONMENT,MIDDLETON DAY CENTRE,"23,850.00"
Rochdale BC,19/02/2014,BRITISH GAS BUSINESS,Utilities,ECONOMY AND ENVIRONMENT,ASYLUM SEEKERS NEW 2011,786.33
Rochdale BC,19/02/2014,BRITISH GAS BUSINESS,Utilities,ECONOMY AND ENVIRONMENT,BOWLING GREENS,"1,638.33"
Rochdale BC,19/02/2014,BRITISH GAS BUSINESS,Utilities,EARLY HELP AND SCHOOLS,BRIDGEFOLD LODGE,514.23
Rochdale BC,19/02/2014,BRITISH GAS BUSINESS,Utilities,PROPERTY AND HIGHWAYS,CAR PARKS  GENERAL,923.04
Rochdale BC,19/02/2014,BRITISH GAS BUSINESS,Utilities,ECONOMY AND ENVIRONMENT,CEMETERIES GENERAL,708.03
Rochdale BC,19/02/2014,BRITISH GAS BUSINESS,Utilities,CHILDREN�S SOCIAL CARE,CROSSFIELD MILL,"1,467.04"
Rochdale BC,19/02/2014,BRITISH GAS BUSINESS,Utilities,EARLY HELP AND SCHOOLS,DARNHILL ADVERNTURE PLAYGROUND,855.50
Rochdale BC,19/02/2014,BRITISH GAS BUSINESS,Utilities,ECONOMY AND ENVIRONMENT,DEPOT GREEN LANE GENERAL,"2,427.23"
Rochdale BC,19/02/2014,BRITISH GAS BUSINESS,Utilities,ECONOMY AND ENVIRONMENT,GREAT HOWARTH HOSTEL,661.28
Rochdale BC,19/02/2014,BRITISH GAS BUSINESS,Utilities,PROPERTY AND HIGHWAYS,HANSON CLOSE INDUSTRIAL ESTATE,920.36
Rochdale BC,19/02/2014,BRITISH GAS BUSINESS,Utilities,ECONOMY AND ENVIRONMENT,HOLLINGWORTH LAKE GENERAL,930.34
Rochdale BC,19/02/2014,BRITISH GAS BUSINESS,Utilities,LEARNING DIS & MENTAL HEALTH,LD PROVIDER MANAGEMENT & ADMIN,674.66
Rochdale BC,19/02/2014,BRITISH GAS BUSINESS,Utilities,ECONOMY AND ENVIRONMENT,LEOPOLD COURT,707.82
Rochdale BC,19/02/2014,BRITISH GAS BUSINESS,Utilities,PROPERTY AND HIGHWAYS,MANAGEMENT OF PROPERTIES,"1,149.94"
Rochdale BC,19/02/2014,BRITISH GAS BUSINESS,Utilities,EARLY HELP AND SCHOOLS,NEWBOLD CHILDRENS CENTRE,660.56
Rochdale BC,19/02/2014,BRITISH GAS BUSINESS,Utilities,ECONOMY AND ENVIRONMENT,PARKS HEYWOOD,583.86
Rochdale BC,19/02/2014,BRITISH GAS BUSINESS,Utilities,ECONOMY AND ENVIRONMENT,PARKS ROCHDALE,"1,729.37"
Rochdale BC,19/02/2014,BRITISH GAS BUSINESS,Utilities,PROPERTY AND HIGHWAYS,PHOENIX CLOSE IND ESTATE - MICRO,"1,488.69"
Rochdale BC,19/02/2014,BRITISH GAS BUSINESS,Utilities,ECONOMY AND ENVIRONMENT,ROCH VALE CARAVAN SITE,809.66
Rochdale BC,19/02/2014,BRITISH GAS BUSINESS,Utilities,PHYSICAL DIS & OLDER PEOPLE,SPRINGHILL EMI UNIT,"1,012.70"
Rochdale BC,19/02/2014,BRITISH GAS BUSINESS,Utilities,ECONOMY AND ENVIRONMENT,TELEGRAPH HOUSE SERVICE CHARGE ACCOUNT,601.40
Rochdale BC,19/02/2014,BRITISH GAS BUSINESS,Utilities,CHILDREN�S SOCIAL CARE,TOWNHEAD,720.15
Rochdale BC,19/02/2014,BRITISH GAS BUSINESS,Utilities,PHYSICAL DIS & OLDER PEOPLE,TUDOR COURT REHAB UNIT,683.66
Rochdale BC,06/02/2014,BRITISH GAS TRADING LIMITED,Utilities,ECONOMY AND ENVIRONMENT,GREAT HOWARTH HOSTEL,536.17
Rochdale BC,24/02/2014,BROOKDALE GAS LTD,Utilities,ECONOMY AND ENVIRONMENT,ROCH VALE CARAVAN SITE,621.40
Rochdale BC,13/02/2014,BROOKE EDGLEY SPECIALIST TECH SERV LTD,Health & Safety�,PROPERTY AND HIGHWAYS,DISPOSAL COSTS,"1,261.00"
Rochdale BC,13/02/2014,BROOKE EDGLEY SPECIALIST TECH SERV LTD,Health & Safety�,PROPERTY AND HIGHWAYS,HARE HILL HOUSE,995.00
Rochdale BC,13/02/2014,BROOKE EDGLEY SPECIALIST TECH SERV LTD,Health & Safety�,PROPERTY AND HIGHWAYS,NEWBOLD CHILDRENS CENTRE,866.00
Rochdale BC,13/02/2014,BROOKE EDGLEY SPECIALIST TECH SERV LTD,Health & Safety�,PROPERTY AND HIGHWAYS,PARKS ROCHDALE,880.00
Rochdale BC,25/02/2014,BURY COLLEGE,Human Resources,CHILDREN�S SOCIAL CARE,CSC TRAINING EXPENSES,"1,350.00"
Rochdale BC,01/02/2014,C H W LODGINGS LTD,Social Community Care Supplies & Services,CHILDREN�S SOCIAL CARE,EXTERNAL RESIDENTIAL PLACEMENTS,"3,985.71"
Rochdale BC,04/02/2014,C H W LODGINGS LTD,Social Community Care Supplies & Services,CHILDREN�S SOCIAL CARE,YOUNG PEOPLES SUPPORT TEAM,611.10
Rochdale BC,17/02/2014,C H W LODGINGS LTD,Social Community Care Supplies & Services,CHILDREN�S SOCIAL CARE,YOUNG PEOPLES SUPPORT TEAM,"3,600.00"
Rochdale BC,10/02/2014,CALL THE COMPANY LTD,Unclassifiable,ECONOMY AND ENVIRONMENT,PIF DRAKE ST. IMPS 200K 10/11,"4,950.00"
Rochdale BC,11/02/2014,CAPITA BUSINESS SERVICES LIMITED,Human Resources,FINANCE SERVICES,TECHNICAL SUPPORT,"4,164.44"
Rochdale BC,06/02/2014,CAR 2000 (HEYWOOD) LLP,Public Transport,ECONOMY AND ENVIRONMENT,EDUCATION HOME TO SCHOOL,"2,205.00"
Rochdale BC,06/02/2014,CAR 2000 (HEYWOOD) LLP,Public Transport,ECONOMY AND ENVIRONMENT,EDUCATION HOME TO SCHOOL,720.00
Rochdale BC,06/02/2014,CAR 2000 (HEYWOOD) LLP,Public Transport,ECONOMY AND ENVIRONMENT,EDUCATION HOME TO SCHOOL,560.00
Rochdale BC,06/02/2014,CAR 2000 (HEYWOOD) LLP,Public Transport,ECONOMY AND ENVIRONMENT,EDUCATION HOME TO SCHOOL,"1,216.00"
Rochdale BC,06/02/2014,CAR 2000 (HEYWOOD) LLP,Public Transport,ECONOMY AND ENVIRONMENT,EDUCATION HOME TO SCHOOL,"1,240.00"
Rochdale BC,07/02/2014,CARE 4 U,Social Community Care Supplies & Services,PHYSICAL DIS & OLDER PEOPLE,OLDER PEOPLES AGENCY PROVISION,"9,770.80"
Rochdale BC,14/02/2014,CARE 4 U,Social Community Care Supplies & Services,PHYSICAL DIS & OLDER PEOPLE,OLDER PEOPLES AGENCY PROVISION,"9,744.41"
Rochdale BC,27/02/2014,CARE 4 U,Social Community Care Supplies & Services,PHYSICAL DIS & OLDER PEOPLE,OLDER PEOPLES AGENCY PROVISION,"9,784.80"
Rochdale BC,04/02/2014,CARE FACILITY MANAGEMENT,Cleaning & Janitorial,ECONOMY AND ENVIRONMENT,WHEATSHEAF ENTRANCE WORK,"6,174.82"
Rochdale BC,27/02/2014,CARE QUALITY COMMISSION,Financial Services,LEARNING DIS & MENTAL HEALTH,HARELANDS RESPITE,650.00
Rochdale BC,27/02/2014,CARE QUALITY COMMISSION,Financial Services,PHYSICAL DIS & OLDER PEOPLE,SPRINGHILL EMI UNIT,"3,000.00"
Rochdale BC,27/02/2014,CARE QUALITY COMMISSION,Financial Services,LEARNING DIS & MENTAL HEALTH,SUPPORTED LIVING MANAGEMENT & ADMIN,666.67
Rochdale BC,27/02/2014,CARE QUALITY COMMISSION,Financial Services,PHYSICAL DIS & OLDER PEOPLE,TUDOR COURT REHAB UNIT,"1,600.00"
Rochdale BC,27/02/2014,CARE QUALITY COMMISSION,Financial Services,PHYSICAL DIS & OLDER PEOPLE,WEST,666.66
Rochdale BC,11/02/2014,CARE TODAY CHILDRENS SERVICES,Social Community Care Supplies & Services,CHILDREN�S SOCIAL CARE,EXTERNAL RESIDENTIAL PLACEMENTS,"12,377.99"
Rochdale BC,26/02/2014,CARERS ASSOCIATION (RMHP),Social Community Care Supplies & Services,LEARNING DIS & MENTAL HEALTH,CARERS COMMISSIONED SERVICES,"4,000.00"
Rochdale BC,07/02/2014,CAREWEST (NORTHERN) LIMITED,Social Community Care Supplies & Services,PHYSICAL DIS & OLDER PEOPLE,OLDER PEOPLES AGENCY PROVISION,"6,625.51"
Rochdale BC,11/02/2014,CAREWEST (NORTHERN) LIMITED,Social Community Care Supplies & Services,PHYSICAL DIS & OLDER PEOPLE,OLDER PEOPLES AGENCY PROVISION,"36,426.84"
Rochdale BC,14/02/2014,CAREWEST (NORTHERN) LIMITED,Social Community Care Supplies & Services,PHYSICAL DIS & OLDER PEOPLE,OLDER PEOPLES AGENCY PROVISION,"6,782.64"
Rochdale BC,27/02/2014,CAREWEST (NORTHERN) LIMITED,Social Community Care Supplies & Services,PHYSICAL DIS & OLDER PEOPLE,OLDER PEOPLES AGENCY PROVISION,"6,773.30"
Rochdale BC,21/02/2014,CASTLEMERE COMMUNITY CENTRE,Unclassifiable,EARLY HELP AND SCHOOLS,CASTLEMERE CHILDRENS CENTRE,"11,307.25"
Rochdale BC,10/02/2014,CASTLEMERE COMMUNITY CENTRE,Unclassifiable,CUSTOMERS & CORPORATE SERVICES,MEMBERS SMALL CAPITAL GRANTS,750.00
Rochdale BC,07/02/2014,CASTLEROCK CARE SERVICES LIMITED,Social Community Care Supplies & Services,PHYSICAL DIS & OLDER PEOPLE,OLDER PEOPLES AGENCY PROVISION,"3,949.97"
Rochdale BC,14/02/2014,CASTLEROCK CARE SERVICES LIMITED,Social Community Care Supplies & Services,PHYSICAL DIS & OLDER PEOPLE,OLDER PEOPLES AGENCY PROVISION,"3,536.06"
Rochdale BC,27/02/2014,CASTLEROCK CARE SERVICES LIMITED,Social Community Care Supplies & Services,PHYSICAL DIS & OLDER PEOPLE,OLDER PEOPLES AGENCY PROVISION,"3,913.43"
Rochdale BC,27/02/2014,CASTLEROYLE PRIVATE HIRE,Public Transport,ECONOMY AND ENVIRONMENT,EDUCATION HOME TO SCHOOL,"5,113.00"
Rochdale BC,27/02/2014,CASTLETON HEALTH CENTRE,Healthcare,PUBLIC HEALTH,SEXUAL HEALTH SERVICES,"1,778.03"
Rochdale BC,19/02/2014,CATHOLIC CHILDRENS RESCUE SOCIETY,Social Community Care Supplies & Services,CHILDREN�S SOCIAL CARE,INTER AGENCY ADOPTION,760.00
Rochdale BC,04/02/2014,CHANCES,Unclassifiable,EARLY HELP AND SCHOOLS,LOOKED AFTER CHILDREN PUPIL PREMIUM,"2,436.00"
Rochdale BC,06/02/2014,CHAUFFEUR TRAVEL,Human Resources,ECONOMY AND ENVIRONMENT,EDUCATION HOME TO SCHOOL,"1,550.00"
Rochdale BC,27/02/2014,CHAUFFEUR TRAVEL,Human Resources,ECONOMY AND ENVIRONMENT,EDUCATION HOME TO SCHOOL,"1,140.00"
Rochdale BC,25/02/2014,CHILD ACCIDENT PREVENTION TRUST,Financial Services,CHILDREN�S SOCIAL CARE,ACCESS AND SUPPORT PREVENTIVE,"1,600.00"
Rochdale BC,24/02/2014,CHILD ACTION NORTHWEST,Human Resources,CHILDREN�S SOCIAL CARE,INDEPENDENT FOSTER CARE,"3,370.01"
Rochdale BC,24/02/2014,CHILD ACTION NORTHWEST,Human Resources,CHILDREN�S SOCIAL CARE,INDEPENDENT FOSTER CARE,"3,538.34"
Rochdale BC,24/02/2014,CHILD ACTION NORTHWEST,Human Resources,CHILDREN�S SOCIAL CARE,INDEPENDENT FOSTER CARE,"3,228.34"
Rochdale BC,24/02/2014,CHILD ACTION NORTHWEST,Human Resources,CHILDREN�S SOCIAL CARE,INDEPENDENT FOSTER CARE,"3,184.01"
Rochdale BC,24/02/2014,CHILD ACTION NORTHWEST,Human Resources,CHILDREN�S SOCIAL CARE,INDEPENDENT FOSTER CARE,"3,861.67"
Rochdale BC,24/02/2014,CHILD ACTION NORTHWEST,Human Resources,CHILDREN�S SOCIAL CARE,INDEPENDENT FOSTER CARE,"2,905.63"
Rochdale BC,24/02/2014,CHILD ACTION NORTHWEST,Human Resources,CHILDREN�S SOCIAL CARE,INDEPENDENT FOSTER CARE,"3,228.34"
Rochdale BC,24/02/2014,CHILD ACTION NORTHWEST,Human Resources,CHILDREN�S SOCIAL CARE,INDEPENDENT FOSTER CARE,"3,631.34"
Rochdale BC,24/02/2014,CHILD ACTION NORTHWEST,Human Resources,CHILDREN�S SOCIAL CARE,INDEPENDENT FOSTER CARE,"3,184.01"
Rochdale BC,24/02/2014,CHILD ACTION NORTHWEST,Human Resources,CHILDREN�S SOCIAL CARE,INDEPENDENT FOSTER CARE,"3,268.33"
Rochdale BC,24/02/2014,CHILD ACTION NORTHWEST,Human Resources,CHILDREN�S SOCIAL CARE,INDEPENDENT FOSTER CARE,"3,268.33"
Rochdale BC,24/02/2014,CHILD ACTION NORTHWEST,Human Resources,CHILDREN�S SOCIAL CARE,INDEPENDENT FOSTER CARE,"3,268.33"
Rochdale BC,24/02/2014,CHILD ACTION NORTHWEST,Human Resources,CHILDREN�S SOCIAL CARE,INDEPENDENT FOSTER CARE,"3,587.01"
Rochdale BC,24/02/2014,CHILD ACTION NORTHWEST,Human Resources,CHILDREN�S SOCIAL CARE,INDEPENDENT FOSTER CARE,"3,423.33"
Rochdale BC,24/02/2014,CHILD ACTION NORTHWEST,Human Resources,CHILDREN�S SOCIAL CARE,INDEPENDENT FOSTER CARE,"3,124.20"
Rochdale BC,24/02/2014,CHILD ACTION NORTHWEST,Human Resources,CHILDREN�S SOCIAL CARE,INDEPENDENT FOSTER CARE,"3,228.34"
Rochdale BC,01/02/2014,CHILD ACTION NORTHWEST,Human Resources,CHILDREN�S SOCIAL CARE,YPST SUPPORTING PEOPLE FUNDING,"5,666.67"
Rochdale BC,01/02/2014,CHILD ACTION NORTHWEST,Human Resources,CHILDREN�S SOCIAL CARE,YPST SUPPORTING PEOPLE FUNDING,"13,000.00"
Rochdale BC,24/02/2014,CHILDSCAPE,Social Community Care Supplies & Services,ECONOMY AND ENVIRONMENT,PLAYGROUND SERVICES,"2,456.00"
Rochdale BC,26/02/2014,CITY OF BRADFORD MET DISTRICT COUNCIL,Public Bodies,PROPERTY AND HIGHWAYS,ST LTG MISC XMAS ILLUMINA,"3,655.00"
Rochdale BC,11/02/2014,CLEWORTH ROAD PRE-SCHOOL,Financial Services,EARLY HELP AND SCHOOLS,MTCE OF INCLUSIVE CHILDCARE PLACES,605.00
Rochdale BC,07/02/2014,CLOVER SECURITY SERVICES LIMITED,Facilities & Management Services,ECONOMY AND ENVIRONMENT,BALDERSTONE DEMOLITION,"11,670.48"
Rochdale BC,27/02/2014,CLOVER SECURITY SERVICES LIMITED,Facilities & Management Services,ECONOMY AND ENVIRONMENT,BALDERSTONE DEMOLITION,"5,265.00"
Rochdale BC,26/02/2014,CLOVER SECURITY SERVICES LIMITED,Facilities & Management Services,ECONOMY AND ENVIRONMENT,TOWN CENTRE DEMOLITIONS,"4,621.50"
Rochdale BC,11/02/2014,CLOVERLEAF CHILDCARE,Social Community Care Supplies & Services,EARLY HELP AND SCHOOLS,FAMILY LITERACY PROJECT,690.00
Rochdale BC,05/02/2014,COACH OPTIONS LIMITED,Public Transport,ECONOMY AND ENVIRONMENT,EDUCATION HOME TO SCHOOL,"1,760.00"
Rochdale BC,26/02/2014,COMFORT CALL,Healthcare,LEARNING DIS & MENTAL HEALTH,GENERAL,576.00
Rochdale BC,26/02/2014,COMFORT CALL,Healthcare,LEARNING DIS & MENTAL HEALTH,GENERAL,984.00
Rochdale BC,07/02/2014,COMFORT CALL,Healthcare,PHYSICAL DIS & OLDER PEOPLE,OLDER PEOPLES AGENCY PROVISION,"12,249.02"
Rochdale BC,14/02/2014,COMFORT CALL,Healthcare,PHYSICAL DIS & OLDER PEOPLE,OLDER PEOPLES AGENCY PROVISION,"12,120.93"
Rochdale BC,27/02/2014,COMFORT CALL,Healthcare,PHYSICAL DIS & OLDER PEOPLE,OLDER PEOPLES AGENCY PROVISION,"12,103.06"
Rochdale BC,01/02/2014,COMMERCIAL BLINDS & GLAZING LIMITED,Building Construction Materials,ECONOMY AND ENVIRONMENT,NEW COUNCIL OFFICES,"1,341.93"
Rochdale BC,18/02/2014,COMMUNITY CARE LINE SERVICES,Social Community Care Supplies & Services,LEARNING DIS & MENTAL HEALTH,GENERAL,569.41
Rochdale BC,18/02/2014,COMMUNITY CARE LINE SERVICES,Social Community Care Supplies & Services,LEARNING DIS & MENTAL HEALTH,GENERAL,606.97
Rochdale BC,18/02/2014,COMMUNITY CARE LINE SERVICES,Social Community Care Supplies & Services,LEARNING DIS & MENTAL HEALTH,GENERAL,555.20
Rochdale BC,18/02/2014,COMMUNITY CARE LINE SERVICES,Social Community Care Supplies & Services,LEARNING DIS & MENTAL HEALTH,GENERAL,563.32
Rochdale BC,07/02/2014,COMMUNITY CARE LINE SERVICES,Social Community Care Supplies & Services,PHYSICAL DIS & OLDER PEOPLE,OLDER PEOPLES AGENCY PROVISION,"3,364.52"
Rochdale BC,14/02/2014,COMMUNITY CARE LINE SERVICES,Social Community Care Supplies & Services,PHYSICAL DIS & OLDER PEOPLE,OLDER PEOPLES AGENCY PROVISION,"3,412.63"
Rochdale BC,27/02/2014,COMMUNITY CARE LINE SERVICES,Social Community Care Supplies & Services,PHYSICAL DIS & OLDER PEOPLE,OLDER PEOPLES AGENCY PROVISION,"3,215.72"
Rochdale BC,28/02/2014,COMMUNITY LIGHTING PARTNERSHIP ROCHDALE LTD,Building Construction Materials,PROPERTY AND HIGHWAYS,STREET LIGHTING UNITARY CHARGE,"271,545.81"
Rochdale BC,24/02/2014,COMMUNITY PRODUCTS (UK) LIMITED,Social Community Care Supplies & Services,EARLY HELP AND SCHOOLS,WOODLAND CHILDRENS CENTRE,920.00
Rochdale BC,17/02/2014,CONCATENO UK LTD,Environmental Services,CHILDREN�S SOCIAL CARE,CSC PUBLIC LAW PROCEEDINGS EXTERNAL FEES,"2,360.00"
Rochdale BC,17/02/2014,CONNECT CARS (MIDDLETON) LIMITED,Public Transport,ECONOMY AND ENVIRONMENT,EDUCATION HOME TO SCHOOL,917.50
Rochdale BC,17/02/2014,CONNECT CARS (MIDDLETON) LIMITED,Public Transport,ECONOMY AND ENVIRONMENT,EDUCATION HOME TO SCHOOL,917.50
Rochdale BC,17/02/2014,CONNECT CARS (MIDDLETON) LIMITED,Public Transport,ECONOMY AND ENVIRONMENT,EDUCATION HOME TO SCHOOL,910.70
Rochdale BC,21/02/2014,CONNECT CARS (MIDDLETON) LIMITED,Public Transport,ECONOMY AND ENVIRONMENT,EDUCATION HOME TO SCHOOL,917.50
Rochdale BC,07/02/2014,CO-OPERATIVE BANK PLC,Financial Services,CUSTOMERS & CORPORATE SERVICES,LEGAL SERVICES,"1,413.00"
Rochdale BC,01/02/2014,CORE ASSETS CHILDRENS SERVICES LTD,Social Community Care Supplies & Services,EARLY HELP AND SCHOOLS,SHORT BREAKS REVENUE,970.33
Rochdale BC,18/02/2014,CORONA ENERGY RETAIL 4 LIMITED,Utilities,ECONOMY AND ENVIRONMENT,BALDERSTONE DEMOLITION,751.20
Rochdale BC,21/02/2014,CORONA ENERGY RETAIL 4 LIMITED,Utilities,ECONOMY AND ENVIRONMENT,BALDERSTONE DEMOLITION,"1,270.07"
Rochdale BC,21/02/2014,CORONA ENERGY RETAIL 4 LIMITED,Utilities,ECONOMY AND ENVIRONMENT,BALDERSTONE DEMOLITION,"1,229.10"
Rochdale BC,21/02/2014,CORONA ENERGY RETAIL 4 LIMITED,Utilities,ECONOMY AND ENVIRONMENT,BALDERSTONE DEMOLITION,"1,270.07"
Rochdale BC,21/02/2014,CORONA ENERGY RETAIL 4 LIMITED,Utilities,ECONOMY AND ENVIRONMENT,BALDERSTONE DEMOLITION,614.55
Rochdale BC,20/02/2014,CORONA ENERGY RETAIL 4 LIMITED,Utilities,ECONOMY AND ENVIRONMENT,CEMETERIES GENERAL,"3,956.04"
Rochdale BC,20/02/2014,CORONA ENERGY RETAIL 4 LIMITED,Utilities,ECONOMY AND ENVIRONMENT,CEMETERIES GENERAL,"1,438.94"
Rochdale BC,20/02/2014,CORONA ENERGY RETAIL 4 LIMITED,Utilities,CHILDREN�S SOCIAL CARE,CONTACT OFFICERS,658.11
Rochdale BC,18/02/2014,CORONA ENERGY RETAIL 4 LIMITED,Utilities,CHILDREN�S SOCIAL CARE,CROSSFIELD MILL,768.39
Rochdale BC,20/02/2014,CORONA ENERGY RETAIL 4 LIMITED,Utilities,ECONOMY AND ENVIRONMENT,DEPOT GREEN LANE GENERAL,"1,807.17"
Rochdale BC,20/02/2014,CORONA ENERGY RETAIL 4 LIMITED,Utilities,ECONOMY AND ENVIRONMENT,EMPLOYMENT LINKS CENTRE H,528.89
Rochdale BC,20/02/2014,CORONA ENERGY RETAIL 4 LIMITED,Utilities,LEARNING DIS & MENTAL HEALTH,GATEWAY,714.58
Rochdale BC,18/02/2014,CORONA ENERGY RETAIL 4 LIMITED,Utilities,ECONOMY AND ENVIRONMENT,GREAT HOWARTH HOSTEL,"1,022.92"
Rochdale BC,20/02/2014,CORONA ENERGY RETAIL 4 LIMITED,Utilities,CUSTOMERS & CORPORATE SERVICES,HEALTH & SAFETY GENERAL,762.40
Rochdale BC,20/02/2014,CORONA ENERGY RETAIL 4 LIMITED,Utilities,CUSTOMERS & CORPORATE SERVICES,HEYWOOD LIBRARY,845.34
Rochdale BC,20/02/2014,CORONA ENERGY RETAIL 4 LIMITED,Utilities,LEARNING DIS & MENTAL HEALTH,LD PROVIDER MANAGEMENT & ADMIN,"1,448.08"
Rochdale BC,20/02/2014,CORONA ENERGY RETAIL 4 LIMITED,Utilities,ECONOMY AND ENVIRONMENT,LEOPOLD COURT,"1,140.36"
Rochdale BC,18/02/2014,CORONA ENERGY RETAIL 4 LIMITED,Utilities,CUSTOMERS & CORPORATE SERVICES,LITTLEBOROUGH LIBRARY,"1,206.66"
Rochdale BC,18/02/2014,CORONA ENERGY RETAIL 4 LIMITED,Utilities,CUSTOMERS & CORPORATE SERVICES,LITTLEBOROUGH LIBRARY,"1,121.69"
Rochdale BC,19/02/2014,CORONA ENERGY RETAIL 4 LIMITED,Utilities,CUSTOMERS & CORPORATE SERVICES,LITTLEBOROUGH LIBRARY,"1,034.71"
Rochdale BC,19/02/2014,CORONA ENERGY RETAIL 4 LIMITED,Utilities,CUSTOMERS & CORPORATE SERVICES,LITTLEBOROUGH LIBRARY,718.05
Rochdale BC,19/02/2014,CORONA ENERGY RETAIL 4 LIMITED,Utilities,CUSTOMERS & CORPORATE SERVICES,LITTLEBOROUGH LIBRARY,"1,176.03"
Rochdale BC,19/02/2014,CORONA ENERGY RETAIL 4 LIMITED,Utilities,CUSTOMERS & CORPORATE SERVICES,LITTLEBOROUGH LIBRARY,534.84
Rochdale BC,19/02/2014,CORONA ENERGY RETAIL 4 LIMITED,Utilities,CUSTOMERS & CORPORATE SERVICES,LITTLEBOROUGH LIBRARY,"1,207.92"
Rochdale BC,19/02/2014,CORONA ENERGY RETAIL 4 LIMITED,Utilities,CUSTOMERS & CORPORATE SERVICES,LITTLEBOROUGH LIBRARY,868.78
Rochdale BC,19/02/2014,CORONA ENERGY RETAIL 4 LIMITED,Utilities,CUSTOMERS & CORPORATE SERVICES,LITTLEBOROUGH LIBRARY,621.50
Rochdale BC,20/02/2014,CORONA ENERGY RETAIL 4 LIMITED,Utilities,CUSTOMERS & CORPORATE SERVICES,LITTLEBOROUGH LIBRARY,"1,300.78"
Rochdale BC,20/02/2014,CORONA ENERGY RETAIL 4 LIMITED,Utilities,EARLY HELP AND SCHOOLS,NEWBOLD CHILDRENS CENTRE,615.21
Rochdale BC,18/02/2014,CORONA ENERGY RETAIL 4 LIMITED,Utilities,PHYSICAL DIS & OLDER PEOPLE,SPRINGHILL EMI UNIT,"1,301.86"
Rochdale BC,18/02/2014,CORONA ENERGY RETAIL 4 LIMITED,Utilities,ECONOMY AND ENVIRONMENT,TELEGRAPH HOUSE SERVICE CHARGE ACCOUNT,"3,846.33"
Rochdale BC,20/02/2014,CORONA ENERGY RETAIL 4 LIMITED,Utilities,ECONOMY AND ENVIRONMENT,TOWN HALL,"6,082.78"
Rochdale BC,20/02/2014,CORONA ENERGY RETAIL 4 LIMITED,Utilities,CHILDREN�S SOCIAL CARE,TOWNHEAD,947.63
Rochdale BC,20/02/2014,CORONA ENERGY RETAIL 4 LIMITED,Utilities,PHYSICAL DIS & OLDER PEOPLE,TUDOR COURT REHAB UNIT,"1,433.84"
Rochdale BC,18/02/2014,CORONA ENERGY RETAIL 4 LIMITED,Utilities,CUSTOMERS & CORPORATE SERVICES,WHEATSHEAF LIBRARY,"1,355.68"
Rochdale BC,20/02/2014,CORONA ENERGY RETAIL 4 LIMITED,Utilities,PHYSICAL DIS & OLDER PEOPLE,WOODCLOUGH,655.83
Rochdale BC,10/02/2014,COSY TOES CHILDCARE LIMITED,Social Community Care Supplies & Services,EARLY HELP AND SCHOOLS,FAMILY LITERACY PROJECT,720.00
Rochdale BC,11/02/2014,COSY TOES CHILDCARE LIMITED,Social Community Care Supplies & Services,EARLY HELP AND SCHOOLS,FAMILY LITERACY PROJECT,"1,535.00"
Rochdale BC,17/02/2014,COSY TOES CHILDCARE LIMITED,Social Community Care Supplies & Services,EARLY HELP AND SCHOOLS,FAMILY LITERACY PROJECT,895.00
Rochdale BC,17/02/2014,COSY TOES CHILDCARE LIMITED,Social Community Care Supplies & Services,EARLY HELP AND SCHOOLS,PARENTING RESOURCES GENERAL,540.00
Rochdale BC,11/02/2014,COZY CARS,Public Transport,ECONOMY AND ENVIRONMENT,EDUCATION HOME TO SCHOOL,640.00
Rochdale BC,11/02/2014,COZY CARS,Public Transport,ECONOMY AND ENVIRONMENT,EDUCATION HOME TO SCHOOL,"1,152.00"
Rochdale BC,11/02/2014,COZY CARS,Public Transport,ECONOMY AND ENVIRONMENT,EDUCATION HOME TO SCHOOL,"1,152.00"
Rochdale BC,06/02/2014,CRICK SOFTWARE LIMITED,Information Communication Technology,EARLY HELP AND SCHOOLS,SEN SUPPORT MAINSTREAM  LEA,"6,517.50"
Rochdale BC,11/02/2014,CRIMBLE CROFT PLAYGROUP,Financial Services,EARLY HELP AND SCHOOLS,MTCE OF INCLUSIVE CHILDCARE PLACES,605.00
Rochdale BC,28/02/2014,CROSSGATES PRIMARY SCHOOL,Financial Services,EARLY HELP AND SCHOOLS,SCHOOL IMPROVEMENT INTERVENTION SUPPORT,"6,600.00"
Rochdale BC,01/02/2014,CROSSROADS CARE IN GREATER MANCHESTER,Social Community Care Supplies & Services,EARLY HELP AND SCHOOLS,CROSSROADS,540.00
Rochdale BC,01/02/2014,CROSSROADS CARE IN GREATER MANCHESTER,Social Community Care Supplies & Services,EARLY HELP AND SCHOOLS,CROSSROADS,"2,689.88"
Rochdale BC,27/02/2014,CROSSROADS CARE IN GREATER MANCHESTER,Social Community Care Supplies & Services,EARLY HELP AND SCHOOLS,CROSSROADS,"4,104.00"
Rochdale BC,27/02/2014,CROSSROADS CARE IN GREATER MANCHESTER,Social Community Care Supplies & Services,EARLY HELP AND SCHOOLS,CROSSROADS,553.50
Rochdale BC,28/02/2014,CROSSROADS CARE IN GREATER MANCHESTER,Social Community Care Supplies & Services,EARLY HELP AND SCHOOLS,CROSSROADS,513.00
Rochdale BC,05/02/2014,CROSSROADS CARE IN GREATER MANCHESTER,Social Community Care Supplies & Services,LEARNING DIS & MENTAL HEALTH,LD FORUM - HOME SUPPORT,"1,188.73"
Rochdale BC,05/02/2014,CROSSROADS CARE IN GREATER MANCHESTER,Social Community Care Supplies & Services,LEARNING DIS & MENTAL HEALTH,LD FORUM - HOME SUPPORT,"1,090.44"
Rochdale BC,07/02/2014,CROSSROADS CARE IN GREATER MANCHESTER,Social Community Care Supplies & Services,LEARNING DIS & MENTAL HEALTH,LD FORUM - HOME SUPPORT,715.58
Rochdale BC,19/02/2014,CROSSROADS CARE IN GREATER MANCHESTER,Social Community Care Supplies & Services,LEARNING DIS & MENTAL HEALTH,LD FORUM - HOME SUPPORT,867.83
Rochdale BC,11/02/2014,CROSSROADS CARE IN GREATER MANCHESTER,Social Community Care Supplies & Services,LEARNING DIS & MENTAL HEALTH,LD FORUM - PERSONAL BUDGETS,"1,196.69"
Rochdale BC,07/02/2014,CROSSROADS CARE IN GREATER MANCHESTER,Social Community Care Supplies & Services,PHYSICAL DIS & OLDER PEOPLE,OLDER PEOPLES AGENCY PROVISION,978.05
Rochdale BC,14/02/2014,CROSSROADS CARE IN GREATER MANCHESTER,Social Community Care Supplies & Services,PHYSICAL DIS & OLDER PEOPLE,OLDER PEOPLES AGENCY PROVISION,"1,483.32"
Rochdale BC,27/02/2014,CROSSROADS CARE IN GREATER MANCHESTER,Social Community Care Supplies & Services,PHYSICAL DIS & OLDER PEOPLE,OLDER PEOPLES AGENCY PROVISION,"1,460.99"
Rochdale BC,01/02/2014,CROSSROADS CARE IN GREATER MANCHESTER,Social Community Care Supplies & Services,EARLY HELP AND SCHOOLS,SHORT BREAKS REVENUE,"3,341.67"
Rochdale BC,04/02/2014,CTRL M/C & M/C CHILDRENS UNI HOSP NHS TR,Healthcare,CUSTOMERS & CORPORATE SERVICES,CORONERS SERVICE GENERAL,"3,652.02"
Rochdale BC,20/02/2014,CTRL M/C & M/C CHILDRENS UNI HOSP NHS TR,Healthcare,PUBLIC HEALTH,SEXUAL HEALTH SERVICES,"29,901.00"
Rochdale BC,11/02/2014,CUTGATE PLAYGROUP,Financial Services,EARLY HELP AND SCHOOLS,MTCE OF INCLUSIVE CHILDCARE PLACES,660.00
Rochdale BC,05/02/2014,D K TRAVEL,Human Resources,ECONOMY AND ENVIRONMENT,EDUCATION HOME TO SCHOOL,"3,078.00"
Rochdale BC,01/02/2014,D M WINDOWS AND DOORS LTD,Building Construction Materials,ECONOMY AND ENVIRONMENT,LOCK 50 (55K PA),"1,140.00"
Rochdale BC,05/02/2014,D W TAYLOR                           (S),Unclassifiable,PHYSICAL DIS & OLDER PEOPLE,DISABLED FACILITIES GRANT,"1,385.00"
Rochdale BC,18/02/2014,D W TAYLOR                           (S),Unclassifiable,PHYSICAL DIS & OLDER PEOPLE,DISABLED FACILITIES GRANT,"3,400.00"
Rochdale BC,14/02/2014,DAISY COMMUNICATIONS,Information Communication Technology,CUSTOMERS & CORPORATE SERVICES,THIRD PARTY CONTRACTS,"1,955.97"
Rochdale BC,13/02/2014,DALE INDUSTRIAL SERVICES LIMITED,Public Transport,ECONOMY AND ENVIRONMENT,EDUCATION HOME TO SCHOOL,"6,872.00"
Rochdale BC,27/02/2014,DALE INDUSTRIAL SERVICES LIMITED,Public Transport,ECONOMY AND ENVIRONMENT,EDUCATION HOME TO SCHOOL,"11,640.00"
Rochdale BC,27/02/2014,DALE INDUSTRIAL SERVICES LIMITED,Public Transport,ECONOMY AND ENVIRONMENT,EDUCATION HOME TO SCHOOL,"5,259.00"
Rochdale BC,03/02/2014,DALEPEAK LIMITED,Social Community Care Supplies & Services,CHILDREN�S SOCIAL CARE,EXTERNAL RESIDENTIAL PLACEMENTS,"10,628.66"
Rochdale BC,03/02/2014,DALEPEAK LIMITED,Social Community Care Supplies & Services,CHILDREN�S SOCIAL CARE,EXTERNAL RESIDENTIAL PLACEMENTS,"10,097.01"
Rochdale BC,11/02/2014,DB ROCHDALE LTD,Unclassifiable,LEARNING DIS & MENTAL HEALTH,GENERAL,852.50
Rochdale BC,05/02/2014,DCT CIVIL ENGINEERING LTD,"Works - Construction, Repair & Maintenance",EARLY HELP AND SCHOOLS,Ashfield Valley playground subsidence,"2,358.35"
Rochdale BC,17/02/2014,DEBONAIR LANGUAGES LTD,Human Resources,CHILDREN�S SOCIAL CARE,ACCESS AND SUPPORT PREVENTIVE,734.90
Rochdale BC,17/02/2014,DEPAUL TRUST,Social Community Care Supplies & Services,CHILDREN�S SOCIAL CARE,YOUNG PEOPLES SUPPORT TEAM,"3,096.00"
Rochdale BC,17/02/2014,DEPAUL TRUST,Social Community Care Supplies & Services,CHILDREN�S SOCIAL CARE,YPST SUPPORTING PEOPLE FUNDING,"1,360.00"
Rochdale BC,11/02/2014,DERBY STREET NURSERY UNIT,Financial Services,EARLY HELP AND SCHOOLS,MTCE OF INCLUSIVE CHILDCARE PLACES,605.00
Rochdale BC,19/02/2014,DIOCESE OF SALFORD (DFC),Financial Services,EARLY HELP AND SCHOOLS,RC DIOCESE - PLACE PLANNING,"12,378.79"
Rochdale BC,26/02/2014,DIOCESE OF SALFORD (DFC),Financial Services,EARLY HELP AND SCHOOLS,RC DIOCESE - PLACE PLANNING,"42,158.40"
Rochdale BC,07/02/2014,DIRECT HEALTH HOMECARE LIMITED,Social Community Care Supplies & Services,PHYSICAL DIS & OLDER PEOPLE,OLDER PEOPLES AGENCY PROVISION,"5,154.98"
Rochdale BC,14/02/2014,DIRECT HEALTH HOMECARE LIMITED,Social Community Care Supplies & Services,PHYSICAL DIS & OLDER PEOPLE,OLDER PEOPLES AGENCY PROVISION,"4,660.07"
Rochdale BC,27/02/2014,DIRECT HEALTH HOMECARE LIMITED,Social Community Care Supplies & Services,PHYSICAL DIS & OLDER PEOPLE,OLDER PEOPLES AGENCY PROVISION,"5,596.91"
Rochdale BC,06/02/2014,DISCLOSURE & BARRING SERVICE,Public Bodies,ECONOMY AND ENVIRONMENT,REG LIC  GENERAL,"1,188.00"
Rochdale BC,17/02/2014,DONNY BRYAN,Unclassifiable,PHYSICAL DIS & OLDER PEOPLE,OLDER PEOPLES AGENCY PROVISION,"2,084.00"
Rochdale BC,05/02/2014,DR A U OYEGADE,Healthcare,CUSTOMERS & CORPORATE SERVICES,CORONERS SERVICE GENERAL,"1,853.15"
Rochdale BC,05/02/2014,DR B BENATAR,Healthcare,CUSTOMERS & CORPORATE SERVICES,CORONERS SERVICE GENERAL,"2,232.00"
Rochdale BC,27/02/2014,DR G STOCKTON & DR L THOMPSON,Healthcare,PUBLIC HEALTH,SEXUAL HEALTH SERVICES,830.37
Rochdale BC,05/02/2014,DR GUY BETTS,Healthcare,CUSTOMERS & CORPORATE SERVICES,CORONERS SERVICE GENERAL,706.20
Rochdale BC,06/02/2014,DR JO MCPARTLAND,Healthcare,CUSTOMERS & CORPORATE SERVICES,CORONERS SERVICE GENERAL,595.90
Rochdale BC,17/02/2014,DR THOMASON & DR MARTIN,Healthcare,CUSTOMERS & CORPORATE SERVICES,LOCAL ENHANCED SERVICES - LES,540.00
Rochdale BC,27/02/2014,DR THOMASON & MARTIN PMS,Healthcare,PUBLIC HEALTH,SEXUAL HEALTH SERVICES,960.21
Rochdale BC,27/02/2014,DR Z MOHAMMED,Healthcare,PUBLIC HEALTH,SEXUAL HEALTH SERVICES,919.35
Rochdale BC,27/02/2014,DRUGMART PHARMACY,Healthcare,PUBLIC HEALTH,SEXUAL HEALTH SERVICES,588.96
Rochdale BC,18/02/2014,DUNSTER CONSULTING LIMITED,Consultancy,ECONOMY AND ENVIRONMENT,TOWN CENTRE EAST FEASIBILITY 51K 07/08,"1,605.00"
Rochdale BC,05/02/2014,DYSON INSULATIONS LTD,Vehicle Management,ECONOMY AND ENVIRONMENT,ENERGY EFFICIENCY MEASURE,"25,419.62"
Rochdale BC,05/02/2014,DYSON INSULATIONS LTD,Vehicle Management,ECONOMY AND ENVIRONMENT,ENERGY EFFICIENCY MEASURE,"9,653.80"
Rochdale BC,10/02/2014,DYSON INSULATIONS LTD,Vehicle Management,ECONOMY AND ENVIRONMENT,RETROFIT,"9,720.00"
Rochdale BC,11/02/2014,E MARLAND CHILDRENS RESPITE CARE LIMITED,Social Community Care Supplies & Services,EARLY HELP AND SCHOOLS,DISABILITIES RESPITE CARE,512.00
Rochdale BC,01/02/2014,EARLY BREAK,Social Community Care Supplies & Services,CUSTOMERS & CORPORATE SERVICES,DRUGS & ALCOHOL - SPECIALIST D&A SRVC,"35,000.00"
Rochdale BC,10/02/2014,EC SAFEGUARDING CONSULTANCY LTD,Consultancy,CHILDREN�S SOCIAL CARE,MANAGEMENT STRUCTURE,750.00
Rochdale BC,11/02/2014,EC SAFEGUARDING CONSULTANCY LTD,Consultancy,CHILDREN�S SOCIAL CARE,MANAGEMENT STRUCTURE,750.00
Rochdale BC,11/02/2014,EC SAFEGUARDING CONSULTANCY LTD,Consultancy,CHILDREN�S SOCIAL CARE,MANAGEMENT STRUCTURE,"5,545.00"
Rochdale BC,17/02/2014,EC SAFEGUARDING CONSULTANCY LTD,Consultancy,CHILDREN�S SOCIAL CARE,MANAGEMENT STRUCTURE,750.00
Rochdale BC,01/02/2014,EDEN CARE (NORTH WEST) LTD,Social Community Care Supplies & Services,EARLY HELP AND SCHOOLS,DISABILITIES RESPITE CARE,"3,465.00"
Rochdale BC,01/02/2014,EDEN CARE (NORTH WEST) LTD,Social Community Care Supplies & Services,EARLY HELP AND SCHOOLS,DISABILITIES RESPITE CARE,"1,442.00"
Rochdale BC,01/02/2014,EDEN CARE (NORTH WEST) LTD,Social Community Care Supplies & Services,EARLY HELP AND SCHOOLS,DISABILITIES RESPITE CARE,990.00
Rochdale BC,18/02/2014,EDEN CARE (NORTH WEST) LTD,Social Community Care Supplies & Services,EARLY HELP AND SCHOOLS,DISABILITIES RESPITE CARE,990.00
Rochdale BC,18/02/2014,EDEN CARE (NORTH WEST) LTD,Social Community Care Supplies & Services,EARLY HELP AND SCHOOLS,DISABILITIES RESPITE CARE,"1,107.00"
Rochdale BC,18/02/2014,EDEN CARE (NORTH WEST) LTD,Social Community Care Supplies & Services,EARLY HELP AND SCHOOLS,DISABILITIES RESPITE CARE,"1,442.00"
Rochdale BC,27/02/2014,EDEN CARE (NORTH WEST) LTD,Social Community Care Supplies & Services,EARLY HELP AND SCHOOLS,DISABILITIES RESPITE CARE,770.00
Rochdale BC,27/02/2014,EDEN CARE (NORTH WEST) LTD,Social Community Care Supplies & Services,EARLY HELP AND SCHOOLS,DISABILITIES RESPITE CARE,525.00
Rochdale BC,27/02/2014,EDEN CARE (NORTH WEST) LTD,Social Community Care Supplies & Services,EARLY HELP AND SCHOOLS,DISABILITIES RESPITE CARE,768.75
Rochdale BC,27/02/2014,EDEN CARE (NORTH WEST) LTD,Social Community Care Supplies & Services,EARLY HELP AND SCHOOLS,DISABILITIES RESPITE CARE,750.00
Rochdale BC,27/02/2014,EDEN CARE (NORTH WEST) LTD,Social Community Care Supplies & Services,EARLY HELP AND SCHOOLS,DISABILITIES RESPITE CARE,535.00
Rochdale BC,19/02/2014,EDEN CARE (NORTH WEST) LTD,Social Community Care Supplies & Services,LEARNING DIS & MENTAL HEALTH,LD FORUM - PERSONAL BUDGETS,"1,472.00"
Rochdale BC,19/02/2014,EDEN CARE (NORTH WEST) LTD,Social Community Care Supplies & Services,LEARNING DIS & MENTAL HEALTH,LD FORUM - PERSONAL BUDGETS,"1,472.00"
Rochdale BC,19/02/2014,EDEN CARE (NORTH WEST) LTD,Social Community Care Supplies & Services,LEARNING DIS & MENTAL HEALTH,LD FORUM - PERSONAL BUDGETS,"1,472.00"
Rochdale BC,19/02/2014,EDEN CARE (NORTH WEST) LTD,Social Community Care Supplies & Services,LEARNING DIS & MENTAL HEALTH,LD FORUM - PERSONAL BUDGETS,"1,344.00"
Rochdale BC,19/02/2014,EDEN CARE (NORTH WEST) LTD,Social Community Care Supplies & Services,LEARNING DIS & MENTAL HEALTH,LD FORUM - PERSONAL BUDGETS,"1,472.00"
Rochdale BC,19/02/2014,EDEN CARE (NORTH WEST) LTD,Social Community Care Supplies & Services,LEARNING DIS & MENTAL HEALTH,LD FORUM - PERSONAL BUDGETS,"1,472.00"
Rochdale BC,19/02/2014,EDEN CARE (NORTH WEST) LTD,Social Community Care Supplies & Services,LEARNING DIS & MENTAL HEALTH,LD FORUM - PERSONAL BUDGETS,"1,472.00"
Rochdale BC,19/02/2014,EDEN CARE (NORTH WEST) LTD,Social Community Care Supplies & Services,LEARNING DIS & MENTAL HEALTH,LD FORUM - PERSONAL BUDGETS,"1,472.00"
Rochdale BC,19/02/2014,EDEN CARE (NORTH WEST) LTD,Social Community Care Supplies & Services,LEARNING DIS & MENTAL HEALTH,LD FORUM - PERSONAL BUDGETS,"1,472.00"
Rochdale BC,19/02/2014,EDEN CARE (NORTH WEST) LTD,Social Community Care Supplies & Services,LEARNING DIS & MENTAL HEALTH,LD FORUM - PERSONAL BUDGETS,"1,184.00"
Rochdale BC,19/02/2014,EDEN CARE (NORTH WEST) LTD,Social Community Care Supplies & Services,LEARNING DIS & MENTAL HEALTH,LD FORUM - PERSONAL BUDGETS,"1,472.00"
Rochdale BC,01/02/2014,EDEN CARE (NORTH WEST) LTD,Social Community Care Supplies & Services,EARLY HELP AND SCHOOLS,SHORT BREAKS REVENUE,630.00
Rochdale BC,01/02/2014,EDEN CARE (NORTH WEST) LTD,Social Community Care Supplies & Services,EARLY HELP AND SCHOOLS,SHORT BREAKS REVENUE,630.00
Rochdale BC,27/02/2014,EDEN CARE (NORTH WEST) LTD,Social Community Care Supplies & Services,EARLY HELP AND SCHOOLS,SHORT BREAKS REVENUE,630.00
Rochdale BC,27/02/2014,EDEN CARE (NORTH WEST) LTD,Social Community Care Supplies & Services,EARLY HELP AND SCHOOLS,SHORT BREAKS REVENUE,630.00
Rochdale BC,27/02/2014,EDENFIELD ROAD SURGERY,Healthcare,PUBLIC HEALTH,SEXUAL HEALTH SERVICES,858.06
Rochdale BC,17/02/2014,EDF ENERGY 1 LIMITED,Vehicle Management,ECONOMY AND ENVIRONMENT,1 RIVERSIDE,"32,481.90"
Rochdale BC,11/02/2014,EDF ENERGY 1 LIMITED,Vehicle Management,ECONOMY AND ENVIRONMENT,CEMETERIES GENERAL,792.58
Rochdale BC,20/02/2014,EDF ENERGY 1 LIMITED,Vehicle Management,ECONOMY AND ENVIRONMENT,TOWN HALL,"2,802.11"
Rochdale BC,26/02/2014,EDGE SERVICES,Health & Safety�,EARLY HELP AND SCHOOLS,RANS  MANAGEMENT,720.00
Rochdale BC,13/02/2014,ELECTRICAL CONTRACTORS ASSOCIATION,Building Construction Materials,PROPERTY AND HIGHWAYS,BUSINESS SUPPORT TEAM,692.25
Rochdale BC,28/02/2014,EMAS UK,Education,EARLY HELP AND SCHOOLS,EQUALITIES TEAM RESOURCES,990.00
Rochdale BC,27/02/2014,EMPLOYEE ADVISORY RESOURCE LTD,Human Resources,CUSTOMERS & CORPORATE SERVICES,MANAGEMENT ADMIN,"3,250.00"
Rochdale BC,07/02/2014,ENERGIZE RECRUITMENT SOLUTIONS LTD,Human Resources,CUSTOMERS & CORPORATE SERVICES,REFRESH PROGRAMME,750.00
Rochdale BC,14/02/2014,ENERGIZE RECRUITMENT SOLUTIONS LTD,Human Resources,CUSTOMERS & CORPORATE SERVICES,REFRESH PROGRAMME,750.00
Rochdale BC,20/02/2014,ENERGIZE RECRUITMENT SOLUTIONS LTD,Human Resources,CUSTOMERS & CORPORATE SERVICES,REFRESH PROGRAMME,750.00
Rochdale BC,26/02/2014,ERNST & YOUNG LLP,Consultancy,EARLY HELP AND SCHOOLS,BSF DEVELOPMENT (MOD0809),"2,244.57"
Rochdale BC,26/02/2014,ERNST & YOUNG LLP,Consultancy,EARLY HELP AND SCHOOLS,BSF DEVELOPMENT (MOD0809),"1,690.50"
Rochdale BC,25/02/2014,EVAC+CHAIR INTERNATIONAL LIMITED,Health & Safety�,ECONOMY AND ENVIRONMENT,1 RIVERSIDE,805.00
Rochdale BC,18/02/2014,EVAC+CHAIR INTERNATIONAL LIMITED,Health & Safety�,CHILDREN�S SOCIAL CARE,CROSSFIELD MILL,"5,035.00"
Rochdale BC,13/02/2014,F NEEDHAM,Catering,ECONOMY AND ENVIRONMENT,1 RIVERSIDE,"1,155.00"
Rochdale BC,17/02/2014,F R MONKHOUSE LIMITED,Clothing,EARLY HELP AND SCHOOLS,(TYS) TARGETED YOUTH SUPPORT- EXT FUNDED,500.00
Rochdale BC,04/02/2014,F R SHARROCK LIMITED,Horticultural,ECONOMY AND ENVIRONMENT,MECHANICS GENERAL MOWER R,653.01
Rochdale BC,04/02/2014,F R SHARROCK LIMITED,Horticultural,ECONOMY AND ENVIRONMENT,MECHANICS GENERAL MOWER R,500.00
Rochdale BC,04/02/2014,F R SHARROCK LIMITED,Horticultural,ECONOMY AND ENVIRONMENT,MECHANICS GENERAL MOWER R,507.95
Rochdale BC,25/02/2014,F R SHARROCK LIMITED,Horticultural,ECONOMY AND ENVIRONMENT,MECHANICS GENERAL MOWER R,605.93
Rochdale BC,27/02/2014,F S MOULT & SON,Building Construction Materials,ECONOMY AND ENVIRONMENT,BALDERSTONE DEMOLITION,"2,225.93"
Rochdale BC,10/02/2014,F S MOULT & SON,Building Construction Materials,ECONOMY AND ENVIRONMENT,ENERGY EFFICIENCY MEASURE,500.00
Rochdale BC,19/02/2014,F W SHERRATT LTD,"Works - Construction, Repair & Maintenance",PROPERTY AND HIGHWAYS,TOD RD RETAINING WALL NO 10,"3,326.08"
Rochdale BC,05/02/2014,F W SHERRATT LTD,"Works - Construction, Repair & Maintenance",PROPERTY AND HIGHWAYS,Wardle Rd retaining wall,"29,793.18"
Rochdale BC,28/02/2014,F W SHERRATT LTD,"Works - Construction, Repair & Maintenance",PROPERTY AND HIGHWAYS,Wardle Rd retaining wall,"51,059.25"
Rochdale BC,13/02/2014,FACE RECORDING & MEASUREMENT SYSTEMS LTD,Facilities & Management Services,LEARNING DIS & MENTAL HEALTH,ADULT CARE ADMIN,"7,460.00"
Rochdale BC,13/02/2014,FACE RECORDING & MEASUREMENT SYSTEMS LTD,Facilities & Management Services,LEARNING DIS & MENTAL HEALTH,ADULT CARE ADMIN,"27,319.00"
Rochdale BC,05/02/2014,FAISAL S BUTT,Unclassifiable,ECONOMY AND ENVIRONMENT,EDUCATION HOME TO SCHOOL,"1,440.00"
Rochdale BC,19/02/2014,FAISAL S BUTT,Unclassifiable,ECONOMY AND ENVIRONMENT,EDUCATION HOME TO SCHOOL,800.00
Rochdale BC,10/02/2014,FALINGE PARK BOWLING GREENS MANAGEMENT COMMITTEE,Arts & Leisure Services,CUSTOMERS & CORPORATE SERVICES,CLEAN & GREEN PRIORITY FUND,610.00
Rochdale BC,24/02/2014,FAMILY ACTION,Financial Services,CHILDREN�S SOCIAL CARE,YOUNG CARERS,"40,375.00"
Rochdale BC,24/02/2014,FAMILY ACTION,Financial Services,CHILDREN�S SOCIAL CARE,YOUNG CARERS,"40,375.00"
Rochdale BC,24/02/2014,FAMILY ACTION,Financial Services,CHILDREN�S SOCIAL CARE,YOUNG CARERS,"40,375.00"
Rochdale BC,10/02/2014,FIRST RESERVE,Financial Services,LEARNING DIS & MENTAL HEALTH,ADULT PLACEMENT SCHEME,828.64
Rochdale BC,11/02/2014,FIRST STEPS NURSERY,Financial Services,EARLY HELP AND SCHOOLS,MTCE OF INCLUSIVE CHILDCARE PLACES,715.00
Rochdale BC,11/02/2014,FISHERFIELD FARM NURSERY,Financial Services,EARLY HELP AND SCHOOLS,MTCE OF INCLUSIVE CHILDCARE PLACES,715.00
Rochdale BC,05/02/2014,FLINT BISHOP LLP,Legal Services,PHYSICAL DIS & OLDER PEOPLE,OLDER PEOPLES AGENCY PROVISION,"2,242.08"
Rochdale BC,01/02/2014,FOOTSTEPS A PATH TO CHANGE,Social Community Care Supplies & Services,CHILDREN�S SOCIAL CARE,EXTERNAL RESIDENTIAL PLACEMENTS,"15,500.00"
Rochdale BC,04/02/2014,FORENSICS LTD,Environmental Services,CUSTOMERS & CORPORATE SERVICES,CORONERS SERVICE GENERAL,"2,735.00"
Rochdale BC,04/02/2014,FORENSICS LTD,Environmental Services,CUSTOMERS & CORPORATE SERVICES,CORONERS SERVICE GENERAL,"1,160.00"
Rochdale BC,05/02/2014,FORENSICS LTD,Environmental Services,CUSTOMERS & CORPORATE SERVICES,CORONERS SERVICE GENERAL,"1,340.00"
Rochdale BC,28/02/2014,FREEDOM COMMUNICATIONS,Information Communication Technology,CUSTOMERS & CORPORATE SERVICES,THIRD PARTY CONTRACTS,"3,595.80"
Rochdale BC,04/02/2014,FRIENDS OF OLDER PARENT CARERS,Social Community Care Supplies & Services,LEARNING DIS & MENTAL HEALTH,CARERS COMMISSIONED SERVICES,"3,743.16"
Rochdale BC,10/02/2014,FUTURE DIRECTIONS,Financial Services,LEARNING DIS & MENTAL HEALTH,LD SUPPORTED LIVING CLUSTER1  RMBC,"139,500.00"
Rochdale BC,12/02/2014,FUTURE DIRECTIONS,Financial Services,LEARNING DIS & MENTAL HEALTH,LD SUPPORTED LIVING CLUSTER1  RMBC,"200,000.00"
Rochdale BC,17/02/2014,G M WASTE DISPOSAL AUTHORITY,Environmental Services,ECONOMY AND ENVIRONMENT,WASTE DISPOSAL LEVY,"679,000.00"
Rochdale BC,23/02/2014,G M WASTE DISPOSAL AUTHORITY,Environmental Services,ECONOMY AND ENVIRONMENT,WASTE DISPOSAL LEVY,"1,220,000.00"
Rochdale BC,05/02/2014,GARNER TOWN PLANNING,Consultancy,ECONOMY AND ENVIRONMENT,DEVELOPMENT MANAGEMENT - PLANNING APPS,"1,814.15"
Rochdale BC,26/02/2014,GATENBY SANDERSON,Consultancy,PHYSICAL DIS & OLDER PEOPLE,MANAGEMENT OP & PD,"13,051.40"
Rochdale BC,17/02/2014,GEMINI UPVC LTD,Building Construction Materials,ECONOMY AND ENVIRONMENT,MISCELLANEOUS ECR,650.00
Rochdale BC,17/02/2014,GEMINI UPVC LTD,Building Construction Materials,ECONOMY AND ENVIRONMENT,MISCELLANEOUS ECR,"2,924.17"
Rochdale BC,06/02/2014,GEMINI UPVC LTD,Building Construction Materials,ECONOMY AND ENVIRONMENT,ROCH VALE CARAVAN SITE,"1,400.00"
Rochdale BC,11/02/2014,GENESIS DAY CARE NURSERY,Financial Services,EARLY HELP AND SCHOOLS,MTCE OF INCLUSIVE CHILDCARE PLACES,715.00
Rochdale BC,14/02/2014,GENESIS DAY CARE NURSERY,Financial Services,EARLY HELP AND SCHOOLS,NURSERY EDUCATION GRANT  3YR OLDS,"7,500.00"
Rochdale BC,11/02/2014,GENESIS DAY CARE NURSERY LIMITED,Financial Services,EARLY HELP AND SCHOOLS,MTCE OF INCLUSIVE CHILDCARE PLACES,660.00
Rochdale BC,17/02/2014,GLOBE  CONSTRUCTION SERVICES LTD,"Works - Construction, Repair & Maintenance",ECONOMY AND ENVIRONMENT,TOWN CENTRE EAST FEASIBILITY 51K 07/08,"16,416.00"
Rochdale BC,21/02/2014,GLOBE  CONSTRUCTION SERVICES LTD,"Works - Construction, Repair & Maintenance",ECONOMY AND ENVIRONMENT,TOWN CENTRE EAST FEASIBILITY 51K 07/08,"29,081.00"
Rochdale BC,19/02/2014,GMCA,Financial Services,ECONOMY AND ENVIRONMENT,BAILLIE ST WEST/LW YORKSHIRE ST,"1,162.08"
Rochdale BC,19/02/2014,GMCA,Financial Services,PROPERTY AND HIGHWAYS,TURF HILL RD JUNC SIG,555.00
Rochdale BC,14/02/2014,GRAVITAS RECRUITMENT GROUP,Human Resources,CUSTOMERS & CORPORATE SERVICES,REFRESH PROGRAMME,"3,750.00"
Rochdale BC,20/02/2014,GRAVITAS RECRUITMENT GROUP,Human Resources,CUSTOMERS & CORPORATE SERVICES,REFRESH PROGRAMME,"1,781.25"
Rochdale BC,07/02/2014,GREAT CARE UK,Social Community Care Supplies & Services,PHYSICAL DIS & OLDER PEOPLE,OLDER PEOPLES AGENCY PROVISION,"2,538.52"
Rochdale BC,14/02/2014,GREAT CARE UK,Social Community Care Supplies & Services,PHYSICAL DIS & OLDER PEOPLE,OLDER PEOPLES AGENCY PROVISION,"2,537.30"
Rochdale BC,27/02/2014,GREAT CARE UK,Social Community Care Supplies & Services,PHYSICAL DIS & OLDER PEOPLE,OLDER PEOPLES AGENCY PROVISION,"2,128.66"
Rochdale BC,25/02/2014,GUARDIAN NEWS & MEDIA LTD,Human Resources,FINANCE SERVICES,PR MEDIA AND MARKETING,"3,176.00"
Rochdale BC,11/02/2014,H A BURROW,Unclassifiable,ECONOMY AND ENVIRONMENT,EDUCATION HOME TO SCHOOL,847.00
Rochdale BC,11/02/2014,H A BURROW,Unclassifiable,ECONOMY AND ENVIRONMENT,EDUCATION HOME TO SCHOOL,960.00
Rochdale BC,11/02/2014,H A BURROW,Unclassifiable,ECONOMY AND ENVIRONMENT,EDUCATION HOME TO SCHOOL,920.00
Rochdale BC,24/02/2014,H BELL & SONS (ROCHDALE) LTD,Building Construction Materials,EARLY HELP AND SCHOOLS,BUILDINGS PROGRAMME/URGENT H&S CONTINGEN,950.03
Rochdale BC,10/02/2014,H BELL & SONS (ROCHDALE) LTD,Building Construction Materials,CUSTOMERS & CORPORATE SERVICES,MIDDLETON LIBRARY,"3,853.65"
Rochdale BC,10/02/2014,H BELL & SONS (ROCHDALE) LTD,Building Construction Materials,PROPERTY AND HIGHWAYS,MIDDLETON LIBRARY ROOF 367,"18,895.25"
Rochdale BC,20/02/2014,HALAROSE LIMITED,Information Communication Technology,CUSTOMERS & CORPORATE SERVICES,REFRESH PROGRAMME,"6,613.00"
Rochdale BC,25/02/2014,HARWOOD PARK PRIMARY SCHOOL,Public Bodies,EARLY HELP AND SCHOOLS,ADDITIONAL PLACES FOR HEYWOOD TOWNSHIP,"2,032.05"
Rochdale BC,10/02/2014,HARWOOD PARK PRIMARY SCHOOL,Public Bodies,EARLY HELP AND SCHOOLS,DAY TO DAY REPAIRS & SERVICING OF PLANT,922.00
Rochdale BC,13/02/2014,HAYS SOCIAL CARE,Human Resources,CHILDREN�S SOCIAL CARE,ACCESS AND SUPPORT SOCIAL WORK,"29,122.69"
Rochdale BC,19/02/2014,HAYS SOCIAL CARE,Human Resources,CHILDREN�S SOCIAL CARE,ACCESS AND SUPPORT SOCIAL WORK,"32,215.60"
Rochdale BC,13/02/2014,HAYS SOCIAL CARE,Human Resources,CHILDREN�S SOCIAL CARE,ADOPTION PAYMENTS,"1,107.43"
Rochdale BC,19/02/2014,HAYS SOCIAL CARE,Human Resources,CHILDREN�S SOCIAL CARE,ADOPTION PAYMENTS,"1,107.43"
Rochdale BC,13/02/2014,HAYS SOCIAL CARE,Human Resources,CUSTOMERS & CORPORATE SERVICES,ADULT & CHILD CARE SOLICITORS,"1,609.12"
Rochdale BC,19/02/2014,HAYS SOCIAL CARE,Human Resources,CUSTOMERS & CORPORATE SERVICES,ADULT & CHILD CARE SOLICITORS,563.14
Rochdale BC,13/02/2014,HAYS SOCIAL CARE,Human Resources,LEARNING DIS & MENTAL HEALTH,ADULT CARE ADMIN,"1,293.15"
Rochdale BC,19/02/2014,HAYS SOCIAL CARE,Human Resources,LEARNING DIS & MENTAL HEALTH,ADULT CARE ADMIN,862.12
Rochdale BC,13/02/2014,HAYS SOCIAL CARE,Human Resources,PHYSICAL DIS & OLDER PEOPLE,ASSISTIVE TECHNOLOGY,508.60
Rochdale BC,19/02/2014,HAYS SOCIAL CARE,Human Resources,PHYSICAL DIS & OLDER PEOPLE,ASSISTIVE TECHNOLOGY,516.85
Rochdale BC,13/02/2014,HAYS SOCIAL CARE,Human Resources,CUSTOMERS & CORPORATE SERVICES,BOROUGHWIDE LIBRARIES,"1,069.60"
Rochdale BC,19/02/2014,HAYS SOCIAL CARE,Human Resources,CUSTOMERS & CORPORATE SERVICES,BOROUGHWIDE LIBRARIES,"1,168.44"
Rochdale BC,13/02/2014,HAYS SOCIAL CARE,Human Resources,PROPERTY AND HIGHWAYS,BUSINESS SUPPORT TEAM,"1,405.29"
Rochdale BC,19/02/2014,HAYS SOCIAL CARE,Human Resources,PROPERTY AND HIGHWAYS,BUSINESS SUPPORT TEAM,"2,279.43"
Rochdale BC,13/02/2014,HAYS SOCIAL CARE,Human Resources,ECONOMY AND ENVIRONMENT,CEMETERIES GENERAL,"4,425.68"
Rochdale BC,19/02/2014,HAYS SOCIAL CARE,Human Resources,ECONOMY AND ENVIRONMENT,CEMETERIES GENERAL,544.50
Rochdale BC,19/02/2014,HAYS SOCIAL CARE,Human Resources,ECONOMY AND ENVIRONMENT,CENTRAL HOMELESSNESS,"7,812.00"
Rochdale BC,19/02/2014,HAYS SOCIAL CARE,Human Resources,CHILDREN�S SOCIAL CARE,CIC ADMINISTRATION,"1,061.14"
Rochdale BC,13/02/2014,HAYS SOCIAL CARE,Human Resources,CHILDREN�S SOCIAL CARE,CIC SOCIAL WORK,"2,185.97"
Rochdale BC,19/02/2014,HAYS SOCIAL CARE,Human Resources,CHILDREN�S SOCIAL CARE,CIC SOCIAL WORK,"3,425.31"
Rochdale BC,19/02/2014,HAYS SOCIAL CARE,Human Resources,CUSTOMERS & CORPORATE SERVICES,COMMITTEE SERVICES,"1,642.07"
Rochdale BC,13/02/2014,HAYS SOCIAL CARE,Human Resources,PHYSICAL DIS & OLDER PEOPLE,COMMUNITY OCCUPATIONAL THERAPY &HANDLING,"1,529.61"
Rochdale BC,19/02/2014,HAYS SOCIAL CARE,Human Resources,PHYSICAL DIS & OLDER PEOPLE,COMMUNITY OCCUPATIONAL THERAPY &HANDLING,777.51
Rochdale BC,19/02/2014,HAYS SOCIAL CARE,Human Resources,CUSTOMERS & CORPORATE SERVICES,CORONERS SERVICE GENERAL,650.32
Rochdale BC,13/02/2014,HAYS SOCIAL CARE,Human Resources,FINANCE SERVICES,CORPORATE PROCUREMENT,605.02
Rochdale BC,19/02/2014,HAYS SOCIAL CARE,Human Resources,FINANCE SERVICES,CORPORATE PROCUREMENT,"1,581.56"
Rochdale BC,13/02/2014,HAYS SOCIAL CARE,Human Resources,FINANCE SERVICES,COUNCIL TAX LIABILITY AND RECOVERY,"1,111.10"
Rochdale BC,19/02/2014,HAYS SOCIAL CARE,Human Resources,FINANCE SERVICES,COUNCIL TAX LIABILITY AND RECOVERY,"1,111.10"
Rochdale BC,13/02/2014,HAYS SOCIAL CARE,Human Resources,CHILDREN�S SOCIAL CARE,CP SOCIAL WORK,"13,561.84"
Rochdale BC,19/02/2014,HAYS SOCIAL CARE,Human Resources,CHILDREN�S SOCIAL CARE,CP SOCIAL WORK,"7,793.49"
Rochdale BC,13/02/2014,HAYS SOCIAL CARE,Human Resources,CUSTOMERS & CORPORATE SERVICES,CSE RESOURCES,"5,213.75"
Rochdale BC,19/02/2014,HAYS SOCIAL CARE,Human Resources,CUSTOMERS & CORPORATE SERVICES,CSE RESOURCES,"4,952.89"
Rochdale BC,13/02/2014,HAYS SOCIAL CARE,Human Resources,CUSTOMERS & CORPORATE SERVICES,CUSTOMER ADVOCACY,"2,128.59"
Rochdale BC,19/02/2014,HAYS SOCIAL CARE,Human Resources,CUSTOMERS & CORPORATE SERVICES,CUSTOMER ADVOCACY,"2,600.18"
Rochdale BC,13/02/2014,HAYS SOCIAL CARE,Human Resources,FINANCE SERVICES,DEBT RECOVERY TEAM,"1,835.21"
Rochdale BC,19/02/2014,HAYS SOCIAL CARE,Human Resources,FINANCE SERVICES,DEBT RECOVERY TEAM,"1,835.33"
Rochdale BC,13/02/2014,HAYS SOCIAL CARE,Human Resources,EARLY HELP AND SCHOOLS,DISABILITIES SOCIAL WORK,"3,556.44"
Rochdale BC,19/02/2014,HAYS SOCIAL CARE,Human Resources,EARLY HELP AND SCHOOLS,DISABILITIES SOCIAL WORK,"2,357.25"
Rochdale BC,13/02/2014,HAYS SOCIAL CARE,Human Resources,ECONOMY AND ENVIRONMENT,DOMESTIC WASTE,"15,141.48"
Rochdale BC,19/02/2014,HAYS SOCIAL CARE,Human Resources,ECONOMY AND ENVIRONMENT,DOMESTIC WASTE,"3,140.27"
Rochdale BC,13/02/2014,HAYS SOCIAL CARE,Human Resources,CUSTOMERS & CORPORATE SERVICES,EDUCATION INFORMATION SYSTEMS TEAM,681.29
Rochdale BC,19/02/2014,HAYS SOCIAL CARE,Human Resources,CUSTOMERS & CORPORATE SERVICES,EDUCATION INFORMATION SYSTEMS TEAM,"2,117.08"
Rochdale BC,13/02/2014,HAYS SOCIAL CARE,Human Resources,CHILDREN�S SOCIAL CARE,EMERGENCY DUTY TEAM,"3,413.83"
Rochdale BC,19/02/2014,HAYS SOCIAL CARE,Human Resources,CHILDREN�S SOCIAL CARE,EMERGENCY DUTY TEAM,"7,112.32"
Rochdale BC,13/02/2014,HAYS SOCIAL CARE,Human Resources,ECONOMY AND ENVIRONMENT,EMPLOYMENTS LINKS,"1,551.63"
Rochdale BC,19/02/2014,HAYS SOCIAL CARE,Human Resources,ECONOMY AND ENVIRONMENT,EMPLOYMENTS LINKS,649.34
Rochdale BC,13/02/2014,HAYS SOCIAL CARE,Human Resources,ECONOMY AND ENVIRONMENT,EMPTY PROPERTY GRANT,592.39
Rochdale BC,19/02/2014,HAYS SOCIAL CARE,Human Resources,ECONOMY AND ENVIRONMENT,EMPTY PROPERTY GRANT,592.39
Rochdale BC,13/02/2014,HAYS SOCIAL CARE,Human Resources,ECONOMY AND ENVIRONMENT,FLEET MAINTENANCE,655.63
Rochdale BC,19/02/2014,HAYS SOCIAL CARE,Human Resources,ECONOMY AND ENVIRONMENT,FLEET MAINTENANCE,655.63
Rochdale BC,13/02/2014,HAYS SOCIAL CARE,Human Resources,CHILDREN�S SOCIAL CARE,FOSTERING TEAM,"3,438.46"
Rochdale BC,19/02/2014,HAYS SOCIAL CARE,Human Resources,CHILDREN�S SOCIAL CARE,FOSTERING TEAM,"3,431.96"
Rochdale BC,13/02/2014,HAYS SOCIAL CARE,Human Resources,CUSTOMERS & CORPORATE SERVICES,HEAD OF SERVICE,850.26
Rochdale BC,13/02/2014,HAYS SOCIAL CARE,Human Resources,CHILDREN�S SOCIAL CARE,HEAD OF SERVICE,678.00
Rochdale BC,19/02/2014,HAYS SOCIAL CARE,Human Resources,CUSTOMERS & CORPORATE SERVICES,HEAD OF SERVICE,850.26
Rochdale BC,13/02/2014,HAYS SOCIAL CARE,Human Resources,PROPERTY AND HIGHWAYS,HIGHWAYS CAPITAL INVESTMENT,596.39
Rochdale BC,19/02/2014,HAYS SOCIAL CARE,Human Resources,PROPERTY AND HIGHWAYS,HIGHWAYS CAPITAL INVESTMENT,571.31
Rochdale BC,13/02/2014,HAYS SOCIAL CARE,Human Resources,CUSTOMERS & CORPORATE SERVICES,LITIGATION SECTION,"1,868.32"
Rochdale BC,19/02/2014,HAYS SOCIAL CARE,Human Resources,CUSTOMERS & CORPORATE SERVICES,LITIGATION SECTION,"2,931.75"
Rochdale BC,19/02/2014,HAYS SOCIAL CARE,Human Resources,CHILDREN�S SOCIAL CARE,MANAGEMENT STRUCTURE,"1,083.13"
Rochdale BC,19/02/2014,HAYS SOCIAL CARE,Human Resources,ECONOMY AND ENVIRONMENT,MERCURY ABATEMENT,617.79
Rochdale BC,13/02/2014,HAYS SOCIAL CARE,Human Resources,PHYSICAL DIS & OLDER PEOPLE,NHS DELAYED TRANSFER,639.22
Rochdale BC,19/02/2014,HAYS SOCIAL CARE,Human Resources,PHYSICAL DIS & OLDER PEOPLE,NHS DELAYED TRANSFER,762.94
Rochdale BC,13/02/2014,HAYS SOCIAL CARE,Human Resources,CHILDREN�S SOCIAL CARE,OTHER CWDC FUNDS,"4,730.65"
Rochdale BC,19/02/2014,HAYS SOCIAL CARE,Human Resources,CHILDREN�S SOCIAL CARE,OTHER CWDC FUNDS,"2,190.92"
Rochdale BC,13/02/2014,HAYS SOCIAL CARE,Human Resources,FINANCE SERVICES,PR MEDIA AND MARKETING,"4,402.64"
Rochdale BC,19/02/2014,HAYS SOCIAL CARE,Human Resources,FINANCE SERVICES,PR MEDIA AND MARKETING,"3,624.62"
Rochdale BC,13/02/2014,HAYS SOCIAL CARE,Human Resources,PROPERTY AND HIGHWAYS,PROJECT TEAM,"3,157.97"
Rochdale BC,19/02/2014,HAYS SOCIAL CARE,Human Resources,PROPERTY AND HIGHWAYS,PROJECT TEAM,"1,733.97"
Rochdale BC,13/02/2014,HAYS SOCIAL CARE,Human Resources,CUSTOMERS & CORPORATE SERVICES,REFRESH PROGRAMME,"8,048.91"
Rochdale BC,19/02/2014,HAYS SOCIAL CARE,Human Resources,CUSTOMERS & CORPORATE SERVICES,REFRESH PROGRAMME,"16,127.38"
Rochdale BC,13/02/2014,HAYS SOCIAL CARE,Human Resources,CUSTOMERS & CORPORATE SERVICES,REGISTRATIONS GENERAL,853.97
Rochdale BC,13/02/2014,HAYS SOCIAL CARE,Human Resources,CHILDREN�S SOCIAL CARE,REMODELLING SOCIAL WORK,"4,470.51"
Rochdale BC,19/02/2014,HAYS SOCIAL CARE,Human Resources,CHILDREN�S SOCIAL CARE,REMODELLING SOCIAL WORK,"4,364.74"
Rochdale BC,13/02/2014,HAYS SOCIAL CARE,Human Resources,CHILDREN�S SOCIAL CARE,SAFEGUARDING CHILDREN UNIT,"3,667.92"
Rochdale BC,19/02/2014,HAYS SOCIAL CARE,Human Resources,CHILDREN�S SOCIAL CARE,SAFEGUARDING CHILDREN UNIT,"6,894.26"
Rochdale BC,13/02/2014,HAYS SOCIAL CARE,Human Resources,CUSTOMERS & CORPORATE SERVICES,SCRUTINY & PERFORMANCE,"1,557.53"
Rochdale BC,19/02/2014,HAYS SOCIAL CARE,Human Resources,CUSTOMERS & CORPORATE SERVICES,SCRUTINY & PERFORMANCE,"1,652.35"
Rochdale BC,19/02/2014,HAYS SOCIAL CARE,Human Resources,EARLY HELP AND SCHOOLS,SEND PATHFINDER,"1,441.55"
Rochdale BC,13/02/2014,HAYS SOCIAL CARE,Human Resources,EARLY HELP AND SCHOOLS,STRONGER FAMILIES PROGRAMME DELIVERY,633.07
Rochdale BC,19/02/2014,HAYS SOCIAL CARE,Human Resources,EARLY HELP AND SCHOOLS,STRONGER FAMILIES PROGRAMME DELIVERY,641.82
Rochdale BC,13/02/2014,HAYS SOCIAL CARE,Human Resources,PROPERTY AND HIGHWAYS,TECHNICAL TEAM,"1,483.56"
Rochdale BC,19/02/2014,HAYS SOCIAL CARE,Human Resources,PROPERTY AND HIGHWAYS,TECHNICAL TEAM,"2,921.62"
Rochdale BC,01/02/2014,HEALEY CARE LTD,Social Community Care Supplies & Services,LEARNING DIS & MENTAL HEALTH,LD FORUM - PERSONAL BUDGETS,"4,060.00"
Rochdale BC,01/02/2014,HEALEY CARE LTD,Social Community Care Supplies & Services,LEARNING DIS & MENTAL HEALTH,LD FORUM - PERSONAL BUDGETS,"1,507.80"
Rochdale BC,27/02/2014,HEALEY SURGERY,Healthcare,PUBLIC HEALTH,SEXUAL HEALTH SERVICES,"2,221.58"
Rochdale BC,10/02/2014,HEALTH & SAFETY SOLUTIONS (NW) LTD,Health & Safety�,EARLY HELP AND SCHOOLS,GENERAL SURE START TRAINING,550.20
Rochdale BC,10/02/2014,HEALTH & SAFETY SOLUTIONS (NW) LTD,Health & Safety�,EARLY HELP AND SCHOOLS,GENERAL SURE START TRAINING,602.60
Rochdale BC,11/02/2014,HERITAGE ROOFING AND MAINTENANCE,Building Construction Materials,PROPERTY AND HIGHWAYS,CORPORATE LANDLORD GENERAL,"2,010.06"
Rochdale BC,25/02/2014,HERITAGE TRUST FOR THE NORTH WEST,Consultancy,ECONOMY AND ENVIRONMENT,TONGE HALL FIRE DAMAGE - ENG HERITAGE,"9,645.40"
Rochdale BC,26/02/2014,HEYBROOK PRIMARY SCHOOL,Financial Services,EARLY HELP AND SCHOOLS,SCHOOL DIRECT TRAINING,"2,545.45"
Rochdale BC,17/02/2014,HEYWOOD HANDYMAN,"Works - Construction, Repair & Maintenance",ECONOMY AND ENVIRONMENT,DALE MILL (HMRF),803.00
Rochdale BC,04/02/2014,HEYWOOD HANDYMAN,"Works - Construction, Repair & Maintenance",ECONOMY AND ENVIRONMENT,LEOPOLD COURT,700.48
Rochdale BC,17/02/2014,HIGH RIDGE ROOFING LIMITED,Building Construction Materials,ECONOMY AND ENVIRONMENT,EMPTY PROPERTY GRANT,"3,922.50"
Rochdale BC,17/02/2014,HIGH RIDGE ROOFING LIMITED,Building Construction Materials,ECONOMY AND ENVIRONMENT,EMPTY PROPERTY GRANT,585.00
Rochdale BC,17/02/2014,HIGH RIDGE ROOFING LIMITED,Building Construction Materials,ECONOMY AND ENVIRONMENT,EMPTY PROPERTY GRANT,750.00
Rochdale BC,14/02/2014,HIGHWAY SURVEYORS LTD,Consultancy,PROPERTY AND HIGHWAYS,BWIDE VAR STREETS FW/CW SURVEYS,"4,581.46"
Rochdale BC,27/02/2014,HILLSIDE PRINTING SERVICES LIMITED,Facilities & Management Services,EARLY HELP AND SCHOOLS,DEVELOPMENT SUPPORT TRAINING,"1,650.00"
Rochdale BC,18/02/2014,HM REVENUES & CUSTOMS SHIPLEY,Public Bodies,ECONOMY AND ENVIRONMENT,TOWN CENTRE EAST FEASIBILITY 51K 07/08,"9,000.00"
Rochdale BC,07/02/2014,HOMECARE SUPPORT,Social Community Care Supplies & Services,PHYSICAL DIS & OLDER PEOPLE,OLDER PEOPLES AGENCY PROVISION,"4,966.40"
Rochdale BC,14/02/2014,HOMECARE SUPPORT,Social Community Care Supplies & Services,PHYSICAL DIS & OLDER PEOPLE,OLDER PEOPLES AGENCY PROVISION,"4,982.23"
Rochdale BC,27/02/2014,HOMECARE SUPPORT,Social Community Care Supplies & Services,PHYSICAL DIS & OLDER PEOPLE,OLDER PEOPLES AGENCY PROVISION,"5,327.13"
Rochdale BC,19/02/2014,HOPWOOD HALL COLLEGE,Facilities & Management Services,ECONOMY AND ENVIRONMENT,COMMUNITY CHAMPION,620.00
Rochdale BC,25/02/2014,HOPWOOD HALL COLLEGE,Facilities & Management Services,EARLY HELP AND SCHOOLS,GENERAL SURE START TRAINING,"1,441.00"
Rochdale BC,25/02/2014,HOPWOOD HALL COLLEGE,Facilities & Management Services,EARLY HELP AND SCHOOLS,GENERAL SURE START TRAINING,708.50
Rochdale BC,25/02/2014,HOPWOOD HALL COLLEGE,Facilities & Management Services,EARLY HELP AND SCHOOLS,GENERAL SURE START TRAINING,708.50
Rochdale BC,25/02/2014,HOPWOOD HALL COLLEGE,Facilities & Management Services,EARLY HELP AND SCHOOLS,GENERAL SURE START TRAINING,"1,441.00"
Rochdale BC,25/02/2014,HOPWOOD HALL COLLEGE,Facilities & Management Services,EARLY HELP AND SCHOOLS,GENERAL SURE START TRAINING,708.50
Rochdale BC,25/02/2014,HOPWOOD HALL COLLEGE,Facilities & Management Services,EARLY HELP AND SCHOOLS,GENERAL SURE START TRAINING,"1,441.00"
Rochdale BC,25/02/2014,HOPWOOD HALL COLLEGE,Facilities & Management Services,EARLY HELP AND SCHOOLS,GENERAL SURE START TRAINING,"1,441.00"
Rochdale BC,25/02/2014,HOPWOOD HALL COLLEGE,Facilities & Management Services,EARLY HELP AND SCHOOLS,GENERAL SURE START TRAINING,708.50
Rochdale BC,25/02/2014,HOPWOOD HALL COLLEGE,Facilities & Management Services,EARLY HELP AND SCHOOLS,GENERAL SURE START TRAINING,"1,441.00"
Rochdale BC,19/02/2014,HOURGLASS ENVIRONMENT LTD,Environmental Services,CUSTOMERS & CORPORATE SERVICES,TOWNSHIP 10/11 ALLOCATED FUNDS,"2,000.00"
Rochdale BC,12/02/2014,IAN FARMER ASSOCIATES,Consultancy,PROPERTY AND HIGHWAYS,TOD RD RETAINING WALL NO 10,"3,650.00"
Rochdale BC,05/02/2014,IAN FARMER ASSOCIATES,Consultancy,PROPERTY AND HIGHWAYS,TODMORDEN RD RETAINING WALL,"2,789.00"
Rochdale BC,17/02/2014,INCLUSION HOUSING,Housing Management,LEARNING DIS & MENTAL HEALTH,LD SUPPORTED LIVING CLUSTER1  RMBC,875.80
Rochdale BC,17/02/2014,INCLUSION HOUSING,Housing Management,LEARNING DIS & MENTAL HEALTH,LD SUPPORTED LIVING CLUSTER1  RMBC,875.80
Rochdale BC,24/02/2014,INCLUSIVE TECHNOLOGY LTD,Information Communication Technology,EARLY HELP AND SCHOOLS,RCAT - SEN,802.23
Rochdale BC,26/02/2014,INCLUSIVE TECHNOLOGY LTD,Information Communication Technology,EARLY HELP AND SCHOOLS,SEN SUPPORT MAINSTREAM  LEA,572.75
Rochdale BC,20/02/2014,INDEPENDENT HOME CARE SERVICES,Social Community Care Supplies & Services,PHYSICAL DIS & OLDER PEOPLE,CENTRAL FORUM PHYS DIS,"1,203.30"
Rochdale BC,20/02/2014,INDEPENDENT HOME CARE SERVICES,Social Community Care Supplies & Services,PHYSICAL DIS & OLDER PEOPLE,CENTRAL FORUM PHYS DIS,"1,203.30"
Rochdale BC,26/02/2014,INDEPENDENT HOME CARE SERVICES,Social Community Care Supplies & Services,PHYSICAL DIS & OLDER PEOPLE,CENTRAL FORUM PHYS DIS,"1,203.30"
Rochdale BC,26/02/2014,INDEPENDENT HOME CARE SERVICES,Social Community Care Supplies & Services,PHYSICAL DIS & OLDER PEOPLE,CENTRAL FORUM PHYS DIS,"1,203.30"
Rochdale BC,28/02/2014,INDEPENDENT HOME CARE SERVICES,Social Community Care Supplies & Services,PHYSICAL DIS & OLDER PEOPLE,CENTRAL FORUM PHYS DIS,"1,203.30"
Rochdale BC,07/02/2014,INDEPENDENT HOME CARE SERVICES,Social Community Care Supplies & Services,PHYSICAL DIS & OLDER PEOPLE,OLDER PEOPLES AGENCY PROVISION,"2,274.21"
Rochdale BC,14/02/2014,INDEPENDENT HOME CARE SERVICES,Social Community Care Supplies & Services,PHYSICAL DIS & OLDER PEOPLE,OLDER PEOPLES AGENCY PROVISION,"2,194.63"
Rochdale BC,27/02/2014,INDEPENDENT HOME CARE SERVICES,Social Community Care Supplies & Services,PHYSICAL DIS & OLDER PEOPLE,OLDER PEOPLES AGENCY PROVISION,"2,049.89"
Rochdale BC,13/02/2014,INSPIREDSPACES ROCHDALE LTD,"Works - Construction, Repair & Maintenance",EARLY HELP AND SCHOOLS,BSF DEVELOPMENT (MOD0809),"1,175.00"
Rochdale BC,12/02/2014,INSPIREDSPACES ROCHDALE LTD,"Works - Construction, Repair & Maintenance",EARLY HELP AND SCHOOLS,BSF ICT CONTRACT,"72,732.96"
Rochdale BC,17/02/2014,INSPIREDSPACES ROCHDALE LTD,"Works - Construction, Repair & Maintenance",EARLY HELP AND SCHOOLS,BSF ICT CONTRACT,"1,130.62"
Rochdale BC,17/02/2014,INSPIREDSPACES ROCHDALE LTD,"Works - Construction, Repair & Maintenance",EARLY HELP AND SCHOOLS,BSF ICT CONTRACT,"9,599.75"
Rochdale BC,26/02/2014,INSPIREDSPACES ROCHDALE LTD,"Works - Construction, Repair & Maintenance",EARLY HELP AND SCHOOLS,BSF ICT CONTRACT,"771,676.44"
Rochdale BC,26/02/2014,INSPIREDSPACES ROCHDALE LTD,"Works - Construction, Repair & Maintenance",EARLY HELP AND SCHOOLS,BSF ICT CONTRACT,"219,294.13"
Rochdale BC,27/02/2014,INSPIREDSPACES ROCHDALE LTD,"Works - Construction, Repair & Maintenance",EARLY HELP AND SCHOOLS,BSF ICT CONTRACT,"862,412.69"
Rochdale BC,12/02/2014,INSPIREDSPACES ROCHDALE LTD,"Works - Construction, Repair & Maintenance",EARLY HELP AND SCHOOLS,BSF OTHER CONTRIBUTIONS,"77,622.12"
Rochdale BC,05/02/2014,INSPIREDSPACES ROCHDALE LTD,"Works - Construction, Repair & Maintenance",EARLY HELP AND SCHOOLS,BSF VARIATIONS/ CONTINGENCY,970.38
Rochdale BC,12/02/2014,INSPIREDSPACES ROCHDALE LTD,"Works - Construction, Repair & Maintenance",EARLY HELP AND SCHOOLS,BSF VARIATIONS/ CONTINGENCY,"21,703.34"
Rochdale BC,25/02/2014,INSPIREDSPACES ROCHDALE LTD,"Works - Construction, Repair & Maintenance",EARLY HELP AND SCHOOLS,BSF VARIATIONS/ CONTINGENCY,"14,895.53"
Rochdale BC,25/02/2014,INSPIREDSPACES ROCHDALE LTD,"Works - Construction, Repair & Maintenance",EARLY HELP AND SCHOOLS,BSF VARIATIONS/ CONTINGENCY,970.38
Rochdale BC,12/02/2014,INSPIREDSPACES ROCHDALE LTD,"Works - Construction, Repair & Maintenance",EARLY HELP AND SCHOOLS,ST CUTHBERTS RC SECONDARY(BSF),"275,886.40"
Rochdale BC,26/02/2014,INSPIREDSPACES ROCHDALE PROJECT CO1 LTD,"Works - Construction, Repair & Maintenance",EARLY HELP AND SCHOOLS,HOLLINGWORTH PFI,"305,932.26"
Rochdale BC,17/02/2014,INSPIREDSPACES ROCHDALE PROJECTCO2 LTD,"Works - Construction, Repair & Maintenance",EARLY HELP AND SCHOOLS,BSF OTHER CONTRIBUTIONS,"25,622.34"
Rochdale BC,17/02/2014,INSPIREDSPACES ROCHDALE PROJECTCO2 LTD,"Works - Construction, Repair & Maintenance",EARLY HELP AND SCHOOLS,BSF VARIATIONS/ CONTINGENCY,"22,358.42"
Rochdale BC,01/02/2014,INSPIREDSPACES ROCHDALE PROJECTCO2 LTD,"Works - Construction, Repair & Maintenance",EARLY HELP AND SCHOOLS,WARDLE AND FALINGE PFI,"375,899.76"
Rochdale BC,20/02/2014,INSPIREDSPACES ROCHDALE PROJECTCO2 LTD,"Works - Construction, Repair & Maintenance",EARLY HELP AND SCHOOLS,WARDLE AND FALINGE PFI,"380,865.53"
Rochdale BC,27/02/2014,INSTITUTE OF PUBLIC FINANCE LIMITED,Human Resources,FINANCE SERVICES,HEAD OF SERVICE MANAGEMENT,"3,785.00"
Rochdale BC,24/02/2014,INTEGRATED WATER SERVICES LIMITED,Utilities,PROPERTY AND HIGHWAYS,SCHOOLS SLA 12/13,"3,062.00"
Rochdale BC,24/02/2014,INTEGRATED WATER SERVICES LIMITED,Utilities,PROPERTY AND HIGHWAYS,TECHNICAL TEAM,"2,675.00"
Rochdale BC,17/02/2014,INTERGRATED SKILLS  LIMITED,Consultancy,ECONOMY AND ENVIRONMENT,DOMESTIC WASTE,"2,000.00"
Rochdale BC,27/02/2014,INTRAHEALTH LTD,Healthcare,PUBLIC HEALTH,SEXUAL HEALTH SERVICES,"1,068.27"
Rochdale BC,11/02/2014,J & S TRAVEL,Public Transport,ECONOMY AND ENVIRONMENT,EDUCATION HOME TO SCHOOL,915.00
Rochdale BC,17/02/2014,J & S TRAVEL,Public Transport,ECONOMY AND ENVIRONMENT,EDUCATION HOME TO SCHOOL,915.00
Rochdale BC,20/02/2014,J A CRYER EXCAVATION & GROUNDWORK CONTRACTORS LTD,"Works - Construction, Repair & Maintenance",ECONOMY AND ENVIRONMENT,COUNTRYSIDE OPERATIONS,520.00
Rochdale BC,28/02/2014,J C MILLS & SON LIMITED,Building Construction Materials,PROPERTY AND HIGHWAYS,TOUCHSTONES BOILER REPLACEMENT,"69,745.46"
Rochdale BC,10/02/2014,J COONEY LIMITED,"Works - Construction, Repair & Maintenance",PROPERTY AND HIGHWAYS,AMG RETENTIONS 11/12,"1,362.99"
Rochdale BC,28/02/2014,J COONEY LIMITED,"Works - Construction, Repair & Maintenance",PROPERTY AND HIGHWAYS,EXT WORKS VARIOUS PATHS & RETAINING WALL,"20,038.31"
Rochdale BC,20/02/2014,J COONEY LIMITED,"Works - Construction, Repair & Maintenance",PROPERTY AND HIGHWAYS,HEYWOOD RISING BOLLARD,525.00
Rochdale BC,07/02/2014,J COONEY LIMITED,"Works - Construction, Repair & Maintenance",PROPERTY AND HIGHWAYS,HIP BOLTON ROAD,"163,595.77"
Rochdale BC,27/02/2014,J COONEY LIMITED,"Works - Construction, Repair & Maintenance",PROPERTY AND HIGHWAYS,HIP HALIFAX ROAD (ROYDS ST),"77,360.04"
Rochdale BC,06/02/2014,J COONEY LIMITED,"Works - Construction, Repair & Maintenance",PROPERTY AND HIGHWAYS,PILSWORTH RD RTA,"48,565.85"
Rochdale BC,28/02/2014,J COONEY LIMITED,"Works - Construction, Repair & Maintenance",ECONOMY AND ENVIRONMENT,S106 BALDERSTONE PARK,"12,000.00"
Rochdale BC,04/02/2014,J GREENWOOD (BUILDERS) LIMITED       (S),"Works - Construction, Repair & Maintenance",PROPERTY AND HIGHWAYS,TOWN HALL REROOFING WORKS- PH1 CLOCK TOW,"66,055.11"
Rochdale BC,04/02/2014,JACKSON JACKSON & SONS LTD           (S),Building Construction Materials,EARLY HELP AND SCHOOLS,MIDDLETON PARISH - PLACE PLANNING,"18,409.97"
Rochdale BC,25/02/2014,JACKSON JACKSON & SONS LTD           (S),Building Construction Materials,EARLY HELP AND SCHOOLS,MIDDLETON PARISH - PLACE PLANNING,"69,109.73"
Rochdale BC,06/02/2014,JACKSON JACKSON & SONS LTD           (S),Building Construction Materials,EARLY HELP AND SCHOOLS,NEWHEY - PLACE PLANNING,"103,733.10"
Rochdale BC,17/02/2014,JGM AGENCY,Facilities & Management Services,FINANCE SERVICES,PR MEDIA AND MARKETING,"8,284.50"
Rochdale BC,06/02/2014,JMHA,Housing Management,ECONOMY AND ENVIRONMENT,EMPTY PROPERTY GRANT,"8,500.00"
Rochdale BC,06/02/2014,JMHA,Housing Management,ECONOMY AND ENVIRONMENT,EMPTY PROPERTY GRANT,"12,500.00"
Rochdale BC,07/02/2014,JMHA,Housing Management,ECONOMY AND ENVIRONMENT,EMPTY PROPERTY GRANT,"2,500.00"
Rochdale BC,07/02/2014,JMHA,Housing Management,ECONOMY AND ENVIRONMENT,EMPTY PROPERTY GRANT,"1,700.00"
Rochdale BC,17/02/2014,JOANNE PLATT ASSOCIATES LTD,Consultancy,CHILDREN�S SOCIAL CARE,MANAGEMENT STRUCTURE,"11,440.00"
Rochdale BC,05/02/2014,JOHN DAVIDSON (PIPES) LTD,Consultancy,ECONOMY AND ENVIRONMENT,LANDSCAPE SERVICES,578.94
Rochdale BC,28/02/2014,JRB ENTERPRISE LTD,Environmental Services,ECONOMY AND ENVIRONMENT,CLEAN AND GREEN CAMPAIGNS,679.00
Rochdale BC,13/02/2014,JUBB & JUBB LIMITED,"Works - Construction, Repair & Maintenance",CUSTOMERS & CORPORATE SERVICES,MIDDLETON LIBRARY REFURB,792.00
Rochdale BC,27/02/2014,JULIEW CONSULTANCY LTD,Consultancy,CHILDREN�S SOCIAL CARE,MANAGEMENT STRUCTURE,500.00
Rochdale BC,05/02/2014,JUST TEACHERS LIMITED,Human Resources,EARLY HELP AND SCHOOLS,AUTISM,"1,037.00"
Rochdale BC,19/02/2014,JUST TEACHERS LIMITED,Human Resources,EARLY HELP AND SCHOOLS,AUTISM,"1,037.00"
Rochdale BC,19/02/2014,JUST TEACHERS LIMITED,Human Resources,EARLY HELP AND SCHOOLS,AUTISM,"1,037.00"
Rochdale BC,26/02/2014,JUST TEACHERS LIMITED,Human Resources,EARLY HELP AND SCHOOLS,AUTISM,"1,037.00"
Rochdale BC,11/02/2014,KABERRY CONSTRUCTION LIMITED,"Works - Construction, Repair & Maintenance",PROPERTY AND HIGHWAYS,WINTER SERVICE DEPOT,"202,339.12"
Rochdale BC,12/02/2014,KAP DIAGNOSTICS COM LTD,Vehicle Management,ECONOMY AND ENVIRONMENT,DEVELOPMENT MANAGEMENT - PLANNING APPS,"2,500.00"
Rochdale BC,27/02/2014,KEY TRAFFIC SYSTEMS LTD,Street & Traffic Management,PROPERTY AND HIGHWAYS,BUSINESS SUPPORT TEAM,"2,150.00"
Rochdale BC,19/02/2014,KEYS CHILDCARE,Social Community Care Supplies & Services,CHILDREN�S SOCIAL CARE,EXTERNAL RESIDENTIAL PLACEMENTS,"11,071.34"
Rochdale BC,11/02/2014,KEYS CHILDCARE,Social Community Care Supplies & Services,EARLY HELP AND SCHOOLS,IND SCHOOLS  RESIDENTIAL,"2,400.00"
Rochdale BC,13/02/2014,KILLGERM CHEMICALS LIMITED,Environmental Services,ECONOMY AND ENVIRONMENT,PEST CONTROL,"1,196.56"
Rochdale BC,11/02/2014,KINGSWOOD LEARNING & LEISURE GROUP LTD,Education,EARLY HELP AND SCHOOLS,YOUTH EMPOWERMENT - EXT FUDNED PROJECTS,550.00
Rochdale BC,07/02/2014,KOMPAN (UK) LIMITED,Sports & Playground Equipment & Maintenance,ECONOMY AND ENVIRONMENT,PLAYGROUND REPLACEMENT EQUIP,"6,360.00"
Rochdale BC,26/02/2014,LANCASHIRE CARE NHS FOUNDATION TRUST,Healthcare,PUBLIC HEALTH,SEXUAL HEALTH SERVICES,"1,441.56"
Rochdale BC,25/02/2014,LANCASHIRE COUNTY COUNCIL,Public Bodies,PHYSICAL DIS & OLDER PEOPLE,OLDER PEOPLES AGENCY PROVISION,"1,927.80"
Rochdale BC,21/02/2014,LANDSCAPE ENGINEERING LIMITED        (S),"Works - Construction, Repair & Maintenance",EARLY HELP AND SCHOOLS,BSF VARIATIONS/ CONTINGENCY,"12,076.50"
Rochdale BC,24/02/2014,LIBERATOR LIMITED,Human Resources,EARLY HELP AND SCHOOLS,RCAT - SEN,"1,807.00"
Rochdale BC,24/02/2014,LIBERATOR LIMITED,Human Resources,EARLY HELP AND SCHOOLS,RCAT - SEN,"2,029.90"
Rochdale BC,01/02/2014,LINK4LIFE (CHARITY),Arts & Leisure Services,FINANCE SERVICES,CONTRACT FEE LEISURE TRUST,"297,109.77"
Rochdale BC,01/02/2014,LINK4LIFE (CHARITY),Arts & Leisure Services,EARLY HELP AND SCHOOLS,SHORT BREAKS REVENUE,"4,083.33"
Rochdale BC,01/02/2014,LINK4LIFE (CHARITY),Arts & Leisure Services,EARLY HELP AND SCHOOLS,SHORT BREAKS REVENUE,"4,108.33"
Rochdale BC,10/02/2014,LINK4LIFE (CHARITY),Arts & Leisure Services,CUSTOMERS & CORPORATE SERVICES,TOWNSHIP PRIORITY PROJECT FUND,"1,025.00"
Rochdale BC,01/02/2014,LINK4LIFE (TRADING),Arts & Leisure Services,FINANCE SERVICES,CONTRACT FEE LEISURE TRUST,"8,591.67"
Rochdale BC,10/02/2014,LITTLEBOROUGH EVENTS & ASSOCIATION FORUM,Financial Services,CUSTOMERS & CORPORATE SERVICES,WARDS FUND,500.00
Rochdale BC,10/02/2014,LITTLEBOROUGH GROUP PRACTICE,Healthcare,CUSTOMERS & CORPORATE SERVICES,LOCAL ENHANCED SERVICES - LES,845.25
Rochdale BC,27/02/2014,LITTLEBOROUGH GROUP PRACTICE,Healthcare,PUBLIC HEALTH,SEXUAL HEALTH SERVICES,"1,233.68"
Rochdale BC,05/02/2014,LITTLEBOROUGH PRIVATE HIRE,Public Transport,ECONOMY AND ENVIRONMENT,EDUCATION HOME TO SCHOOL,"3,974.00"
Rochdale BC,14/02/2014,LLOYDS & CO LETCHWORTH LTD,Horticultural,ECONOMY AND ENVIRONMENT,VEHICLE REPLACEMENT PROGRAM,"5,000.00"
Rochdale BC,27/02/2014,LLOYDS PHARMACY LTD,Consultancy,PUBLIC HEALTH,SEXUAL HEALTH SERVICES,843.86
Rochdale BC,04/02/2014,LOWERPLACE LIBERAL CLUB,Financial Services,ECONOMY AND ENVIRONMENT,REG LIC  GENERAL,510.00
Rochdale BC,07/02/2014,LPS TRAINING & CONSULTANCY LTD,Human Resources,PHYSICAL DIS & OLDER PEOPLE,TRAINING COMMISSIONING,525.00
Rochdale BC,21/02/2014,LUCID RESEARCH LIMITED,Information Communication Technology,ECONOMY AND ENVIRONMENT,COMMUNITY CHAMPION,673.00
Rochdale BC,27/02/2014,M L SHAW FABRICATIONS LIMITED        (S),"Works - Construction, Repair & Maintenance",EARLY HELP AND SCHOOLS,CASTLETON ROOF REPLMT TO KS2 BLDG & CRDS,800.00
Rochdale BC,10/02/2014,MACE LIMITED,Consultancy,ECONOMY AND ENVIRONMENT,HOUSING STRATEGY,"2,400.00"
Rochdale BC,10/02/2014,MACE LIMITED,Consultancy,FINANCE SERVICES,SOCIAL FUND,"4,920.00"
Rochdale BC,12/02/2014,MAHOOD BROTHERS,Horticultural,ECONOMY AND ENVIRONMENT,BOWLEE AND GARDEN MAILSHOP,"2,082.90"
Rochdale BC,26/02/2014,MAILBOX STAMFORD PRODUCTS LTD,Healthcare,PROPERTY AND HIGHWAYS,Winter Maintenance,985.00
Rochdale BC,11/02/2014,MANCHESTER CITY COUNCIL,Public Bodies,PUBLIC HEALTH,PUBLIC HEALTH ADVICE COMMISSIONING,"4,180.00"
Rochdale BC,11/02/2014,MANCHESTER DOGS HOME,Environmental Services,ECONOMY AND ENVIRONMENT,DOG WARDEN,"1,706.64"
Rochdale BC,11/02/2014,MANCHESTER DOGS HOME,Environmental Services,ECONOMY AND ENVIRONMENT,DOG WARDEN,"1,662.88"
Rochdale BC,27/02/2014,MANCHESTER WORKING LIMITED,"Works - Construction, Repair & Maintenance",PHYSICAL DIS & OLDER PEOPLE,POOLED ICES,"16,625.12"
Rochdale BC,27/02/2014,MARK STREET SURGERY,Healthcare,PUBLIC HEALTH,SEXUAL HEALTH SERVICES,"1,229.74"
Rochdale BC,26/02/2014,MASSEY & HARRIS (ENGINEERING) LTD,"Works - Construction, Repair & Maintenance",ECONOMY AND ENVIRONMENT,PLAYGROUND REPLACEMENT EQUIP,"11,146.00"
Rochdale BC,21/02/2014,MATRIX,Unclassifiable,ECONOMY AND ENVIRONMENT,EQUIPMENT - LEISURE CENTRES,"8,142.00"
Rochdale BC,26/02/2014,MATTHEW MOSS HIGH SCHOOL,Financial Services,EARLY HELP AND SCHOOLS,SCHOOL DIRECT TRAINING,"16,181.83"
Rochdale BC,26/02/2014,MATTHEW MOSS HIGH SCHOOL,Facilities & Management Services,CUSTOMERS & CORPORATE SERVICES,SUBSIDISED USAGE  ROCHDALE SOUTH,554.80
Rochdale BC,04/02/2014,MEADOWS CARE LIMITED,Human Resources,CHILDREN�S SOCIAL CARE,EXTERNAL RESIDENTIAL PLACEMENTS,"3,297.86"
Rochdale BC,17/02/2014,MENCAP,Human Resources,LEARNING DIS & MENTAL HEALTH,L DIS FORUM PLACEMENTS,802.80
Rochdale BC,10/02/2014,MENCAP,Human Resources,LEARNING DIS & MENTAL HEALTH,LD FORUM - HOME SUPPORT,528.00
Rochdale BC,11/02/2014,MENCAP,Human Resources,LEARNING DIS & MENTAL HEALTH,LD FORUM - HOME SUPPORT,633.60
Rochdale BC,20/02/2014,MENCAP,Human Resources,LEARNING DIS & MENTAL HEALTH,LD FORUM - HOME SUPPORT,528.00
Rochdale BC,20/02/2014,MENCAP,Human Resources,LEARNING DIS & MENTAL HEALTH,LD FORUM - HOME SUPPORT,528.00
Rochdale BC,27/02/2014,MENCAP,Human Resources,LEARNING DIS & MENTAL HEALTH,LD FORUM - HOME SUPPORT,528.00
Rochdale BC,27/02/2014,MENCAP,Human Resources,LEARNING DIS & MENTAL HEALTH,LD FORUM - HOME SUPPORT,633.60
Rochdale BC,10/02/2014,MENCAP,Human Resources,LEARNING DIS & MENTAL HEALTH,LD FORUM - PERSONAL BUDGETS,"1,012.00"
Rochdale BC,11/02/2014,MENCAP,Human Resources,LEARNING DIS & MENTAL HEALTH,LD FORUM - PERSONAL BUDGETS,"1,012.00"
Rochdale BC,11/02/2014,MENCAP,Human Resources,LEARNING DIS & MENTAL HEALTH,LD FORUM - PERSONAL BUDGETS,802.80
Rochdale BC,26/02/2014,MENCAP,Human Resources,LEARNING DIS & MENTAL HEALTH,LD FORUM - PERSONAL BUDGETS,802.80
Rochdale BC,27/02/2014,MERITEC LIMITED,Human Resources,FINANCE SERVICES,HSG BEN & CNCIL TAX SUPPORT ASSESSMENTS,"8,787.50"
Rochdale BC,17/02/2014,MERITEC LIMITED,Human Resources,FINANCE SERVICES,TECHNICAL SUPPORT,"1,295.00"
Rochdale BC,19/02/2014,MET OFFICE,Consultancy,PROPERTY AND HIGHWAYS,Winter Maintenance,"5,576.00"
Rochdale BC,24/02/2014,METRO SRM LLP,Financial Services,ECONOMY AND ENVIRONMENT,TELEGRAPH HOUSE SERVICE CHARGE ACCOUNT,690.00
Rochdale BC,05/02/2014,MICHAEL PAGE INTERNATIONAL RECRUITMENT LTD,Human Resources,FINANCE SERVICES,PR MEDIA AND MARKETING,"1,066.50"
Rochdale BC,12/02/2014,MICHAEL PAGE INTERNATIONAL RECRUITMENT LTD,Human Resources,FINANCE SERVICES,PR MEDIA AND MARKETING,"1,053.00"
Rochdale BC,17/02/2014,MICHAEL PAGE INTERNATIONAL RECRUITMENT LTD,Human Resources,FINANCE SERVICES,PR MEDIA AND MARKETING,"1,039.50"
Rochdale BC,17/02/2014,MICHAEL PAGE INTERNATIONAL RECRUITMENT LTD,Human Resources,FINANCE SERVICES,PR MEDIA AND MARKETING,884.25
Rochdale BC,17/02/2014,MICHAEL PAGE INTERNATIONAL RECRUITMENT LTD,Human Resources,FINANCE SERVICES,PR MEDIA AND MARKETING,"1,235.25"
Rochdale BC,13/02/2014,MICK TAYLOR LIMITED          (S),Unclassifiable,PHYSICAL DIS & OLDER PEOPLE,DISABLED FACILITIES GRANT,"5,000.00"
Rochdale BC,26/02/2014,MIDDLETON PARISH CE SCHOOL,Financial Services,CUSTOMERS & CORPORATE SERVICES,SUDSIDISED USAGE  MIDDLETON,"1,125.00"
Rochdale BC,01/02/2014,MIDDLETON TRAMPOLINING CLUB,Arts & Leisure Services,EARLY HELP AND SCHOOLS,HEALTH RELATED SHORT BREAKS,"2,599.08"
Rochdale BC,21/02/2014,MIKE GOLDRICK WINDOW BLINDS LTD,Furniture & Soft Furnishings,CUSTOMERS & CORPORATE SERVICES,RENAISSANCE,740.00
Rochdale BC,11/02/2014,MILNROW CARS,Public Transport,ECONOMY AND ENVIRONMENT,EDUCATION HOME TO SCHOOL,565.00
Rochdale BC,27/02/2014,MILNROW VILLAGE PRACTICE,Healthcare,PUBLIC HEALTH,SEXUAL HEALTH SERVICES,"1,965.22"
Rochdale BC,14/02/2014,MISCO,Information Communication Technology,CUSTOMERS & CORPORATE SERVICES,REFRESH PROGRAMME,"1,528.71"
Rochdale BC,21/02/2014,MISHCON DE REYA,Unclassifiable,ECONOMY AND ENVIRONMENT,TOWN CENTRE EAST FEASIBILITY 51K 07/08,"3,028.00"
Rochdale BC,28/02/2014,MOLESWORTHS BRIGHT CLEGG,Legal Services,ECONOMY AND ENVIRONMENT,EMPTY PROPERTY GRANT,"66,000.00"
Rochdale BC,01/02/2014,MOSAIC COMMUNITY CARE LTD,Financial Services,EARLY HELP AND SCHOOLS,SHORT BREAKS REVENUE,"4,088.50"
Rochdale BC,11/02/2014,MOTT MACDONALD LIMITED,Human Resources,EARLY HELP AND SCHOOLS,BSF DEVELOPMENT (MOD0809),"6,756.47"
Rochdale BC,27/02/2014,MR GARY P DAWSON,Unclassifiable,ECONOMY AND ENVIRONMENT,EDUCATION HOME TO SCHOOL,"1,496.25"
Rochdale BC,05/02/2014,MR J P O`HARA,Unclassifiable,ECONOMY AND ENVIRONMENT,EDUCATION HOME TO SCHOOL,"1,984.60"
Rochdale BC,05/02/2014,MR J P O`HARA,Unclassifiable,ECONOMY AND ENVIRONMENT,EDUCATION HOME TO SCHOOL,"1,984.60"
Rochdale BC,05/02/2014,MR J P O`HARA,Unclassifiable,ECONOMY AND ENVIRONMENT,EDUCATION HOME TO SCHOOL,"1,870.00"
Rochdale BC,11/02/2014,NATURES NURSERY (HUDDERSFIELD) LTD,Horticultural,EARLY HELP AND SCHOOLS,MTCE OF INCLUSIVE CHILDCARE PLACES,715.00
Rochdale BC,05/02/2014,NEIL SIMPSON & SON                   (S),"Works - Construction, Repair & Maintenance",PHYSICAL DIS & OLDER PEOPLE,DISABLED FACILITIES GRANT,"7,200.00"
Rochdale BC,20/02/2014,NETWORKS FIRST LTD,Information Communication Technology,CUSTOMERS & CORPORATE SERVICES,PEOPLES NETWORK,"11,975.00"
Rochdale BC,04/02/2014,NEW HORIZONS (STOCKPORT) LIMITED,Social Community Care Supplies & Services,CHILDREN�S SOCIAL CARE,EXTERNAL RESIDENTIAL PLACEMENTS,"8,200.00"
Rochdale BC,24/02/2014,NEW HORIZONS (STOCKPORT) LIMITED,Social Community Care Supplies & Services,CHILDREN�S SOCIAL CARE,EXTERNAL RESIDENTIAL PLACEMENTS,"8,200.00"
Rochdale BC,24/02/2014,NEW HORIZONS (STOCKPORT) LIMITED,Social Community Care Supplies & Services,CHILDREN�S SOCIAL CARE,EXTERNAL RESIDENTIAL PLACEMENTS,"7,954.00"
Rochdale BC,24/02/2014,NEW HORIZONS (STOCKPORT) LIMITED,Social Community Care Supplies & Services,CHILDREN�S SOCIAL CARE,EXTERNAL RESIDENTIAL PLACEMENTS,"3,136.00"
Rochdale BC,01/02/2014,NEWBARN LTD,Social Community Care Supplies & Services,LEARNING DIS & MENTAL HEALTH,GENERAL,518.14
Rochdale BC,10/02/2014,NHS GREATER MANCHESTER CSU,Healthcare,PUBLIC HEALTH,SPECIALIST PUBLIC HEALTH TEAM,"7,017.67"
Rochdale BC,19/02/2014,NHS GREATER MANCHESTER CSU,Healthcare,PUBLIC HEALTH,SPECIALIST PUBLIC HEALTH TEAM,"7,017.67"
Rochdale BC,27/02/2014,NHS HEYWOOD MIDDLETON AND ROCHDALE CCG,Financial Services,CUSTOMERS & CORPORATE SERVICES,DRUGS & ALCOHOL - SPECIALIST D&A SRVC,"83,921.00"
Rochdale BC,11/02/2014,NILFISK OUTDOOR PRODUCTS,Cleaning & Janitorial,ECONOMY AND ENVIRONMENT,GROUNDS MTCE EQUIPMENT,"37,926.80"
Rochdale BC,11/02/2014,NILFISK OUTDOOR PRODUCTS,Cleaning & Janitorial,ECONOMY AND ENVIRONMENT,VEHICLE REPLACEMENT PROGRAM,"5,598.51"
Rochdale BC,04/02/2014,NO GRAFFITI (MANCHESTER) LTD,Environmental Services,ECONOMY AND ENVIRONMENT,GRAFFITI TEAM,520.00
Rochdale BC,21/02/2014,NO GRAFFITI (MANCHESTER) LTD,Environmental Services,ECONOMY AND ENVIRONMENT,GRAFFITI TEAM,900.00
Rochdale BC,17/02/2014,NOMS AGENCY,Social Community Care Supplies & Services,CUSTOMERS & CORPORATE SERVICES,DRUGS & ALCOHOL - SPECIALIST D&A SRVC,"3,042.00"
Rochdale BC,24/02/2014,NORTH MANCHESTER ENTERPRISE GROUP LTD,Consultancy,PROPERTY AND HIGHWAYS,DECRIMINALISATION OF CAR PARKING,"1,705.00"
Rochdale BC,07/02/2014,NORTH WEST EMPLOYERS,Public Transport,PHYSICAL DIS & OLDER PEOPLE,TRAINING COMMISSIONING,"1,051.70"
Rochdale BC,18/02/2014,NORTH WEST EVERGREEN LTD PARTNERSHIP,"Works - Construction, Repair & Maintenance",ECONOMY AND ENVIRONMENT,STRATEGIC PLANNING,"25,000.00"
Rochdale BC,17/02/2014,NORTH WEST REGIONAL YOUTH WORK UNIT,Human Resources,EARLY HELP AND SCHOOLS,GENERAL BOROUGHWIDE YOUTH SERVICE,"2,391.25"
Rochdale BC,26/02/2014,NORTHENDEN TRAVEL,Human Resources,CHILDREN�S SOCIAL CARE,SAFEGUARDING CHILDREN UNIT,608.30
Rochdale BC,26/02/2014,NORTHERN LIGHT FILMS,Facilities & Management Services,ECONOMY AND ENVIRONMENT,MIDDLETON TOWNSHIP HERITAGE INITIATIVE,"4,014.00"
Rochdale BC,04/02/2014,NORTHERNCARE,Social Community Care Supplies & Services,CHILDREN�S SOCIAL CARE,EXTERNAL RESIDENTIAL PLACEMENTS,"15,190.00"
Rochdale BC,11/02/2014,NORTHGATE INFORMATION SOLUTIONS UK LTD,Stationery,FINANCE SERVICES,BLUE BADGES,"1,716.00"
Rochdale BC,07/02/2014,NORTHGATE INFORMATION SOLUTIONS UK LTD,Stationery,CUSTOMERS & CORPORATE SERVICES,THIRD PARTY CONTRACTS,"10,052.00"
Rochdale BC,14/02/2014,NORTHGATE INFORMATION SOLUTIONS UK LTD,Stationery,CUSTOMERS & CORPORATE SERVICES,THIRD PARTY CONTRACTS,"4,288.42"
Rochdale BC,19/02/2014,NUGENT CARE,Social Community Care Supplies & Services,CHILDREN�S SOCIAL CARE,EXTERNAL RESIDENTIAL PLACEMENTS,"80,177.49"
Rochdale BC,11/02/2014,NWTC LTD,Unclassifiable,ECONOMY AND ENVIRONMENT,DEPOT GREEN LANE GENERAL,597.06
Rochdale BC,11/02/2014,OAKFIELD HOUSE SCHOOL,Financial Services,EARLY HELP AND SCHOOLS,IND SCHOOLS  RESIDENTIAL,"10,398.00"
Rochdale BC,12/02/2014,OLDHAM & ROCHDALE GROUNDWORK TRUST LTD,"Works - Construction, Repair & Maintenance",CUSTOMERS & CORPORATE SERVICES,COMMUNITIES & ENGAGEMENT PRIORITY FUND,810.00
Rochdale BC,11/02/2014,OLDHAM & ROCHDALE GROUNDWORK TRUST LTD,"Works - Construction, Repair & Maintenance",ECONOMY AND ENVIRONMENT,RETROFIT,"31,800.00"
Rochdale BC,12/02/2014,OLDHAM & ROCHDALE GROUNDWORK TRUST LTD,"Works - Construction, Repair & Maintenance",CUSTOMERS & CORPORATE SERVICES,ROCHDALE TOWNSHIP CAPITAL - GENERAL,"1,000.00"
Rochdale BC,13/02/2014,OLDHAM METROPOLITAN BOROUGH COUNCIL,Public Bodies,EARLY HELP AND SCHOOLS,PRE 16 RDALE PUPILS  IN OLA MAINSTREAM,"6,454.00"
Rochdale BC,13/02/2014,OLDHAM METROPOLITAN BOROUGH COUNCIL,Public Bodies,EARLY HELP AND SCHOOLS,PRE 16 RDALE PUPILS  IN OLA MAINSTREAM,"13,070.00"
Rochdale BC,24/02/2014,OLDHAM METROPOLITAN BOROUGH COUNCIL,Public Bodies,EARLY HELP AND SCHOOLS,PRE 16 RDALE PUPILS IN OLA SPECIAL,"9,464.00"
Rochdale BC,06/02/2014,ONE STOP FENCING PRODUCTS LTD,Building Construction Materials,ECONOMY AND ENVIRONMENT,LANDSCAPE SERVICES,538.20
Rochdale BC,28/02/2014,ONE STOP FENCING PRODUCTS LTD,Building Construction Materials,ECONOMY AND ENVIRONMENT,LANDSCAPE SERVICES,"8,582.00"
Rochdale BC,07/02/2014,ORANGE PCS LIMITED,Information Communication Technology,CUSTOMERS & CORPORATE SERVICES,MOBILE TELEPHONES,985.22
Rochdale BC,07/02/2014,OSCAR ASSOCIATES UK LTD,Human Resources,CUSTOMERS & CORPORATE SERVICES,REFRESH PROGRAMME,700.00
Rochdale BC,14/02/2014,OSCAR ASSOCIATES UK LTD,Human Resources,CUSTOMERS & CORPORATE SERVICES,REFRESH PROGRAMME,700.00
Rochdale BC,14/02/2014,OSCAR ASSOCIATES UK LTD,Human Resources,CUSTOMERS & CORPORATE SERVICES,REFRESH PROGRAMME,700.00
Rochdale BC,28/02/2014,OSCAR ASSOCIATES UK LTD,Human Resources,CUSTOMERS & CORPORATE SERVICES,REFRESH PROGRAMME,"1,260.00"
Rochdale BC,10/02/2014,OXFORD COMPUTER CONSULTANTS LIMITED,Consultancy,LEARNING DIS & MENTAL HEALTH,ADULT CARE ADMIN,"4,500.00"
Rochdale BC,21/02/2014,OXFORD COMPUTER CONSULTANTS LIMITED,Consultancy,LEARNING DIS & MENTAL HEALTH,ADULT CARE ADMIN,"3,047.39"
Rochdale BC,13/02/2014,P & R FIRE SECURITY,Facilities & Management Services,ECONOMY AND ENVIRONMENT,BOWLEE AND GARDEN MAILSHOP,"1,066.00"
Rochdale BC,24/02/2014,PACE,Financial Services,CHILDREN�S SOCIAL CARE,OTHER CWDC FUNDS,"3,332.00"
Rochdale BC,24/02/2014,PACE,Financial Services,CHILDREN�S SOCIAL CARE,OTHER CWDC FUNDS,"3,332.00"
Rochdale BC,07/02/2014,PANZTEL UK LTD,Information Communication Technology,LEARNING DIS & MENTAL HEALTH,ADULT CARE ADMIN,"4,514.50"
Rochdale BC,10/02/2014,PANZTEL UK LTD,Information Communication Technology,LEARNING DIS & MENTAL HEALTH,ADULT CARE ADMIN,"4,438.00"
Rochdale BC,10/02/2014,PANZTEL UK LTD,Information Communication Technology,LEARNING DIS & MENTAL HEALTH,ADULT CARE ADMIN,"4,511.00"
Rochdale BC,12/02/2014,PARITOR LTD,Information Communication Technology,EARLY HELP AND SCHOOLS,SCHOOLS BUSINESS UNIT,"1,800.00"
Rochdale BC,10/02/2014,PARKWOOD HEALTHCARE LIMITED,Healthcare,PHYSICAL DIS & OLDER PEOPLE,OLDER PEOPLES AGENCY PROVISION,"14,191.66"
Rochdale BC,24/02/2014,PARTRIDGE & PRINT LTD,Financial Services,CHILDREN�S SOCIAL CARE,FOSTERING TEAM,652.50
Rochdale BC,05/02/2014,PCC OF ST LUKES HEYWOOD,Financial Services,CUSTOMERS & CORPORATE SERVICES,HEYWOOD TOWNSHIP FUNDS - PROJECTS,968.00
Rochdale BC,17/02/2014,PENNINE CARE IN PATIENT SERVICES PRIORY,Healthcare,EARLY HELP AND SCHOOLS,HOSPITAL TUITION,"1,225.00"
Rochdale BC,17/02/2014,PENNINE CARE IN PATIENT SERVICES PRIORY,Healthcare,EARLY HELP AND SCHOOLS,HOSPITAL TUITION,"3,325.00"
Rochdale BC,02/02/2014,PENNINE CARE NHS TRUST,Social Community Care Supplies & Services,CUSTOMERS & CORPORATE SERVICES,DRUGS & ALCOHOL - SPECIALIST D&A SRVC,"99,010.42"
Rochdale BC,27/02/2014,PENNINE CARE NHS TRUST,Social Community Care Supplies & Services,EARLY HELP AND SCHOOLS,ICAN,"5,692.00"
Rochdale BC,04/02/2014,PENNINE CARE NHS TRUST,Social Community Care Supplies & Services,PHYSICAL DIS & OLDER PEOPLE,MERIT NORTH,"8,217.76"
Rochdale BC,24/02/2014,PENNINE CARE NHS TRUST,Social Community Care Supplies & Services,PHYSICAL DIS & OLDER PEOPLE,OPERATIONAL MANAGER 1 H & C,"3,246.00"
Rochdale BC,27/02/2014,PENNINE CARE NHS TRUST,Social Community Care Supplies & Services,PUBLIC HEALTH,PUBLIC HEALTH ADVICE COMMISSIONING,"3,000.00"
Rochdale BC,27/02/2014,PENNINE CARE NHS TRUST,Social Community Care Supplies & Services,EARLY HELP AND SCHOOLS,SEN EARLY YEARS,"13,312.71"
Rochdale BC,06/02/2014,PENNINE CARE NHS TRUST,Social Community Care Supplies & Services,PUBLIC HEALTH,SEXUAL HEALTH SERVICES,"275,208.00"
Rochdale BC,10/02/2014,PENNINE CARE NHS TRUST,Social Community Care Supplies & Services,PUBLIC HEALTH,SEXUAL HEALTH SERVICES,"275,208.00"
Rochdale BC,03/02/2014,PENNINE CARE NHS TRUST,Social Community Care Supplies & Services,PUBLIC HEALTH,SPECIALIST PUBLIC HEALTH TEAM,"8,284.00"
Rochdale BC,17/02/2014,PERFORMANCE DOORSET SOLUTIONS LTD,"Works - Construction, Repair & Maintenance",PHYSICAL DIS & OLDER PEOPLE,DISABLED FACILITIES GRANT,"1,988.45"
Rochdale BC,13/02/2014,PETER TAYLOR LTD PLUMBING & HEATING,Building Construction Materials,PHYSICAL DIS & OLDER PEOPLE,DISABLED FACILITIES GRANT,"5,000.00"
Rochdale BC,05/02/2014,PHONAK GROUP LIMITED,Social Community Care Supplies & Services,EARLY HELP AND SCHOOLS,HEARING IMPAIRED SUPPORT,"1,210.00"
Rochdale BC,11/02/2014,PINNACLE RESPONSE LTD,Human Resources,ECONOMY AND ENVIRONMENT,REG LIC  GENERAL,"1,050.00"
Rochdale BC,17/02/2014,PINSENT MASONS LLP,Legal Services,CUSTOMERS & CORPORATE SERVICES,LEGAL SERVICES,"6,176.00"
Rochdale BC,17/02/2014,PINSENT MASONS LLP,Legal Services,ECONOMY AND ENVIRONMENT,WIND ENERGY PROJECT - PILOT PHASE,"1,794.50"
Rochdale BC,05/02/2014,PIONEER TRAVEL,Public Transport,PROPERTY AND HIGHWAYS,STREET CLOSURE ORDERS,"2,625.00"
Rochdale BC,28/02/2014,PIONEER TRAVEL,Public Transport,PROPERTY AND HIGHWAYS,STREET CLOSURE ORDERS,"1,750.00"
Rochdale BC,18/02/2014,PLP CONSTRUCTION LIMITED,"Works - Construction, Repair & Maintenance",EARLY HELP AND SCHOOLS,MIDDLETON PARISH ADDITIONAL PLACES,"18,054.84"
Rochdale BC,06/02/2014,PLUS DANE HOUSING GROUP,Housing Management,ECONOMY AND ENVIRONMENT,HOUSING STRATEGY,"1,010.00"
Rochdale BC,19/02/2014,POST OFFICE COUNTERS LTD,Clothing,ECONOMY AND ENVIRONMENT,FLEET MAINTENANCE,"1,445.00"
Rochdale BC,03/02/2014,POSTURITE (UK) LTD,Furniture & Soft Furnishings,EARLY HELP AND SCHOOLS,ICAN,915.70
Rochdale BC,07/02/2014,PREMIER CARE,Social Community Care Supplies & Services,PHYSICAL DIS & OLDER PEOPLE,OLDER PEOPLES AGENCY PROVISION,"6,876.22"
Rochdale BC,14/02/2014,PREMIER CARE,Social Community Care Supplies & Services,PHYSICAL DIS & OLDER PEOPLE,OLDER PEOPLES AGENCY PROVISION,"6,476.51"
Rochdale BC,27/02/2014,PREMIER CARE,Social Community Care Supplies & Services,PHYSICAL DIS & OLDER PEOPLE,OLDER PEOPLES AGENCY PROVISION,"6,535.18"
Rochdale BC,07/02/2014,PRESTIGE NURSING & CARE,Social Community Care Supplies & Services,PHYSICAL DIS & OLDER PEOPLE,NHS DELAYED TRANSFER,560.76
Rochdale BC,07/02/2014,PRESTIGE NURSING & CARE,Social Community Care Supplies & Services,PHYSICAL DIS & OLDER PEOPLE,NHS DELAYED TRANSFER,"1,031.53"
Rochdale BC,07/02/2014,PRESTIGE NURSING & CARE,Social Community Care Supplies & Services,PHYSICAL DIS & OLDER PEOPLE,NHS DELAYED TRANSFER,601.42
Rochdale BC,11/02/2014,PRESTIGE NURSING & CARE,Social Community Care Supplies & Services,PHYSICAL DIS & OLDER PEOPLE,NHS DELAYED TRANSFER,"1,003.35"
Rochdale BC,11/02/2014,PRESTIGE NURSING & CARE,Social Community Care Supplies & Services,PHYSICAL DIS & OLDER PEOPLE,NHS DELAYED TRANSFER,597.18
Rochdale BC,11/02/2014,PRESTIGE NURSING & CARE,Social Community Care Supplies & Services,PHYSICAL DIS & OLDER PEOPLE,NHS DELAYED TRANSFER,"1,360.15"
Rochdale BC,11/02/2014,PRESTIGE NURSING & CARE,Social Community Care Supplies & Services,PHYSICAL DIS & OLDER PEOPLE,NHS DELAYED TRANSFER,967.66
Rochdale BC,11/02/2014,PRESTIGE NURSING & CARE,Social Community Care Supplies & Services,PHYSICAL DIS & OLDER PEOPLE,NHS DELAYED TRANSFER,"1,329.76"
Rochdale BC,11/02/2014,PRESTIGE NURSING & CARE,Social Community Care Supplies & Services,PHYSICAL DIS & OLDER PEOPLE,NHS DELAYED TRANSFER,750.00
Rochdale BC,17/02/2014,PRESTIGE NURSING & CARE,Social Community Care Supplies & Services,PHYSICAL DIS & OLDER PEOPLE,NHS DELAYED TRANSFER,739.25
Rochdale BC,17/02/2014,PRESTIGE NURSING & CARE,Social Community Care Supplies & Services,PHYSICAL DIS & OLDER PEOPLE,NHS DELAYED TRANSFER,"1,010.39"
Rochdale BC,17/02/2014,PRESTIGE NURSING & CARE,Social Community Care Supplies & Services,PHYSICAL DIS & OLDER PEOPLE,NHS DELAYED TRANSFER,787.93
Rochdale BC,24/02/2014,PRESTIGE NURSING & CARE,Social Community Care Supplies & Services,PHYSICAL DIS & OLDER PEOPLE,NHS DELAYED TRANSFER,"2,707.12"
Rochdale BC,27/02/2014,PRESTIGE SALES AND LETTINGS LTD,Facilities & Management Services,CHILDREN�S SOCIAL CARE,ACCESS AND SUPPORT PREVENTIVE,550.00
Rochdale BC,19/02/2014,PRICE WATERHOUSE COOPERS,Consultancy,TAX AND TREASURY,TAX ADJUSTMENTS,"8,000.00"
Rochdale BC,21/02/2014,PRIESTLEYS & SMITHIES (ROCHDALE) LIMITED,Social Community Care Supplies & Services,PHYSICAL DIS & OLDER PEOPLE,POOLED ICES,"1,840.00"
Rochdale BC,28/02/2014,PRIORY ROSES,Unclassifiable,ECONOMY AND ENVIRONMENT,BOWLEE AND GARDEN MAILSHOP,994.34
Rochdale BC,13/02/2014,PRISM UK MEDICAL LIMITED,Social Community Care Supplies & Services,EARLY HELP AND SCHOOLS,CAPITAL EQUIPMENT DISABLED CHILDREN,"4,266.49"
Rochdale BC,17/02/2014,PRISM UK MEDICAL LIMITED,Social Community Care Supplies & Services,PHYSICAL DIS & OLDER PEOPLE,DISABLED FACILITIES GRANT,"2,033.26"
Rochdale BC,12/02/2014,PRISM UK MEDICAL LIMITED,Social Community Care Supplies & Services,PHYSICAL DIS & OLDER PEOPLE,POOLED ICES,"3,018.51"
Rochdale BC,27/02/2014,PRISM UK MEDICAL LIMITED,Social Community Care Supplies & Services,PHYSICAL DIS & OLDER PEOPLE,POOLED ICES,"1,625.00"
Rochdale BC,05/02/2014,PROBRUSH,Building Construction Materials,ECONOMY AND ENVIRONMENT,STREETS HEYWOOD GENERAL,"1,802.88"
Rochdale BC,07/02/2014,PROFILE SECURITY SERVICES LIMITED,Facilities & Management Services,ECONOMY AND ENVIRONMENT,1 RIVERSIDE,"3,732.15"
Rochdale BC,21/02/2014,PROFILE SECURITY SERVICES LIMITED,Facilities & Management Services,ECONOMY AND ENVIRONMENT,DEPOT GREEN LANE GENERAL,504.56
Rochdale BC,21/02/2014,PROFILE SECURITY SERVICES LIMITED,Facilities & Management Services,ECONOMY AND ENVIRONMENT,DEPOT GREEN LANE GENERAL,"4,748.80"
Rochdale BC,21/02/2014,PROFILE SECURITY SERVICES LIMITED,Facilities & Management Services,ECONOMY AND ENVIRONMENT,DEPOT GREEN LANE GENERAL,"4,812.40"
Rochdale BC,21/02/2014,PROFILE SECURITY SERVICES LIMITED,Facilities & Management Services,ECONOMY AND ENVIRONMENT,DEPOT GREEN LANE GENERAL,"5,012.00"
Rochdale BC,17/02/2014,PROGRESS CARE HOUSING ASSOCIATION LTD,Housing Management,LEARNING DIS & MENTAL HEALTH,LD SUPPORTED LIVING CLUSTER1  RMBC,"3,588.08"
Rochdale BC,11/02/2014,PROQUEST INFORMATION & LEARNING LTD,"Works - Construction, Repair & Maintenance",CUSTOMERS & CORPORATE SERVICES,BIBS UNIT,"4,160.00"
Rochdale BC,07/02/2014,PROTON (SOUTHERN) LIMITED,Cleaning & Janitorial,ECONOMY AND ENVIRONMENT,CATERING EDUC & WELFARE EQ (BUDGET408K),"2,895.00"
Rochdale BC,24/02/2014,PS&P  LTD,Financial Services,FINANCE SERVICES,BUSINESS RATES BILLING AND COLLECTION,"5,110.00"
Rochdale BC,11/02/2014,PULSE HEALTHCARE LTD,Human Resources,EARLY HELP AND SCHOOLS,DISABILITIES RESPITE CARE,"2,543.86"
Rochdale BC,12/02/2014,PULSE HEALTHCARE LTD,Human Resources,EARLY HELP AND SCHOOLS,DISABILITIES RESPITE CARE,"2,837.73"
Rochdale BC,26/02/2014,PULSE HEALTHCARE LTD,Human Resources,EARLY HELP AND SCHOOLS,DISABILITIES RESPITE CARE,"1,988.91"
Rochdale BC,26/02/2014,PULSE HEALTHCARE LTD,Human Resources,EARLY HELP AND SCHOOLS,DISABILITIES RESPITE CARE,"2,635.72"
Rochdale BC,25/02/2014,PURPLE TREE,Building Construction Materials,PUBLIC HEALTH,SPECIALIST PUBLIC HEALTH TEAM,780.00
Rochdale BC,01/02/2014,QA PLUS LTD,Information Communication Technology,CUSTOMERS & CORPORATE SERVICES,SCRUTINY & PERFORMANCE,"1,085.00"
Rochdale BC,21/02/2014,R CLAYTON,Unclassifiable,PROPERTY AND HIGHWAYS,TECHNICAL TEAM,600.00
Rochdale BC,05/02/2014,R82 UK LIMITED,Social Community Care Supplies & Services,EARLY HELP AND SCHOOLS,SCHOOLS ACCESS -EQUIPMENT-PRIMARY,921.00
Rochdale BC,01/02/2014,RADPAC,Financial Services,EARLY HELP AND SCHOOLS,SHORT BREAKS REVENUE,"7,425.00"
Rochdale BC,01/02/2014,RAINBOW SCENT,Unclassifiable,EARLY HELP AND SCHOOLS,HEALTH RELATED SHORT BREAKS,"2,500.00"
Rochdale BC,05/02/2014,RALPH LIVESEY,Unclassifiable,ECONOMY AND ENVIRONMENT,ROCHDALE TOWN HALL CROFTERS,667.06
Rochdale BC,18/02/2014,REACH TRAINING,Human Resources,PUBLIC HEALTH,SUPPORTING CHANGE & COMMUNITIES,530.00
Rochdale BC,19/02/2014,REAL CHRISTMAS TREES,Horticultural,ECONOMY AND ENVIRONMENT,ARBORICULTURE,550.00
Rochdale BC,28/02/2014,REAL STAFFING GROUP,Human Resources,CUSTOMERS & CORPORATE SERVICES,E-HR TRANSFORMATION PROGAMME,"3,900.00"
Rochdale BC,04/02/2014,REDACTED - PERSONAL DATA,Unclassifiable,ECONOMY AND ENVIRONMENT,11 TELFORD WAY,950.00
Rochdale BC,05/02/2014,REDACTED - PERSONAL DATA,Financial Services,LEARNING DIS & MENTAL HEALTH,ADULT PLACEMENT SCHEME,"2,485.92"
Rochdale BC,10/02/2014,REDACTED - PERSONAL DATA,Financial Services,LEARNING DIS & MENTAL HEALTH,ADULT PLACEMENT SCHEME,828.64
Rochdale BC,10/02/2014,REDACTED - PERSONAL DATA,Financial Services,LEARNING DIS & MENTAL HEALTH,ADULT PLACEMENT SCHEME,828.64
Rochdale BC,10/02/2014,REDACTED - PERSONAL DATA,Unclassifiable,LEARNING DIS & MENTAL HEALTH,ADULT PLACEMENT SCHEME,828.64
Rochdale BC,10/02/2014,REDACTED - PERSONAL DATA,Financial Services,LEARNING DIS & MENTAL HEALTH,ADULT PLACEMENT SCHEME,828.64
Rochdale BC,10/02/2014,REDACTED - PERSONAL DATA,Financial Services,LEARNING DIS & MENTAL HEALTH,ADULT PLACEMENT SCHEME,828.64
Rochdale BC,10/02/2014,REDACTED - PERSONAL DATA,Unclassifiable,LEARNING DIS & MENTAL HEALTH,ADULT PLACEMENT SCHEME,828.64
Rochdale BC,10/02/2014,REDACTED - PERSONAL DATA,Unclassifiable,LEARNING DIS & MENTAL HEALTH,ADULT PLACEMENT SCHEME,828.64
Rochdale BC,10/02/2014,REDACTED - PERSONAL DATA,Unclassifiable,LEARNING DIS & MENTAL HEALTH,ADULT PLACEMENT SCHEME,828.64
Rochdale BC,10/02/2014,REDACTED - PERSONAL DATA,Financial Services,LEARNING DIS & MENTAL HEALTH,ADULT PLACEMENT SCHEME,"1,646.68"
Rochdale BC,10/02/2014,REDACTED - PERSONAL DATA,Financial Services,LEARNING DIS & MENTAL HEALTH,ADULT PLACEMENT SCHEME,828.64
Rochdale BC,10/02/2014,REDACTED - PERSONAL DATA,Financial Services,LEARNING DIS & MENTAL HEALTH,ADULT PLACEMENT SCHEME,828.64
Rochdale BC,10/02/2014,REDACTED - PERSONAL DATA,Financial Services,LEARNING DIS & MENTAL HEALTH,ADULT PLACEMENT SCHEME,828.64
Rochdale BC,10/02/2014,REDACTED - PERSONAL DATA,Financial Services,LEARNING DIS & MENTAL HEALTH,ADULT PLACEMENT SCHEME,828.64
Rochdale BC,10/02/2014,REDACTED - PERSONAL DATA,Unclassifiable,LEARNING DIS & MENTAL HEALTH,ADULT PLACEMENT SCHEME,"1,657.28"
Rochdale BC,27/02/2014,REDACTED - PERSONAL DATA,Financial Services,LEARNING DIS & MENTAL HEALTH,ADULT PLACEMENT SCHEME,666.67
Rochdale BC,14/02/2014,REDACTED - PERSONAL DATA,Unclassifiable,LEARNING DIS & MENTAL HEALTH,AP RESPITE,736.78
Rochdale BC,11/02/2014,REDACTED - PERSONAL DATA,Unclassifiable,ECONOMY AND ENVIRONMENT,ARBORICULTURE,600.00
Rochdale BC,27/02/2014,REDACTED - PERSONAL DATA,Financial Services,LEARNING DIS & MENTAL HEALTH,CARERS RESOURCE CENTRE,510.60
Rochdale BC,05/02/2014,REDACTED - PERSONAL DATA,Furniture & Soft Furnishings,CHILDREN�S SOCIAL CARE,CSC F AND E,"1,697.00"
Rochdale BC,06/02/2014,REDACTED - PERSONAL DATA,Unclassifiable,CHILDREN�S SOCIAL CARE,CSC PUBLIC LAW PROCEEDINGS EXTERNAL FEES,780.00
Rochdale BC,10/02/2014,REDACTED - PERSONAL DATA,Unclassifiable,CHILDREN�S SOCIAL CARE,CSC PUBLIC LAW PROCEEDINGS EXTERNAL FEES,"3,120.00"
Rochdale BC,11/02/2014,REDACTED - PERSONAL DATA,Unclassifiable,CHILDREN�S SOCIAL CARE,CSC PUBLIC LAW PROCEEDINGS EXTERNAL FEES,510.00
Rochdale BC,19/02/2014,REDACTED - PERSONAL DATA,Legal Services,CHILDREN�S SOCIAL CARE,CSC PUBLIC LAW PROCEEDINGS EXTERNAL FEES,780.00
Rochdale BC,24/02/2014,REDACTED - PERSONAL DATA,Unclassifiable,CHILDREN�S SOCIAL CARE,CSC PUBLIC LAW PROCEEDINGS EXTERNAL FEES,"1,188.00"
Rochdale BC,24/02/2014,REDACTED - PERSONAL DATA,Unclassifiable,CHILDREN�S SOCIAL CARE,CSC PUBLIC LAW PROCEEDINGS EXTERNAL FEES,"1,530.00"
Rochdale BC,24/02/2014,REDACTED - PERSONAL DATA,Unclassifiable,CHILDREN�S SOCIAL CARE,CSC PUBLIC LAW PROCEEDINGS EXTERNAL FEES,780.00
Rochdale BC,25/02/2014,REDACTED - PERSONAL DATA,Unclassifiable,CHILDREN�S SOCIAL CARE,CSC PUBLIC LAW PROCEEDINGS EXTERNAL FEES,"6,960.00"
Rochdale BC,27/02/2014,REDACTED - PERSONAL DATA,Unclassifiable,CHILDREN�S SOCIAL CARE,CSC PUBLIC LAW PROCEEDINGS EXTERNAL FEES,670.00
Rochdale BC,06/02/2014,REDACTED - PERSONAL DATA,Social Community Care Supplies & Services,LEARNING DIS & MENTAL HEALTH,DIRECT PAYMENTS TO CARERS,500.00
Rochdale BC,06/02/2014,REDACTED - PERSONAL DATA,Social Community Care Supplies & Services,LEARNING DIS & MENTAL HEALTH,DIRECT PAYMENTS TO CARERS,500.00
Rochdale BC,26/02/2014,REDACTED - PERSONAL DATA,Social Community Care Supplies & Services,LEARNING DIS & MENTAL HEALTH,DIRECT PAYMENTS TO CARERS,500.00
Rochdale BC,06/02/2014,REDACTED - PERSONAL DATA,Unclassifiable,ECONOMY AND ENVIRONMENT,EDUCATION HOME TO SCHOOL,"2,196.00"
Rochdale BC,11/02/2014,REDACTED - PERSONAL DATA,Social Community Care Supplies & Services,CHILDREN�S SOCIAL CARE,EXTERNAL RESIDENTIAL PLACEMENTS,"10,943.00"
Rochdale BC,04/02/2014,REDACTED - PERSONAL DATA,Human Resources,CHILDREN�S SOCIAL CARE,EXTERNAL RESIDENTIAL PLACEMENTS,"14,734.83"
Rochdale BC,24/02/2014,REDACTED - PERSONAL DATA,Unclassifiable,ECONOMY AND ENVIRONMENT,HOUSING STRATEGY,720.00
Rochdale BC,14/02/2014,REDACTED - PERSONAL DATA,Financial Services,LEARNING DIS & MENTAL HEALTH,LD FORUM - ADULT PLACEMENTS,"1,012.44"
Rochdale BC,18/02/2014,REDACTED - PERSONAL DATA,Unclassifiable,LEARNING DIS & MENTAL HEALTH,LD FORUM - ADULT PLACEMENTS,"2,086.88"
Rochdale BC,11/02/2014,REDACTED - PERSONAL DATA,Unclassifiable,LEARNING DIS & MENTAL HEALTH,LD FORUM - DAY CARE,714.00
Rochdale BC,11/02/2014,REDACTED - PERSONAL DATA,Unclassifiable,LEARNING DIS & MENTAL HEALTH,LD FORUM - DAY CARE,510.00
Rochdale BC,11/02/2014,REDACTED - PERSONAL DATA,Unclassifiable,LEARNING DIS & MENTAL HEALTH,LD FORUM - DAY CARE,714.00
Rochdale BC,11/02/2014,REDACTED - PERSONAL DATA,Unclassifiable,LEARNING DIS & MENTAL HEALTH,LD FORUM - RESPITE CARE,782.00
Rochdale BC,06/02/2014,REDACTED - PERSONAL DATA,Unclassifiable,ECONOMY AND ENVIRONMENT,LEOPOLD COURT,"1,175.00"
Rochdale BC,21/02/2014,REDACTED - PERSONAL DATA,Unclassifiable,CHILDREN�S SOCIAL CARE,LEVEL 3 CARERS,590.58
Rochdale BC,21/02/2014,REDACTED - PERSONAL DATA,Facilities & Management Services,CUSTOMERS & CORPORATE SERVICES,MASKEW BEQUEST SPECIFIED,925.00
Rochdale BC,04/02/2014,REDACTED - PERSONAL DATA,Unclassifiable,ECONOMY AND ENVIRONMENT,MISCELLANEOUS ECR,575.00
Rochdale BC,01/02/2014,REDACTED - PERSONAL DATA,Financial Services,EARLY HELP AND SCHOOLS,PERSONALISED BUDGETS,572.24
Rochdale BC,26/02/2014,REDACTED - PERSONAL DATA,Unclassifiable,ECONOMY AND ENVIRONMENT,PIF DRAKE ST. IMPS 200K 10/11,500.00
Rochdale BC,24/02/2014,REDACTED - PERSONAL DATA,Unclassifiable,ECONOMY AND ENVIRONMENT,RIGHTS OF WAY (Transferring from Highway,600.00
Rochdale BC,10/02/2014,REDACTED - PERSONAL DATA,Financial Services,LEARNING DIS & MENTAL HEALTH,SUPPORTED PLACEMENTS,828.00
Rochdale BC,10/02/2014,REDACTED - PERSONAL DATA,Financial Services,LEARNING DIS & MENTAL HEALTH,SUPPORTED PLACEMENTS,817.56
Rochdale BC,10/02/2014,REDACTED - PERSONAL DATA,Financial Services,LEARNING DIS & MENTAL HEALTH,SUPPORTED PLACEMENTS,848.00
Rochdale BC,10/02/2014,REDACTED - PERSONAL DATA,Financial Services,LEARNING DIS & MENTAL HEALTH,SUPPORTED PLACEMENTS,817.56
Rochdale BC,10/02/2014,REDACTED - PERSONAL DATA,Financial Services,LEARNING DIS & MENTAL HEALTH,SUPPORTED PLACEMENTS,"1,197.14"
Rochdale BC,10/02/2014,REDACTED - PERSONAL DATA,Financial Services,LEARNING DIS & MENTAL HEALTH,SUPPORTED PLACEMENTS,817.56
Rochdale BC,10/02/2014,REDACTED - PERSONAL DATA,Financial Services,LEARNING DIS & MENTAL HEALTH,SUPPORTED PLACEMENTS,817.56
Rochdale BC,10/02/2014,REDACTED - PERSONAL DATA,Financial Services,LEARNING DIS & MENTAL HEALTH,SUPPORTED PLACEMENTS,"1,138.74"
Rochdale BC,10/02/2014,REDACTED - PERSONAL DATA,Financial Services,LEARNING DIS & MENTAL HEALTH,SUPPORTED PLACEMENTS,817.56
Rochdale BC,10/02/2014,REDACTED - PERSONAL DATA,Financial Services,LEARNING DIS & MENTAL HEALTH,SUPPORTED PLACEMENTS,"1,665.56"
Rochdale BC,10/02/2014,REDACTED - PERSONAL DATA,Financial Services,LEARNING DIS & MENTAL HEALTH,SUPPORTED PLACEMENTS,817.56
Rochdale BC,10/02/2014,REDACTED - PERSONAL DATA,Financial Services,LEARNING DIS & MENTAL HEALTH,SUPPORTED PLACEMENTS,817.56
Rochdale BC,10/02/2014,REDACTED - PERSONAL DATA,Financial Services,LEARNING DIS & MENTAL HEALTH,SUPPORTED PLACEMENTS,848.00
Rochdale BC,10/02/2014,REDACTED - PERSONAL DATA,Financial Services,LEARNING DIS & MENTAL HEALTH,SUPPORTED PLACEMENTS,817.56
Rochdale BC,17/02/2014,REDACTED - PERSONAL DATA,Financial Services,LEARNING DIS & MENTAL HEALTH,SUPPORTED PLACEMENTS,934.35
Rochdale BC,17/02/2014,REDACTED - PERSONAL DATA,Financial Services,LEARNING DIS & MENTAL HEALTH,SUPPORTED PLACEMENTS,995.32
Rochdale BC,25/02/2014,REDACTED - PERSONAL DATA,Unclassifiable,CHILDREN�S SOCIAL CARE,YOUNG PEOPLES SUPPORT TEAM,"1,067.01"
Rochdale BC,13/02/2014,REMOTE MANAGEMENT & SECURITY LTD,Facilities & Management Services,ECONOMY AND ENVIRONMENT,TELEGRAPH HOUSE SERVICE CHARGE ACCOUNT,700.00
Rochdale BC,01/02/2014,RESPITE NORTH WEST LIMITED,Social Community Care Supplies & Services,PHYSICAL DIS & OLDER PEOPLE,CENTRAL FORUM PHYS DIS,"1,364.16"
Rochdale BC,19/02/2014,RESPITE NORTH WEST LIMITED,Social Community Care Supplies & Services,PHYSICAL DIS & OLDER PEOPLE,CENTRAL FORUM PHYS DIS,"2,015.76"
Rochdale BC,20/02/2014,RESPITE NORTH WEST LIMITED,Social Community Care Supplies & Services,PHYSICAL DIS & OLDER PEOPLE,CENTRAL FORUM PHYS DIS,"1,364.16"
Rochdale BC,18/02/2014,RESPITE NORTH WEST LIMITED,Social Community Care Supplies & Services,EARLY HELP AND SCHOOLS,DISABILITIES RESPITE CARE,545.04
Rochdale BC,18/02/2014,RESPITE NORTH WEST LIMITED,Social Community Care Supplies & Services,EARLY HELP AND SCHOOLS,DISABILITIES RESPITE CARE,817.56
Rochdale BC,18/02/2014,RESPITE NORTH WEST LIMITED,Social Community Care Supplies & Services,EARLY HELP AND SCHOOLS,DISABILITIES RESPITE CARE,726.72
Rochdale BC,18/02/2014,RESPITE NORTH WEST LIMITED,Social Community Care Supplies & Services,EARLY HELP AND SCHOOLS,DISABILITIES RESPITE CARE,719.15
Rochdale BC,18/02/2014,RESPITE NORTH WEST LIMITED,Social Community Care Supplies & Services,EARLY HELP AND SCHOOLS,DISABILITIES RESPITE CARE,726.72
Rochdale BC,28/02/2014,RESPITE NORTH WEST LIMITED,Social Community Care Supplies & Services,EARLY HELP AND SCHOOLS,DISABILITIES RESPITE CARE,923.54
Rochdale BC,19/02/2014,RESPITE NORTH WEST LIMITED,Social Community Care Supplies & Services,LEARNING DIS & MENTAL HEALTH,GENERAL,"2,015.77"
Rochdale BC,07/02/2014,RESPITE NORTH WEST LIMITED,Social Community Care Supplies & Services,PHYSICAL DIS & OLDER PEOPLE,OLDER PEOPLES AGENCY PROVISION,"1,539.76"
Rochdale BC,14/02/2014,RESPITE NORTH WEST LIMITED,Social Community Care Supplies & Services,PHYSICAL DIS & OLDER PEOPLE,OLDER PEOPLES AGENCY PROVISION,"1,345.08"
Rochdale BC,27/02/2014,RESPITE NORTH WEST LIMITED,Social Community Care Supplies & Services,PHYSICAL DIS & OLDER PEOPLE,OLDER PEOPLES AGENCY PROVISION,"1,201.15"
Rochdale BC,17/02/2014,RHODAR LIMITED,Environmental Services,ECONOMY AND ENVIRONMENT,BALDERSTONE DEMOLITION,"11,472.00"
Rochdale BC,11/02/2014,RHODES PRESCHOOL,Financial Services,EARLY HELP AND SCHOOLS,MTCE OF INCLUSIVE CHILDCARE PLACES,660.00
Rochdale BC,27/02/2014,RIBA ENTERPRISES LIMITED,Education,PROPERTY AND HIGHWAYS,BUSINESS SUPPORT TEAM,"3,310.00"
Rochdale BC,05/02/2014,RIVERSIDE TRUCK RENTAL,Vehicle Management,ECONOMY AND ENVIRONMENT,FLEET OP COSTS GROUPED,"37,607.60"
Rochdale BC,20/02/2014,RIVERSIDE TRUCK RENTAL,Vehicle Management,ECONOMY AND ENVIRONMENT,FLEET OP COSTS GROUPED,"138,262.20"
Rochdale BC,11/02/2014,ROBERT WHETHAM ASSOCIATES,Consultancy,EARLY HELP AND SCHOOLS,ST ANDREW'S CE - PLACE PLANNING,665.00
Rochdale BC,01/02/2014,ROC NORTHWEST LTD,Social Community Care Supplies & Services,CHILDREN�S SOCIAL CARE,EXTERNAL RESIDENTIAL PLACEMENTS,"16,430.00"
Rochdale BC,01/02/2014,ROCHDALE & DIST CITIZENS ADVICE BUREAU,Social Community Care Supplies & Services,CUSTOMERS & CORPORATE SERVICES,ADVICE TEAM,"28,167.00"
Rochdale BC,17/02/2014,ROCHDALE & DIST CITIZENS ADVICE BUREAU,Social Community Care Supplies & Services,ECONOMY AND ENVIRONMENT,CAB (MORTGAGE RESCUE),"4,166.67"
Rochdale BC,26/02/2014,ROCHDALE & DISTRICT MIND,Social Community Care Supplies & Services,PUBLIC HEALTH,SPECIALIST PUBLIC HEALTH TEAM,"9,500.00"
Rochdale BC,04/02/2014,ROCHDALE BOROUGHWIDE HOUSING,Housing Management,CUSTOMERS & CORPORATE SERVICES,TOWNSHIP 10/11 ALLOCATED FUNDS,"1,797.84"
Rochdale BC,04/02/2014,ROCHDALE BOROUGHWIDE HOUSING,Housing Management,CHILDREN�S SOCIAL CARE,YOUNG PEOPLES SUPPORT TEAM,"10,536.75"
Rochdale BC,04/02/2014,ROCHDALE BOROUGHWIDE HOUSING,Housing Management,CHILDREN�S SOCIAL CARE,YPST ASYLUM SEEKERS (NASS) - OVER 18,"3,697.75"
Rochdale BC,04/02/2014,ROCHDALE BOROUGHWIDE HOUSING,Housing Management,CHILDREN�S SOCIAL CARE,YPST SUPPORTING PEOPLE FUNDING,"5,094.25"
Rochdale BC,14/02/2014,ROCHDALE BUSINESS VENTURES,Financial Services,CUSTOMERS & CORPORATE SERVICES,ICT OVERHEADS,"2,478.25"
Rochdale BC,21/02/2014,ROCHDALE CIRCULAR DISTRIBUTORS,Facilities & Management Services,FINANCE SERVICES,PR MEDIA AND MARKETING,"11,880.00"
Rochdale BC,24/02/2014,ROCHDALE CIRCULAR DISTRIBUTORS,Facilities & Management Services,FINANCE SERVICES,PR MEDIA AND MARKETING,"5,940.00"
Rochdale BC,07/02/2014,ROCHDALE COMMUNITY SUPPORT TRUST,Social Community Care Supplies & Services,PHYSICAL DIS & OLDER PEOPLE,OLDER PEOPLES AGENCY PROVISION,"4,052.61"
Rochdale BC,14/02/2014,ROCHDALE COMMUNITY SUPPORT TRUST,Social Community Care Supplies & Services,PHYSICAL DIS & OLDER PEOPLE,OLDER PEOPLES AGENCY PROVISION,"3,978.27"
Rochdale BC,27/02/2014,ROCHDALE COMMUNITY SUPPORT TRUST,Social Community Care Supplies & Services,PHYSICAL DIS & OLDER PEOPLE,OLDER PEOPLES AGENCY PROVISION,"4,055.67"
Rochdale BC,11/02/2014,ROCHDALE COMMUNITY TRANSPORT,Public Transport,ECONOMY AND ENVIRONMENT,EDUCATION HOME TO SCHOOL,"1,000.00"
Rochdale BC,11/02/2014,ROCHDALE COMMUNITY TRANSPORT,Public Transport,ECONOMY AND ENVIRONMENT,EDUCATION HOME TO SCHOOL,"1,400.00"
Rochdale BC,11/02/2014,ROCHDALE COMMUNITY TRANSPORT,Public Transport,ECONOMY AND ENVIRONMENT,EDUCATION HOME TO SCHOOL,"1,620.00"
Rochdale BC,11/02/2014,ROCHDALE COMMUNITY TRANSPORT,Public Transport,ECONOMY AND ENVIRONMENT,EDUCATION HOME TO SCHOOL,"1,700.00"
Rochdale BC,11/02/2014,ROCHDALE COMMUNITY TRANSPORT,Public Transport,ECONOMY AND ENVIRONMENT,EDUCATION HOME TO SCHOOL,"1,620.00"
Rochdale BC,28/02/2014,ROCHDALE COMMUNITY TRANSPORT,Public Transport,PHYSICAL DIS & OLDER PEOPLE,OLDER PEOPLES AGENCY PROVISION,"4,642.20"
Rochdale BC,26/02/2014,ROCHDALE CONNECTION TRUST (CHARITY ACCT),Financial Services,CHILDREN�S SOCIAL CARE,YOUNG PEOPLES SUPPORT TEAM,"1,500.00"
Rochdale BC,26/02/2014,ROCHDALE CONNECTION TRUST (CHARITY ACCT),Financial Services,CHILDREN�S SOCIAL CARE,YOUNG PEOPLES SUPPORT TEAM,"1,900.00"
Rochdale BC,24/02/2014,ROCHDALE CONNECTIONS TRUST (TRADING) LTD,Financial Services,ECONOMY AND ENVIRONMENT,COMMUNITY CHAMPION,"4,300.00"
Rochdale BC,24/02/2014,ROCHDALE CONNECTIONS TRUST (TRADING) LTD,Financial Services,ECONOMY AND ENVIRONMENT,COMMUNITY CHAMPION,524.00
Rochdale BC,18/02/2014,ROCHDALE DEVELOPMENT AGENCY,"Works - Construction, Repair & Maintenance",CUSTOMERS & CORPORATE SERVICES,ACTION FUND,500.00
Rochdale BC,18/02/2014,ROCHDALE DEVELOPMENT AGENCY,"Works - Construction, Repair & Maintenance",CUSTOMERS & CORPORATE SERVICES,HEYWOOD TOWNSHIP FUNDS - PROJECTS,500.00
Rochdale BC,18/02/2014,ROCHDALE DEVELOPMENT AGENCY,"Works - Construction, Repair & Maintenance",CUSTOMERS & CORPORATE SERVICES,PROJECTS COMMISSIONING,500.00
Rochdale BC,24/02/2014,ROCHDALE DEVELOPMENT AGENCY,"Works - Construction, Repair & Maintenance",PUBLIC HEALTH,SPECIALIST PUBLIC HEALTH TEAM,500.00
Rochdale BC,24/02/2014,ROCHDALE DEVELOPMENT AGENCY,"Works - Construction, Repair & Maintenance",PUBLIC HEALTH,SPECIALIST PUBLIC HEALTH TEAM,"1,500.00"
Rochdale BC,18/02/2014,ROCHDALE DEVELOPMENT AGENCY,"Works - Construction, Repair & Maintenance",CUSTOMERS & CORPORATE SERVICES,TOWNSHIP PRIORITY PROJECT FUND,500.00
Rochdale BC,17/02/2014,ROCHDALE EDUCATION & LEARNING TRUST,Education,EARLY HELP AND SCHOOLS,EARLY YEARS FOUNDATION STAGE 11/12,625.00
Rochdale BC,01/02/2014,ROCHDALE GATEWAY LEISURE LIMITED,Social Community Care Supplies & Services,LEARNING DIS & MENTAL HEALTH,LD FORUM - PERSONAL BUDGETS,505.50
Rochdale BC,01/02/2014,ROCHDALE GATEWAY LEISURE LIMITED,Social Community Care Supplies & Services,LEARNING DIS & MENTAL HEALTH,LD FORUM - PERSONAL BUDGETS,"2,190.50"
Rochdale BC,01/02/2014,ROCHDALE GATEWAY LEISURE LIMITED,Social Community Care Supplies & Services,LEARNING DIS & MENTAL HEALTH,LD FORUM - PERSONAL BUDGETS,674.00
Rochdale BC,01/02/2014,ROCHDALE GATEWAY LEISURE LIMITED,Social Community Care Supplies & Services,LEARNING DIS & MENTAL HEALTH,LD FORUM - PERSONAL BUDGETS,505.50
Rochdale BC,01/02/2014,ROCHDALE GATEWAY LEISURE LIMITED,Social Community Care Supplies & Services,LEARNING DIS & MENTAL HEALTH,LD FORUM - PERSONAL BUDGETS,674.00
Rochdale BC,01/02/2014,ROCHDALE GATEWAY LEISURE LIMITED,Social Community Care Supplies & Services,LEARNING DIS & MENTAL HEALTH,LD FORUM - PERSONAL BUDGETS,505.50
Rochdale BC,17/02/2014,ROCHDALE GATEWAY LEISURE LIMITED,Social Community Care Supplies & Services,LEARNING DIS & MENTAL HEALTH,LD FORUM - PERSONAL BUDGETS,920.80
Rochdale BC,20/02/2014,ROCHDALE GATEWAY LEISURE LIMITED,Social Community Care Supplies & Services,LEARNING DIS & MENTAL HEALTH,LD FORUM - PERSONAL BUDGETS,674.00
Rochdale BC,20/02/2014,ROCHDALE GATEWAY LEISURE LIMITED,Social Community Care Supplies & Services,LEARNING DIS & MENTAL HEALTH,LD FORUM - PERSONAL BUDGETS,674.00
Rochdale BC,01/02/2014,ROCHDALE GATEWAY LEISURE LIMITED,Social Community Care Supplies & Services,EARLY HELP AND SCHOOLS,SHORT BREAKS REVENUE,"2,425.00"
Rochdale BC,06/02/2014,ROCHDALE HOUSING INITIATIVE,Housing Management,ECONOMY AND ENVIRONMENT,EMPTY PROPERTY GRANT,"52,000.00"
Rochdale BC,06/02/2014,ROCHDALE HOUSING INITIATIVE,Housing Management,ECONOMY AND ENVIRONMENT,LANDLORD ASSISTANCE,"3,442.26"
Rochdale BC,11/02/2014,ROCHDALE MEMORIAL SERVICE,Cemetery & Crematorium,ECONOMY AND ENVIRONMENT,ALL CREMETORIA,734.53
Rochdale BC,11/02/2014,ROCHDALE MEMORIAL SERVICE,Cemetery & Crematorium,ECONOMY AND ENVIRONMENT,CEMETERIES GENERAL,"4,695.00"
Rochdale BC,10/02/2014,ROCHDALE OCCUPATIONAL HEALTH SERVICE LTD,Healthcare,CUSTOMERS & CORPORATE SERVICES,COURSES SCHOOL SAFETY,780.00
Rochdale BC,13/02/2014,ROCHDALE OCCUPATIONAL HEALTH SERVICE LTD,Healthcare,CUSTOMERS & CORPORATE SERVICES,COURSES SCHOOL SAFETY,650.00
Rochdale BC,17/02/2014,ROCHDALE OCCUPATIONAL HEALTH SERVICE LTD,Healthcare,CUSTOMERS & CORPORATE SERVICES,COURSES SCHOOL SAFETY,555.00
Rochdale BC,18/02/2014,ROCHDALE OCCUPATIONAL HEALTH SERVICE LTD,Healthcare,CUSTOMERS & CORPORATE SERVICES,COURSES SCHOOL SAFETY,740.00
Rochdale BC,05/02/2014,ROCHDALE ONLINE LIMITED,Facilities & Management Services,FINANCE SERVICES,PR MEDIA AND MARKETING,"1,260.00"
Rochdale BC,11/02/2014,ROCHDALE PETRUS COMMUNITY,Financial Services,ECONOMY AND ENVIRONMENT,PETRUS,"52,500.00"
Rochdale BC,11/02/2014,ROCHDALE PETRUS COMMUNITY,Financial Services,ECONOMY AND ENVIRONMENT,PETRUS,"52,500.00"
Rochdale BC,21/02/2014,ROCHDALE RE-TOOL LIMITED,Unclassifiable,PROPERTY AND HIGHWAYS,BUSINESS SUPPORT TEAM,"1,915.00"
Rochdale BC,17/02/2014,ROCHDALE SPORTS AND CULTURAL LINKS,Financial Services,CUSTOMERS & CORPORATE SERVICES,MEMBERS SMALL CAPITAL GRANTS,"1,500.00"
Rochdale BC,10/02/2014,ROCHDALE TOWN CENTRE MANAGEMENT CO,Financial Services,FINANCE SERVICES,PR MEDIA AND MARKETING,"1,695.00"
Rochdale BC,10/02/2014,ROCHDALE TOWN CENTRE MANAGEMENT CO,Financial Services,ECONOMY AND ENVIRONMENT,TOWN CENTRE MANAGEMENT GR,"5,722.50"
Rochdale BC,10/02/2014,ROCHDALE TOWN CENTRE MANAGEMENT CO,Financial Services,ECONOMY AND ENVIRONMENT,TOWN CENTRE MANAGEMENT GR,"3,034.50"
Rochdale BC,10/02/2014,ROCHDALE TOWN CENTRE MANAGEMENT CO,Financial Services,ECONOMY AND ENVIRONMENT,TOWN CENTRE MANAGEMENT GR,"1,887.00"
Rochdale BC,10/02/2014,ROCHDALE TOWN CENTRE MANAGEMENT CO,Financial Services,ECONOMY AND ENVIRONMENT,TOWN CENTRE MANAGEMENT GR,"10,480.50"
Rochdale BC,04/02/2014,ROCHEMONT LIMITED,Financial Services,ECONOMY AND ENVIRONMENT,PIF DRAKE ST. IMPS 200K 10/11,"5,000.00"
Rochdale BC,11/02/2014,ROLY POLEYS PRIVATE DAY NURSERY,Social Community Care Supplies & Services,EARLY HELP AND SCHOOLS,MTCE OF INCLUSIVE CHILDCARE PLACES,660.00
Rochdale BC,24/02/2014,ROOFSCAPE NW LTD,Building Construction Materials,EARLY HELP AND SCHOOLS,LOWERPLACE ROOF REPLACEMENT,"21,632.10"
Rochdale BC,26/02/2014,ROSS CARE,Social Community Care Supplies & Services,EARLY HELP AND SCHOOLS,CAPITAL EQUIPMENT DISABLED CHILDREN,"8,752.48"
Rochdale BC,05/02/2014,ROSS CARE,Social Community Care Supplies & Services,PHYSICAL DIS & OLDER PEOPLE,POOLED ICES,"14,147.55"
Rochdale BC,25/02/2014,ROSS CARE,Social Community Care Supplies & Services,PHYSICAL DIS & OLDER PEOPLE,POOLED ICES,"11,240.30"
Rochdale BC,17/02/2014,ROSSENDALE SCHOOL PRIORY,Financial Services,EARLY HELP AND SCHOOLS,IND SCHOOLS  RESIDENTIAL,"5,596.71"
Rochdale BC,25/02/2014,ROTHWELL PROMOTIONAL GIFTS LTD,Facilities & Management Services,ECONOMY AND ENVIRONMENT,COMMUNITY CHAMPION,"3,530.25"
Rochdale BC,05/02/2014,ROYAL MAIL GROUP PLC,Mail Services�,FINANCE SERVICES,TECHNICAL SUPPORT,"1,097.25"
Rochdale BC,19/02/2014,ROYAL MAIL GROUP PLC,Mail Services�,FINANCE SERVICES,TECHNICAL SUPPORT,"1,080.52"
Rochdale BC,05/02/2014,ROYTON MINIBUSES LIMITED,Public Transport,ECONOMY AND ENVIRONMENT,EDUCATION HOME TO SCHOOL,"2,400.00"
Rochdale BC,27/02/2014,S P TRAVEL,Human Resources,ECONOMY AND ENVIRONMENT,EDUCATION HOME TO SCHOOL,"1,380.00"
Rochdale BC,13/02/2014,S T HEATINGS SERVICES LTD,Building Construction Materials,PROPERTY AND HIGHWAYS,MATTHEW MOSS YOUTH CENTRE,822.68
Rochdale BC,24/02/2014,S T HEATINGS SERVICES LTD,Building Construction Materials,PROPERTY AND HIGHWAYS,MIDDLETON PUBLIC LIBRARY,795.83
Rochdale BC,24/02/2014,S T HEATINGS SERVICES LTD,Building Construction Materials,ECONOMY AND ENVIRONMENT,TOWN CENTRE DEMOLITIONS,"1,116.17"
Rochdale BC,20/02/2014,SAFE RECORDS MANAGEMENT LTD,Facilities & Management Services,CUSTOMERS & CORPORATE SERVICES,ERDMS - REVENUE,"3,249.70"
Rochdale BC,15/02/2014,SAFEGARD SECURITY SOLUTIONS,Facilities & Management Services,CUSTOMERS & CORPORATE SERVICES,SAFER COMMUNITIES COMMISSIONING,"10,714.30"
Rochdale BC,13/02/2014,SAFEGARD SECURITY SOLUTIONS,Facilities & Management Services,PROPERTY AND HIGHWAYS,SPOTLAND LIBRARY,716.48
Rochdale BC,11/02/2014,SANDBROOK CC NURSERY,Financial Services,EARLY HELP AND SCHOOLS,MTCE OF INCLUSIVE CHILDCARE PLACES,605.00
Rochdale BC,11/02/2014,SCAMPS PRE-SCHOOL PLAYGROUP,Financial Services,EARLY HELP AND SCHOOLS,MTCE OF INCLUSIVE CHILDCARE PLACES,660.00
Rochdale BC,14/02/2014,SCOPED SOLUTIONS LIMITED,Information Communication Technology,CUSTOMERS & CORPORATE SERVICES,CUSTOMER SERVICES SYSTEMS,"3,600.00"
Rochdale BC,05/02/2014,SECTOR TREASURY SERVICES LTD,Financial Services,FINANCE SERVICES,CENTRAL FINANCE  SYSTEMS AND ADMIN,"3,750.00"
Rochdale BC,11/02/2014,SEEROS PRIVATE DAY NURSURY,Social Community Care Supplies & Services,EARLY HELP AND SCHOOLS,MTCE OF INCLUSIVE CHILDCARE PLACES,715.00
Rochdale BC,01/02/2014,SHINING STARS SWIMMING SCHEME,Arts & Leisure Services,EARLY HELP AND SCHOOLS,HEALTH RELATED SHORT BREAKS,"4,037.50"
Rochdale BC,01/02/2014,SILVAPOWER LTD,Utilities,ECONOMY AND ENVIRONMENT,1 RIVERSIDE,"1,235.04"
Rochdale BC,01/02/2014,SKYLIGHT CIRCUS ARTS,Arts & Leisure Services,EARLY HELP AND SCHOOLS,SHORT BREAKS REVENUE,852.50
Rochdale BC,07/02/2014,SMARTLOGIC SEMAPHONE LIMITED,Facilities & Management Services,CUSTOMERS & CORPORATE SERVICES,REFRESH PROGRAMME,"2,000.00"
Rochdale BC,25/02/2014,SMITHYBRIDGE PRIMARY SCHOOL,Financial Services,EARLY HELP AND SCHOOLS,LOOKED AFTER CHILDREN PUPIL PREMIUM,"1,800.00"
Rochdale BC,12/02/2014,SMW ARCHITECTS,"Works - Construction, Repair & Maintenance",ECONOMY AND ENVIRONMENT,WHEATSHEAF ENTRANCE WORK,"5,750.00"
Rochdale BC,17/02/2014,SMW ARCHITECTS,"Works - Construction, Repair & Maintenance",ECONOMY AND ENVIRONMENT,WHEATSHEAF ENTRANCE WORK,"9,000.00"
Rochdale BC,04/02/2014,SOCIAL CARE SERVICES LIMITED,Social Community Care Supplies & Services,CHILDREN�S SOCIAL CARE,EXTERNAL RESIDENTIAL PLACEMENTS,"9,145.00"
Rochdale BC,07/02/2014,SOLON SECURITY LIMITED,Education,CUSTOMERS & CORPORATE SERVICES,BURGLARY REDUCTION SCHEME,530.50
Rochdale BC,12/02/2014,SOLON SECURITY LIMITED,Education,CUSTOMERS & CORPORATE SERVICES,BURGLARY REDUCTION SCHEME,"1,431.49"
Rochdale BC,05/02/2014,SOLON SECURITY LIMITED,Education,CUSTOMERS & CORPORATE SERVICES,SAFER COMMUNITIES OPER'L & CONT'Y BUDGET,"1,770.00"
Rochdale BC,07/02/2014,SPECIALIST COMPUTER CENTRES PLC,Information Communication Technology,CUSTOMERS & CORPORATE SERVICES,REFRESH PROGRAMME,"2,160.00"
Rochdale BC,07/02/2014,SPECIALIST COMPUTER CENTRES PLC,Information Communication Technology,CUSTOMERS & CORPORATE SERVICES,REFRESH PROGRAMME,"37,220.50"
Rochdale BC,14/02/2014,SPECIALIST COMPUTER CENTRES PLC,Information Communication Technology,CUSTOMERS & CORPORATE SERVICES,REFRESH PROGRAMME,"2,728.26"
Rochdale BC,14/02/2014,SPECIALIST COMPUTER CENTRES PLC,Information Communication Technology,CUSTOMERS & CORPORATE SERVICES,REFRESH PROGRAMME,"1,818.84"
Rochdale BC,20/02/2014,SPECIALIST COMPUTER CENTRES PLC,Information Communication Technology,CUSTOMERS & CORPORATE SERVICES,REFRESH PROGRAMME,"2,484.00"
Rochdale BC,17/02/2014,SPOTLAND COMMUNITY ASSOCIATION LTD,Financial Services,CUSTOMERS & CORPORATE SERVICES,SPOTLAND COMMUNITY CENTRE,"7,475.00"
Rochdale BC,17/02/2014,SPOTLAND COMMUNITY ASSOCIATION LTD,Financial Services,CUSTOMERS & CORPORATE SERVICES,SPOTLAND COMMUNITY CENTRE,"7,475.00"
Rochdale BC,11/02/2014,SPRING WILLOWS PLAYGROUP,Financial Services,EARLY HELP AND SCHOOLS,MTCE OF INCLUSIVE CHILDCARE PLACES,715.00
Rochdale BC,17/02/2014,SSI SCHAEFER LIMITED,Environmental Services,ECONOMY AND ENVIRONMENT,BLUE WASTE PAPER BINS,"14,815.68"
Rochdale BC,21/02/2014,SSI SCHAEFER LIMITED,Environmental Services,ECONOMY AND ENVIRONMENT,BLUE WASTE PAPER BINS,"14,815.68"
Rochdale BC,21/02/2014,SSI SCHAEFER LIMITED,Environmental Services,ECONOMY AND ENVIRONMENT,WHEEL BINS,"14,815.68"
Rochdale BC,25/02/2014,ST ANNES ACADEMY,Financial Services,EARLY HELP AND SCHOOLS,LOOKED AFTER CHILDREN PUPIL PREMIUM,900.00
Rochdale BC,11/02/2014,ST JOSEPHS PLAYGROUP,Financial Services,EARLY HELP AND SCHOOLS,MTCE OF INCLUSIVE CHILDCARE PLACES,605.00
Rochdale BC,10/02/2014,ST VINCENTS HOUSING ASSOCIATION,Housing Management,ECONOMY AND ENVIRONMENT,GENERAL CLEARANCE,"1,156.64"
Rochdale BC,10/02/2014,ST VINCENTS HOUSING ASSOCIATION,Housing Management,ECONOMY AND ENVIRONMENT,GENERAL CLEARANCE,"1,176.93"
Rochdale BC,04/02/2014,ST VINCENTS HOUSING ASSOCIATION,Housing Management,LEARNING DIS & MENTAL HEALTH,LD SUPPORTED LIVING CLUSTER1  RMBC,548.73
Rochdale BC,04/02/2014,ST VINCENTS HOUSING ASSOCIATION,Housing Management,LEARNING DIS & MENTAL HEALTH,LD SUPPORTED LIVING CLUSTER1  RMBC,563.76
Rochdale BC,27/02/2014,ST VINCENTS HOUSING ASSOCIATION,Housing Management,LEARNING DIS & MENTAL HEALTH,LD SUPPORTED LIVING CLUSTER1  RMBC,563.76
Rochdale BC,27/02/2014,ST VINCENTS HOUSING ASSOCIATION,Housing Management,LEARNING DIS & MENTAL HEALTH,LD SUPPORTED LIVING CLUSTER1  RMBC,731.64
Rochdale BC,05/02/2014,STANNAH LIFT SERVICES LTD,Facilities & Management Services,PHYSICAL DIS & OLDER PEOPLE,DISABLED FACILITIES GRANT,"1,824.00"
Rochdale BC,05/02/2014,STANNAH LIFT SERVICES LTD,Facilities & Management Services,PHYSICAL DIS & OLDER PEOPLE,DISABLED FACILITIES GRANT,"1,798.00"
Rochdale BC,11/02/2014,STANNAH LIFT SERVICES LTD,Facilities & Management Services,PHYSICAL DIS & OLDER PEOPLE,DISABLED FACILITIES GRANT,"1,843.00"
Rochdale BC,17/02/2014,STANNAH LIFT SERVICES LTD,Facilities & Management Services,PHYSICAL DIS & OLDER PEOPLE,DISABLED FACILITIES GRANT,"1,066.00"
Rochdale BC,17/02/2014,STANNAH LIFT SERVICES LTD,Facilities & Management Services,PHYSICAL DIS & OLDER PEOPLE,DISABLED FACILITIES GRANT,"1,757.00"
Rochdale BC,17/02/2014,STANNAH LIFT SERVICES LTD,Facilities & Management Services,PHYSICAL DIS & OLDER PEOPLE,DISABLED FACILITIES GRANT,"1,536.00"
Rochdale BC,17/02/2014,STANNAH LIFT SERVICES LTD,Facilities & Management Services,PHYSICAL DIS & OLDER PEOPLE,DISABLED FACILITIES GRANT,"4,327.00"
Rochdale BC,19/02/2014,STEP AHEAD,Social Community Care Supplies & Services,CHILDREN�S SOCIAL CARE,EXTERNAL RESIDENTIAL PLACEMENTS,850.00
Rochdale BC,19/02/2014,STEP AHEAD,Social Community Care Supplies & Services,CHILDREN�S SOCIAL CARE,EXTERNAL RESIDENTIAL PLACEMENTS,850.00
Rochdale BC,19/02/2014,STEP AHEAD,Social Community Care Supplies & Services,CHILDREN�S SOCIAL CARE,EXTERNAL RESIDENTIAL PLACEMENTS,850.00
Rochdale BC,19/02/2014,STEP AHEAD,Social Community Care Supplies & Services,CHILDREN�S SOCIAL CARE,EXTERNAL RESIDENTIAL PLACEMENTS,850.00
Rochdale BC,19/02/2014,STEP AHEAD,Social Community Care Supplies & Services,CHILDREN�S SOCIAL CARE,EXTERNAL RESIDENTIAL PLACEMENTS,850.00
Rochdale BC,19/02/2014,STEP AHEAD,Social Community Care Supplies & Services,CHILDREN�S SOCIAL CARE,EXTERNAL RESIDENTIAL PLACEMENTS,850.00
Rochdale BC,19/02/2014,STEP AHEAD,Social Community Care Supplies & Services,CHILDREN�S SOCIAL CARE,EXTERNAL RESIDENTIAL PLACEMENTS,850.00
Rochdale BC,19/02/2014,STEP AHEAD,Social Community Care Supplies & Services,CHILDREN�S SOCIAL CARE,EXTERNAL RESIDENTIAL PLACEMENTS,850.00
Rochdale BC,24/02/2014,STEP AHEAD,Social Community Care Supplies & Services,CHILDREN�S SOCIAL CARE,EXTERNAL RESIDENTIAL PLACEMENTS,850.00
Rochdale BC,25/02/2014,STEPPING STONE PROJECT ROCHDALE LTD,Financial Services,CUSTOMERS & CORPORATE SERVICES,DRUGS & ALCOHOL - SPECIALIST D&A SRVC,"75,000.00"
Rochdale BC,17/02/2014,STEPPING STONES SERVICES LTD,Arts & Leisure Services,LEARNING DIS & MENTAL HEALTH,GENERAL,"1,348.50"
Rochdale BC,17/02/2014,STEPPING STONES SERVICES LTD,Arts & Leisure Services,LEARNING DIS & MENTAL HEALTH,GENERAL,"1,334.00"
Rochdale BC,17/02/2014,STEPPING STONES SERVICES LTD,Arts & Leisure Services,LEARNING DIS & MENTAL HEALTH,GENERAL,"1,319.50"
Rochdale BC,17/02/2014,STEPPING STONES SERVICES LTD,Arts & Leisure Services,LEARNING DIS & MENTAL HEALTH,GENERAL,"3,903.79"
Rochdale BC,17/02/2014,STEPPING STONES SERVICES LTD,Arts & Leisure Services,LEARNING DIS & MENTAL HEALTH,GENERAL,"4,684.50"
Rochdale BC,14/02/2014,STHREE PARTNERSHIP LLP,Human Resources,CUSTOMERS & CORPORATE SERVICES,BUSINESS INTELLIGENCE SYSTEMS,"1,500.00"
Rochdale BC,14/02/2014,STHREE PARTNERSHIP LLP,Human Resources,CUSTOMERS & CORPORATE SERVICES,BUSINESS INTELLIGENCE SYSTEMS,900.00
Rochdale BC,20/02/2014,STHREE PARTNERSHIP LLP,Human Resources,CUSTOMERS & CORPORATE SERVICES,BUSINESS INTELLIGENCE SYSTEMS,"1,500.00"
Rochdale BC,28/02/2014,STHREE PARTNERSHIP LLP,Human Resources,CUSTOMERS & CORPORATE SERVICES,REFRESH PROGRAMME,"1,200.00"
Rochdale BC,26/02/2014,STOCKPORT METROPOLITAN BOROUGH COUNCIL,Public Bodies,FINANCE SERVICES,HSG BEN & CNCIL TAX SUPPORT ASSESSMENTS,"15,000.00"
Rochdale BC,13/02/2014,SUNSHINE CARE ROCHDALE CIC,Social Community Care Supplies & Services,PHYSICAL DIS & OLDER PEOPLE,OLDER PEOPLES AGENCY PROVISION,521.71
Rochdale BC,17/02/2014,SUNSHINE CARE ROCHDALE CIC,Social Community Care Supplies & Services,PHYSICAL DIS & OLDER PEOPLE,OLDER PEOPLES AGENCY PROVISION,521.71
Rochdale BC,11/02/2014,SUPERTOTS DAY NURSERY,Financial Services,EARLY HELP AND SCHOOLS,MTCE OF INCLUSIVE CHILDCARE PLACES,605.00
Rochdale BC,14/02/2014,SUPPLIES TEAM LIMITED,Information Communication Technology,CUSTOMERS & CORPORATE SERVICES,ICT PRINTING,573.60
Rochdale BC,17/02/2014,SWALEC,Utilities,ECONOMY AND ENVIRONMENT,TOWN CENTRE DEMOLITIONS,"3,529.73"
Rochdale BC,12/02/2014,SWIFT SECURITY PRODUCTS LTD,Facilities & Management Services,PROPERTY AND HIGHWAYS,CAR PARKS  GENERAL,750.00
Rochdale BC,25/02/2014,SYMBOLS WORLDWIDE,Education,EARLY HELP AND SCHOOLS,EQUALITIES TEAM RESOURCES,"3,132.94"
Rochdale BC,13/02/2014,SYNTAX CONTROLS LIMITED,Unclassifiable,PROPERTY AND HIGHWAYS,BALDERSTONE LIBRARY,550.00
Rochdale BC,13/02/2014,SYNTAX CONTROLS LIMITED,Unclassifiable,PROPERTY AND HIGHWAYS,BELFIELD LIBRARY,650.00
Rochdale BC,13/02/2014,SYNTAX CONTROLS LIMITED,Unclassifiable,PROPERTY AND HIGHWAYS,CASTLETON COMMUNITY CENTRE,550.00
Rochdale BC,13/02/2014,SYNTAX CONTROLS LIMITED,Unclassifiable,PROPERTY AND HIGHWAYS,CORPORATE LANDLORD GENERAL,"1,970.00"
Rochdale BC,13/02/2014,SYNTAX CONTROLS LIMITED,Unclassifiable,PROPERTY AND HIGHWAYS,CORPORATE LANDLORD GENERAL,700.00
Rochdale BC,13/02/2014,SYNTAX CONTROLS LIMITED,Unclassifiable,PROPERTY AND HIGHWAYS,FASHION CORNER,550.00
Rochdale BC,13/02/2014,SYNTAX CONTROLS LIMITED,Unclassifiable,PROPERTY AND HIGHWAYS,HOLLINGWORTH LAKE GENERAL,550.00
Rochdale BC,13/02/2014,SYNTAX CONTROLS LIMITED,Unclassifiable,ECONOMY AND ENVIRONMENT,LEOPOLD COURT,"2,291.20"
Rochdale BC,13/02/2014,SYNTAX CONTROLS LIMITED,Unclassifiable,PROPERTY AND HIGHWAYS,LITTLEBOROUGH LIBRARY,550.00
Rochdale BC,13/02/2014,SYNTAX CONTROLS LIMITED,Unclassifiable,PROPERTY AND HIGHWAYS,MIDDLETON LIBRARY,550.00
Rochdale BC,13/02/2014,SYNTAX CONTROLS LIMITED,Unclassifiable,PROPERTY AND HIGHWAYS,NEWBOLD CHILDRENS CENTRE,550.00
Rochdale BC,13/02/2014,SYNTAX CONTROLS LIMITED,Unclassifiable,PROPERTY AND HIGHWAYS,SCHOOLS SLA 12/13,550.00
Rochdale BC,04/02/2014,SYSTEMS LINK 2000 LIMITED,Facilities & Management Services,PROPERTY AND HIGHWAYS,BUSINESS SUPPORT TEAM,"1,385.00"
Rochdale BC,01/02/2014,T CUBED LTD,Consultancy,PHYSICAL DIS & OLDER PEOPLE,CARELINE,"1,030.00"
Rochdale BC,28/02/2014,TAMESIDE MBC,Public Bodies,FINANCE CONTROL,NON DISTRIBUTED COSTS,"87,733.34"
Rochdale BC,18/02/2014,TAYLOR & STOTT LTD                   (S),"Works - Construction, Repair & Maintenance",ECONOMY AND ENVIRONMENT,DEPOT GREEN LANE GENERAL,860.00
Rochdale BC,10/02/2014,TAYLOR & STOTT LTD                   (S),"Works - Construction, Repair & Maintenance",ECONOMY AND ENVIRONMENT,MERCURY ABATEMENT,734.60
Rochdale BC,10/02/2014,TAYLOR AND DE WITT,Financial Services,ECONOMY AND ENVIRONMENT,REG LIC  GENERAL,515.05
Rochdale BC,11/02/2014,THE 3R PROJECT CIC,Financial Services,ECONOMY AND ENVIRONMENT,SKILLS OUTREACH,"4,680.00"
Rochdale BC,11/02/2014,THE 3R PROJECT CIC,Financial Services,ECONOMY AND ENVIRONMENT,SKILLS OUTREACH,"2,220.00"
Rochdale BC,28/02/2014,THE ASSOCIATION OF ELECTORAL ADMIN,Financial Services,CUSTOMERS & CORPORATE SERVICES,ELECTIONS GENERAL,"1,390.00"
Rochdale BC,17/02/2014,THE BOND BOARD LIMITED,Housing Management,ECONOMY AND ENVIRONMENT,BOND BOARD,"12,500.00"
Rochdale BC,17/02/2014,THE BOND BOARD LIMITED,Housing Management,ECONOMY AND ENVIRONMENT,RENT GUARANTEE SCHEME,"17,500.00"
Rochdale BC,01/02/2014,THE DEPAUL TRUST,Social Community Care Supplies & Services,CHILDREN�S SOCIAL CARE,YOT MANAGEMENT,"2,240.00"
Rochdale BC,27/02/2014,THE ENERGY SAVERS LTD,Vehicle Management,EARLY HELP AND SCHOOLS,SALIX LOANS TO SCHOOLS,"1,367.00"
Rochdale BC,25/02/2014,THE HAY GROUP MANAGEMENT LTD,Consultancy,FINANCE SERVICES,CHIEF EXECUTIVE EXPENSES,"49,856.71"
Rochdale BC,07/02/2014,THE MEARS GROUP,Social Community Care Supplies & Services,PHYSICAL DIS & OLDER PEOPLE,OLDER PEOPLES AGENCY PROVISION,"2,961.57"
Rochdale BC,14/02/2014,THE MEARS GROUP,Social Community Care Supplies & Services,PHYSICAL DIS & OLDER PEOPLE,OLDER PEOPLES AGENCY PROVISION,"2,732.99"
Rochdale BC,27/02/2014,THE MEARS GROUP,Social Community Care Supplies & Services,PHYSICAL DIS & OLDER PEOPLE,OLDER PEOPLES AGENCY PROVISION,"2,638.39"
Rochdale BC,01/02/2014,THE NATIONAL AUTISTIC SOCIETY,Human Resources,EARLY HELP AND SCHOOLS,HEALTH RELATED SHORT BREAKS,"3,186.67"
Rochdale BC,20/02/2014,THE NATIONAL AUTISTIC SOCIETY,Human Resources,LEARNING DIS & MENTAL HEALTH,LD FORUM - SUPPORTED LIVING,"1,778.06"
Rochdale BC,18/02/2014,THE OPEN UNIVERSITY,Public Bodies,CUSTOMERS & CORPORATE SERVICES,RENAISSANCE,755.00
Rochdale BC,24/02/2014,THE PARAMOUNT GROUP,Social Community Care Supplies & Services,CHILDREN�S SOCIAL CARE,EXTERNAL RESIDENTIAL PLACEMENTS,"8,000.00"
Rochdale BC,05/02/2014,THE PENNINE ACUTE HOSPITALS NHS TRUST,Healthcare,PHYSICAL DIS & OLDER PEOPLE,COMMUNITY OCCUPATIONAL THERAPY &HANDLING,"6,808.50"
Rochdale BC,05/02/2014,THE PENNINE ACUTE HOSPITALS NHS TRUST,Healthcare,CUSTOMERS & CORPORATE SERVICES,CORONERS SERVICE GENERAL,"11,637.96"
Rochdale BC,01/02/2014,THE PENNINE ACUTE HOSPITALS NHS TRUST,Healthcare,PUBLIC HEALTH,OBESITY COMMISSIONING,"140,043.00"
Rochdale BC,17/02/2014,THE SANCTUARY TRUST,Social Community Care Supplies & Services,ECONOMY AND ENVIRONMENT,SANCTUARY TRUST,"6,500.00"
Rochdale BC,11/02/2014,THE TOGETHER TRUST,Social Community Care Supplies & Services,CHILDREN�S SOCIAL CARE,EXTERNAL RESIDENTIAL PLACEMENTS,"10,181.02"
Rochdale BC,11/02/2014,THE TOGETHER TRUST,Social Community Care Supplies & Services,CHILDREN�S SOCIAL CARE,EXTERNAL RESIDENTIAL PLACEMENTS,"10,402.67"
Rochdale BC,11/02/2014,THE TOGETHER TRUST,Social Community Care Supplies & Services,CHILDREN�S SOCIAL CARE,EXTERNAL RESIDENTIAL PLACEMENTS,"10,185.67"
Rochdale BC,11/02/2014,THE TOGETHER TRUST,Social Community Care Supplies & Services,CHILDREN�S SOCIAL CARE,EXTERNAL RESIDENTIAL PLACEMENTS,"15,742.73"
Rochdale BC,11/02/2014,THE TOGETHER TRUST,Social Community Care Supplies & Services,CHILDREN�S SOCIAL CARE,EXTERNAL RESIDENTIAL PLACEMENTS,"11,067.00"
Rochdale BC,17/02/2014,THE TOGETHER TRUST,Social Community Care Supplies & Services,EARLY HELP AND SCHOOLS,NON MAINTAINED POST 16,"10,611.44"
Rochdale BC,17/02/2014,THE TOGETHER TRUST,Social Community Care Supplies & Services,EARLY HELP AND SCHOOLS,PRE 16 RDALE PUPILS IN NON MAINTAINED,"19,119.78"
Rochdale BC,17/02/2014,THE TOGETHER TRUST,Social Community Care Supplies & Services,EARLY HELP AND SCHOOLS,PRE 16 RDALE PUPILS IN NON MAINTAINED,"8,631.94"
Rochdale BC,17/02/2014,THE TOGETHER TRUST,Social Community Care Supplies & Services,EARLY HELP AND SCHOOLS,PRE 16 RDALE PUPILS IN NON MAINTAINED,"13,319.32"
Rochdale BC,17/02/2014,THE TOGETHER TRUST,Social Community Care Supplies & Services,EARLY HELP AND SCHOOLS,PRE 16 RDALE PUPILS IN NON MAINTAINED,"10,636.22"
Rochdale BC,01/02/2014,THE TOGETHER TRUST,Social Community Care Supplies & Services,EARLY HELP AND SCHOOLS,SHORT BREAKS REVENUE,"2,458.33"
Rochdale BC,17/02/2014,THE UNIVERSITY OF SALFORD,Human Resources,CHILDREN�S SOCIAL CARE,ASYE - DFE,550.00
Rochdale BC,01/02/2014,THE WOODSIDE MEDICAL CENTRE,Healthcare,CUSTOMERS & CORPORATE SERVICES,LOCAL ENHANCED SERVICES - LES,"2,987.75"
Rochdale BC,13/02/2014,THOMAS FATTORINI LIMITED,Clothing,ECONOMY AND ENVIRONMENT,MAYORAL SUPPORT,688.44
Rochdale BC,10/02/2014,THOMAS KERSHAW BUILDERS LTD,"Works - Construction, Repair & Maintenance",EARLY HELP AND SCHOOLS,CASTLETON ROOF REPLMT TO KS2 BLDG & CRDS,"17,347.82"
Rochdale BC,18/02/2014,THOMSON REUTERS,Legal Services,CUSTOMERS & CORPORATE SERVICES,LEGAL SERVICES,"11,448.00"
Rochdale BC,14/02/2014,THUS,Information Communication Technology,CUSTOMERS & CORPORATE SERVICES,THIRD PARTY CONTRACTS,"4,324.03"
Rochdale BC,01/02/2014,TIMOTHY JAMES CONSULTANCY LTD,Human Resources,CHILDREN�S SOCIAL CARE,MANAGEMENT STRUCTURE,"1,600.00"
Rochdale BC,01/02/2014,TIMOTHY JAMES CONSULTANCY LTD,Human Resources,CHILDREN�S SOCIAL CARE,MANAGEMENT STRUCTURE,"2,000.00"
Rochdale BC,11/02/2014,TIMOTHY JAMES CONSULTANCY LTD,Human Resources,CHILDREN�S SOCIAL CARE,MANAGEMENT STRUCTURE,"1,200.00"
Rochdale BC,11/02/2014,TIMOTHY JAMES CONSULTANCY LTD,Human Resources,CHILDREN�S SOCIAL CARE,MANAGEMENT STRUCTURE,"2,000.00"
Rochdale BC,17/02/2014,TIMOTHY JAMES CONSULTANCY LTD,Human Resources,CHILDREN�S SOCIAL CARE,MANAGEMENT STRUCTURE,"2,000.00"
Rochdale BC,24/02/2014,TIMOTHY JAMES CONSULTANCY LTD,Human Resources,CHILDREN�S SOCIAL CARE,MANAGEMENT STRUCTURE,"2,000.00"
Rochdale BC,27/02/2014,TIMOTHY JAMES CONSULTANCY LTD,Human Resources,CHILDREN�S SOCIAL CARE,MANAGEMENT STRUCTURE,"1,600.00"
Rochdale BC,27/02/2014,TIMOTHY JAMES CONSULTANCY LTD,Human Resources,CHILDREN�S SOCIAL CARE,MANAGEMENT STRUCTURE,"1,600.00"
Rochdale BC,27/02/2014,TIMOTHY JAMES CONSULTANCY LTD,Human Resources,CHILDREN�S SOCIAL CARE,MANAGEMENT STRUCTURE,"1,600.00"
Rochdale BC,19/02/2014,TINKLER SOLICITORS CLIENT ACCOUNT,Legal Services,CUSTOMERS & CORPORATE SERVICES,LAND CHARGES,"41,762.10"
Rochdale BC,26/02/2014,TOGETHER WORKING FOR WELLBEING,Social Community Care Supplies & Services,LEARNING DIS & MENTAL HEALTH,GENERAL,"1,274.70"
Rochdale BC,26/02/2014,TOGETHER WORKING FOR WELLBEING,Social Community Care Supplies & Services,LEARNING DIS & MENTAL HEALTH,GENERAL,"1,274.70"
Rochdale BC,01/02/2014,TOMAX BUILDING SERVICES LTD,"Works - Construction, Repair & Maintenance",PROPERTY AND HIGHWAYS,REFURB OF RDALE CEMETERY LODGE (1&2),"49,338.42"
Rochdale BC,26/02/2014,TOTAL PHYSIOTHERAPY LIMITED,Healthcare,FINANCE SERVICES,BLUE BADGES,750.00
Rochdale BC,11/02/2014,TOTS JUNCTION,Financial Services,EARLY HELP AND SCHOOLS,MTCE OF INCLUSIVE CHILDCARE PLACES,660.00
Rochdale BC,18/02/2014,TRAKM8 LIMITED,Vehicle Management,ECONOMY AND ENVIRONMENT,EMS TRANSFORMATION PROJECT PHASE 1 REV,"1,836.00"
Rochdale BC,05/02/2014,TRANSFORM LIVES COMPANY,Education,ECONOMY AND ENVIRONMENT,SKILLS OUTREACH,"18,400.00"
Rochdale BC,17/02/2014,TRANSITIONAL PLUS CARE COMM INT CO LTD,Financial Services,CHILDREN�S SOCIAL CARE,YOUNG PEOPLES SUPPORT TEAM,"19,360.00"
Rochdale BC,19/02/2014,TRANSPORT FOR GREATER MANCHESTER,Financial Services,PROPERTY AND HIGHWAYS,Metrolink,"24,086.00"
Rochdale BC,06/02/2014,TRANSPORT FOR GREATER MANCHESTER,Financial Services,ECONOMY AND ENVIRONMENT,SMITH ST & DRAKE ST PAVING & LIGHTING,"38,604.18"
Rochdale BC,27/02/2014,TRANSPORT FOR GREATER MANCHESTER,Financial Services,ECONOMY AND ENVIRONMENT,STRATEGIC PLANNING,"2,274.00"
Rochdale BC,11/02/2014,TRINITY MIRROR NORTH WEST & NORTH WALES LTD,Education,ECONOMY AND ENVIRONMENT,RETROFIT,893.53
Rochdale BC,06/02/2014,TRINITY MIRROR NORTH WEST & NORTH WALES LTD,Education,ECONOMY AND ENVIRONMENT,RR HEALTHIER CHIP SHOP SCHEME,"1,134.66"
Rochdale BC,10/02/2014,TSL EDUCATION LIMITED,Human Resources,EARLY HELP AND SCHOOLS,PERSONNEL,"1,041.25"
Rochdale BC,10/02/2014,TSL EDUCATION LIMITED,Human Resources,EARLY HELP AND SCHOOLS,PERSONNEL,"1,041.25"
Rochdale BC,19/02/2014,TSL EDUCATION LIMITED,Human Resources,EARLY HELP AND SCHOOLS,PERSONNEL,699.12
Rochdale BC,24/02/2014,TSL EDUCATION LIMITED,Human Resources,EARLY HELP AND SCHOOLS,PERSONNEL,"1,041.25"
Rochdale BC,13/02/2014,TUGHANS SOLICTORS,Legal Services,ECONOMY AND ENVIRONMENT,WHEATSHEAF ENTRANCE WORK,"1,250,000.00"
Rochdale BC,17/02/2014,TUNSTALL HEALTHCARE (UK) LTD,Social Community Care Supplies & Services,PHYSICAL DIS & OLDER PEOPLE,CARELINE,749.40
Rochdale BC,21/02/2014,TUNSTALL HEALTHCARE (UK) LTD,Social Community Care Supplies & Services,PHYSICAL DIS & OLDER PEOPLE,CARELINE,750.00
Rochdale BC,25/02/2014,TUNSTALL HEALTHCARE (UK) LTD,Social Community Care Supplies & Services,PHYSICAL DIS & OLDER PEOPLE,CARELINE,"2,525.40"
Rochdale BC,05/02/2014,TYNETEC LTD,"Works - Construction, Repair & Maintenance",PHYSICAL DIS & OLDER PEOPLE,CARELINE,"6,413.93"
Rochdale BC,24/02/2014,ULVERSCROFT LARGE PRINT BOOKS LTD,Education,CUSTOMERS & CORPORATE SERVICES,BIBS UNIT,526.00
Rochdale BC,26/02/2014,UNITED FLAG & FLAGSTAFFS LIMITED,Facilities & Management Services,CUSTOMERS & CORPORATE SERVICES,HEYWOOD TOWNSHIP FUNDS - PROJECTS,720.00
Rochdale BC,04/02/2014,UNITED UTILITIES ELECTRICITY SERVICES,Utilities,PROPERTY AND HIGHWAYS,Winter Maintenance,"3,116.59"
Rochdale BC,17/02/2014,UNITED UTILITIES PLC,Highway Equipment & Materials�,ECONOMY AND ENVIRONMENT,STREETS ROCHDALE GENERAL,609.96
Rochdale BC,17/02/2014,UNITED UTILITIES PLC,Highway Equipment & Materials�,ECONOMY AND ENVIRONMENT,STREETS ROCHDALE GENERAL,914.94
Rochdale BC,17/02/2014,UNITED UTILITIES PLC,Highway Equipment & Materials�,ECONOMY AND ENVIRONMENT,STREETS ROCHDALE GENERAL,607.50
Rochdale BC,12/02/2014,UNITED UTILITIES WATER LIMITED,Utilities,ECONOMY AND ENVIRONMENT,1 RIVERSIDE,"14,707.56"
Rochdale BC,12/02/2014,UNITED UTILITIES WATER LIMITED,Utilities,ECONOMY AND ENVIRONMENT,ALL CREMETORIA,"1,431.78"
Rochdale BC,12/02/2014,UNITED UTILITIES WATER LIMITED,Utilities,ECONOMY AND ENVIRONMENT,BOWLING GREENS,848.46
Rochdale BC,12/02/2014,UNITED UTILITIES WATER LIMITED,Utilities,EARLY HELP AND SCHOOLS,BRIDGEFOLD LODGE,566.85
Rochdale BC,12/02/2014,UNITED UTILITIES WATER LIMITED,Utilities,CUSTOMERS & CORPORATE SERVICES,CASTLETON COMMUNITY CENTRE,761.71
Rochdale BC,12/02/2014,UNITED UTILITIES WATER LIMITED,Utilities,LEARNING DIS & MENTAL HEALTH,DAY SERVICES MANAGEMENT/ADMIN,584.19
Rochdale BC,12/02/2014,UNITED UTILITIES WATER LIMITED,Utilities,ECONOMY AND ENVIRONMENT,FIRGROVE PLAYING FIELDS,603.28
Rochdale BC,12/02/2014,UNITED UTILITIES WATER LIMITED,Utilities,EARLY HELP AND SCHOOLS,LITTLEBOROUGH CAMPUS,"7,357.01"
Rochdale BC,12/02/2014,UNITED UTILITIES WATER LIMITED,Utilities,PROPERTY AND HIGHWAYS,MANAGEMENT OF PROPERTIES,"1,988.43"
Rochdale BC,12/02/2014,UNITED UTILITIES WATER LIMITED,Utilities,EARLY HELP AND SCHOOLS,NEWBOLD CHILDRENS CENTRE,"1,284.41"
Rochdale BC,12/02/2014,UNITED UTILITIES WATER LIMITED,Utilities,ECONOMY AND ENVIRONMENT,PARKS ROCHDALE,601.04
Rochdale BC,12/02/2014,UNITED UTILITIES WATER LIMITED,Utilities,PHYSICAL DIS & OLDER PEOPLE,RONALD GORTON CENTRE,"1,117.75"
Rochdale BC,12/02/2014,UNITED UTILITIES WATER LIMITED,Utilities,ECONOMY AND ENVIRONMENT,WHITWORTH ROAD,"1,868.50"
Rochdale BC,07/02/2014,UPDATA INFRASTRUCTURE UK LTD,Information Communication Technology,CUSTOMERS & CORPORATE SERVICES,REFRESH PROGRAMME,"1,260.00"
Rochdale BC,07/02/2014,UPDATA INFRASTRUCTURE UK LTD,Information Communication Technology,CUSTOMERS & CORPORATE SERVICES,THIRD PARTY CONTRACTS,"2,379.81"
Rochdale BC,07/02/2014,UPDATA INFRASTRUCTURE UK LTD,Information Communication Technology,CUSTOMERS & CORPORATE SERVICES,THIRD PARTY CONTRACTS,"1,127.21"
Rochdale BC,07/02/2014,UPDATA INFRASTRUCTURE UK LTD,Information Communication Technology,CUSTOMERS & CORPORATE SERVICES,THIRD PARTY CONTRACTS,"2,593.15"
Rochdale BC,26/02/2014,URBAN VISION PARTNERSHIP LTD,Consultancy,ECONOMY AND ENVIRONMENT,DEVELOPMENT MANAGEMENT - PLANNING APPS,"7,960.00"
Rochdale BC,01/02/2014,VALE PARK DEMOLITION,"Works - Construction, Repair & Maintenance",PROPERTY AND HIGHWAYS,BALDERSTONE CHANGING PAVILLION - DEM 316,565.55
Rochdale BC,11/02/2014,VALE PARK DEMOLITION,"Works - Construction, Repair & Maintenance",ECONOMY AND ENVIRONMENT,HILLTOP DEMOLITION,"1,641.97"
Rochdale BC,07/02/2014,VENN GROUP LIMITED,Human Resources,CUSTOMERS & CORPORATE SERVICES,PROPERTY SECTION,"1,070.24"
Rochdale BC,07/02/2014,VENN GROUP LIMITED,Human Resources,CUSTOMERS & CORPORATE SERVICES,PROPERTY SECTION,881.37
Rochdale BC,11/02/2014,VETERANS IN COMMUNITIES,Financial Services,PUBLIC HEALTH,SPECIALIST PUBLIC HEALTH TEAM,"2,265.00"
Rochdale BC,04/02/2014,WAI YIN CHINESE WOMEN SOCIETY,Financial Services,LEARNING DIS & MENTAL HEALTH,GENERAL,900.00
Rochdale BC,27/02/2014,WARDLEWORTH COMMUNITY CENTRE ASSOCIATION,Financial Services,LEARNING DIS & MENTAL HEALTH,DAY SERVICES MANAGEMENT/ADMIN,"1,000.00"
Rochdale BC,11/02/2014,WENDYS,Unclassifiable,EARLY HELP AND SCHOOLS,MTCE OF INCLUSIVE CHILDCARE PLACES,660.00
Rochdale BC,04/02/2014,WHITWORTH AMATEUR MUSICAL & DRAMATIC SOCIETY,Arts & Leisure Services,CUSTOMERS & CORPORATE SERVICES,COMMUNITIES & ENGAGEMENT PRIORITY FUND,"2,000.00"
Rochdale BC,04/02/2014,WHITWORTH AMATEUR MUSICAL & DRAMATIC SOCIETY,Arts & Leisure Services,CUSTOMERS & CORPORATE SERVICES,MEMBERS SMALL CAPITAL GRANTS,900.00
Rochdale BC,05/02/2014,WHITWORTH VALLEY ANGLING SOCIETY,Financial Services,CUSTOMERS & CORPORATE SERVICES,MEMBERS CAPITAL FUND,"1,000.00"
Rochdale BC,19/02/2014,WIGAN METROPOLITAN BOROUGH COUNCIL,Public Bodies,ECONOMY AND ENVIRONMENT,TRADING STANDARDS GENERAL,"6,071.00"
Rochdale BC,04/02/2014,WILDE CONSULTING ENGINEERS,Consultancy,PROPERTY AND HIGHWAYS,BOROUGH-WIDE CODE OF PRACTICE DEV,"5,300.00"
Rochdale BC,05/02/2014,WLG (WHOLESALERS),Catering,ECONOMY AND ENVIRONMENT,TOWN HALL BAR,"1,143.79"
Rochdale BC,12/02/2014,WLG (WHOLESALERS),Catering,ECONOMY AND ENVIRONMENT,TOWN HALL BAR,646.74
Rochdale BC,01/02/2014,WOMEN`S AID FEDERATION OF ENGLAND,Human Resources,EARLY HELP AND SCHOOLS,STRONGER FAMILIES PROGRAMME DELIVERY,750.00
Rochdale BC,07/02/2014,XN LEISURE SYSTEMS LTD,Information Communication Technology,CUSTOMERS & CORPORATE SERVICES,ICT OVERHEADS,"1,300.00"
Rochdale BC,27/02/2014,YOTTA LIMITED,"Works - Construction, Repair & Maintenance",PROPERTY AND HIGHWAYS,BWIDE VAR STREETS FW/CW SURVEYS,"2,859.50"
Rochdale BC,20/02/2014,Z IQBAL & I A CHOUDHRY,Unclassifiable,CUSTOMERS & CORPORATE SERVICES,BIBS UNIT,581.25
